Workbook

Sheet LDC Info
Z3: 1 | AA3: Alectra Utilities Corporation
Z4: 2 | AA4: Alectra Utilities Corporation - Brampton service territory
Z5: 3 | AA5: Alectra Utilities Corporation - Horizon Utilities service territory
Z6: 4 | AA6: Alectra Utilities Corporation - Mississauga service territory
Z7: 5 | AA7: Alectra Utilities Corporation - PowerStream service territory
Z8: 6 | AA8: Algoma Power Inc.
Z9: 7 | AA9: Atikokan Hydro Inc.
Z10: 8 | AA10: Attawapiskat Power Corporation
Z11: 9 | AA11: Bluewater Power Distribution Corporation
Z12: 10 | AA12: Brantford Power Inc.
Z13: 11 | AA13: Burlington Hydro Inc.
D14: Utility Name | E14: Sioux Lookout Hydro Inc. | Z14: 12 | AA14: Canadian Niagara Power Inc. (Eastern Ontario Power/Fort Erie/Port Colborne)
Z15: 13 | AA15: Centre Wellington Hydro Ltd.
D16: Assigned EB Number | E16: EB-2017-0073 | Z16: 14 | AA16: Chapleau Public Utilities Corporation
Z17: 15 | AA17: COLLUS PowerStream Corp.
D18: Name of Contact and Title | E18: Deanne Kulchyski, President/CEO | Z18: 16 | AA18: Cooperative Hydro Embrun Inc.
Z19: 17 | AA19: E.L.K. Energy Inc.
D20: Phone Number | E20: 807-737-3800 | Z20: 18 | AA20: Energy + Inc.
Z21: 19 | AA21: Enersource Hydro Mississauga Inc.
D22: Email Address | E22: dkulchyski@tbaytel.net | Z22: 20 | AA22: Entegrus Powerlines Inc.
Z23: 21 | AA23: ENWIN Utilities Ltd.
D24: Test Year | E24: 2018 | Z24: 22 | AA24: Erie Thames Powerlines Corporation
Z25: 23 | AA25: Espanola Regional Hydro Distribution Corporation
D26: Bridge Year | E26: =IF(ISBLANK(E24), "", E24-1) -> 2017 | Z26: 24 | AA26: Essex Powerlines Corporation
Z27: 25 | AA27: Festival Hydro Inc.
D28: Last Rebasing Year | E28: 2013 | Z28: 26 | AA28: Fort Albany Power Corporation
Z29: 27 | AA29: Fort Frances Power Corporation
A30: Identify the accounting standard used for the test year | Z30: 28 | AA30: Greater Sudbury Hydro Inc.
E31: MIFRS | Z31: 29 | AA31: Grimsby Power Inc.
Z32: 30 | AA32: Guelph Hydro Electric Systems Inc.
A33: Did you update your depreciation and capitalization policies and reflect the changes in policies in a prior rebasing application? | Z33: 31 | AA33: Halton Hills Hydro Inc.
E34: Yes | Z34: 32 | AA34: Hearst Power Distribution Company Limited
Z35: 33 | AA35: Hydro 2000 Inc.
A36: When did you update your actual depreciation and capitalization policies? | Z36: 34 | AA36: Hydro Hawkesbury Inc.
E37: 2001-01-01 | F37: 2012 | Z37: 35 | AA37: Hydro One Networks Inc.
Z38: 36 | AA38: Hydro One Networks Inc. - Norfolk, Haldimand, Woodstock
A39: Identify the year the applicant adopted IFRS for financial reporting purposes | Z39: 37 | AA39: Hydro One Remote Communities Inc.
E40: 2015 | Z40: 38 | AA40: Hydro Ottawa Limited
Z41: 39 | AA41: Innpower Corporation
Z42: 40 | AA42: Kashechewan Power Corporation
A43: Are you applying for cost recovery for the test and/or future year(s) for Green Energy initiatives? | Z43: 41 | AA43: Kenora Hydro Electric Corporation Ltd.
E44: No | Z44: 42 | AA44: Kingston Hydro Corporation
Z45: 43 | AA45: Kitchener-Wilmot Hydro Inc.
A46: ="Is " & E14 & " an embedded distributor?" -> Is Sioux Lookout Hydro Inc. an embedded distributor? | E46: Yes | Z46: 44 | AA46: Lakefront Utilities Inc.
Z47: 45 | AA47: Lakeland Power Distribution Ltd.
Z48: 46 | AA48: London Hydro Inc.
B49: Notes | Z49: 47 | AA49: Midland Power Utility Corporation
Z50: 48 | AA50: Milton Hydro Distribution Inc.
C51: Pale green cells represent input cells. | Z51: 49 | AA51: Newmarket-Tay Power Distribution Ltd.
Z52: 50 | AA52: Niagara Peninsula Energy Inc.
C53: Pale blue cells represent drop-down lists. The applicant should select the appropriate item from the drop-down list. | Z53: 51 | AA53: Niagara-on-the-Lake Hydro Inc.
Z54: 52 | AA54: North Bay Hydro Distribution Limited
C55: White cells contain fixed values, automatically generated values or formulae. | N55: =IF(LEN($G55)>1, (SUMPRODUCT(--($C$78:$C$1000=$C55),--($A$78:$A$1000=$D55), --($B$78:$B$1000=$B55&"_TOTAL"), $L$78:$L$1000)), "") ->  | O55: =IF(LEN($G55)>1, (SUMPRODUCT(--($C$78:$C$1000=$C55),--($A$78:$A$1000=$D55), --($B$78:$B$1000=$B55&"_TOTAL"), $M$78:$M$1000)), "") ->  | Z55: 53 | AA55: Northern Ontario Wires Inc.
N56: =IF(LEN($G56)>1, (SUMPRODUCT(--($C$78:$C$1000=$C56),--($A$78:$A$1000=$D56), --($B$78:$B$1000=$B56&"_TOTAL"), $L$78:$L$1000)), "") ->  | O56: =IF(LEN($G56)>1, (SUMPRODUCT(--($C$78:$C$1000=$C56),--($A$78:$A$1000=$D56), --($B$78:$B$1000=$B56&"_TOTAL"), $M$78:$M$1000)), "") ->  | Z56: 54 | AA56: Oakville Hydro Electricity Distribution Inc.
Z57: 55 | AA57: Orangeville Hydro Limited
Z58: 56 | AA58: Orillia Power Distribution Corporation
Z59: 57 | AA59: Oshawa PUC Networks Inc.
Z60: 58 | AA60: Ottawa River Power Corporation
Z61: 59 | AA61: Peterborough Distribution Inc.
Z62: 60 | AA62: PUC Distribution Inc.
Z63: 61 | AA63: Renfrew Hydro Inc.
Z64: 62 | AA64: Rideau St. Lawrence Distribution Inc.
Z65: 63 | AA65: Sioux Lookout Hydro Inc.
Z66: 64 | AA66: St. Thomas Energy Inc.
Z67: 65 | AA67: Thunder Bay Hydro Electricity Distribution Inc.
Z68: 66 | AA68: Tillsonburg Hydro Inc.
Z69: 67 | AA69: Toronto Hydro-Electric System Limited
Z70: 68 | AA70: Veridian Connections Inc.
Z71: 69 | AA71: Wasaga Distribution Inc.
Z72: 70 | AA72: Waterloo North Hydro Inc.
Z73: 71 | AA73: Welland Hydro-Electric System Corp.
Z74: 72 | AA74: Wellington North Power Inc.
Z75: 73 | AA75: West Coast Huron Energy Inc.
Z76: 74 | AA76: Westario Power Inc.
Z77: 75 | AA77: Whitby Hydro Electric Corporation

Sheet Index
A15: 1 | B15: LDC Information Sheet | E15: 20 | F15: App.2-G: Service Reliability Indicators
A16: 2 | B16: Index | E16: 21 | F16: App.2-H: Other Operating Revenue
A17: 3 | B17: Cost of Service Application Flowchart | E17: 22 | F17: App.2-I: Load Forecast CDM Adjustment Workform
A18: 4 | B18: List of Key References | E18: 23 | F18: App.2-IA: Load Forecast Data Instructions
A19: 5 | B19: App.2-A: List of Requested Approvals | E19: 24 | F19: App.2-IB: Actual and Forecast Load and Customer Data
A20: 6 | B20: App.2-AA: Capital Projects Table | E20: 25 | F20: App.2-JA: OM&A Summary Analysis
A21: 7 | B21: App.2-AB: Capital Expenditures | E21: 26 | F21: App.2-JB: Recoverable OM&A Cost Driver Table
A22: 8 | B22: App. 2-AC: Customer Engagement Worksheet | E22: 27 | F22: App.2-JC: OM&A Programs Table
A23: 9 | B23: App.2-B: General Accounting Instructions | E23: 28 | F23: App.2-K: Employee Costs
A24: 10 | B24: App.2-BA: Fixed Asset Continuity Schedule | E24: 29 | F24: App.2-L: Recoverable OM&A Cost per Customer and per FTE
A25: 11 | B25: Appendix 2-BB: Service Life Comparison | E25: 30 | F25: App.2-M: Regulatory Costs Schedule
A26: 12 | B26: App.2-C_DepExp: Depreciation and Amortization Expense | E26: 31 | F26: App.2-N: Shared Services and Corporate Cost Allocation
A27: 13 | B27: App.2-D: Overhead Expenses | E27: 32 | F27: App.2-OA: Capital Structure and Cost of Capital
A28: 14 | B28: App.2-EA: Account 1575 PP&E Deferral Account (2015 IFRS Adopters) | E28: 33 | F28: App.2-OB: Debt Instruments
A29: 15 | B29: App.2-EB: Account 1576 - Accounting Changes Under CGAAP (2012 Changes) | E29: 34 | F29: App.2-Q: Cost of Serving Embedded Distributor(s)
A30: 16 | B30: App.2-EC: Account 1576 - Accounting Changes Under CGAAP (2013 Changes) | E30: 35 | F30: App.2-R: Loss Factors
A31: 17 | B31: App.2-FA: Renewable Generation Connection Investment Summary | E31: 36 | F31: App.2-S: Stranded Meter Treatment
A32: 18 | B32: App.2-FB: Calculation of Renewable Generation Connection Direct Benefits/Provincial Amount: Renewable Enabling Improvement Investments | E32: 37 | F32: App.2-Y: Transition to MIFRS Summary Impact
A33: 19 | B33: App.2-FC: Calculation of Renewable Generation Connection Direct Benefits/Provincial Amount: Renewable Expansion Investments | E33: 38 | F33: App.2-YA: One-Time Incremental IFRS Transition Costs
A42: Note: | B42: Appendices for the Tariff of Rates and Charges at Current and Proposed Rates, and for the Bill Impacts are now in a separate spreadsheet model. These appendices were formerly 2-Z and 2-W.

Sheet COS Flowchart
B4: Cost of Service Rate Application Schematic
B6: The Cost of Service Rate Application Schematic is a flowchart that is included as a guide for the components of an application. The schematic demonstrates how demand and costs interrelate to derive the revenue requirement and how the revenue requirement is allocated between classes and through fixed/variable splits to derive rates that will be compensatory for the annual revenue requirement, based on the the forecasted demand. There is no form to be filled out; therefore, this Schedule is not required to be filed.

Sheet List of Key References
B3: List of Key References
A5: A list of key references for understanding the Filing Requirements has been embedded in the document below. To access the list of references and associated hyperlinks double-click the icon below.

Sheet App.2-A_Requested_Approvals
G1: File Number: | H1: =EBNUMBER -> EB-2017-0073
G2: Exhibit: | H2: 1
G3: Tab:
G4: Schedule:
G5: Page:
G7: Date: | H7: 2017-08-28
B9: Appendix 2-A
B10: List of Requested Approvals
B12: The distributor must fill out the following sheet with the complete list of specific approvals requested and relevant section(s) of the legislation must be provided. All approvals, including accounting orders (deferral and variance accounts) new rate classes, revised specific service charges or retail service charges which the applicant is seeking, must be separately identified, as well being clearly documented in the appropriate sections of the application.
B14: Additional requests may be added by copying and pasting blank input rows, as needed.
B16: If additional requests arise, or requested approvals are removed, during the processing of the application, the distributor should update this list.
B18: =CONCATENATE('LDC Info'!E14," is seeking the following approvals in this application:") -> Sioux Lookout Hydro Inc. is seeking the following approvals in this application:
B20: 1 | F20: Approval under Section 78 of the Ontario Energy Board Act, 1998 to charge distribution rates effective May 1, 2018 to recover a service revenue Requirement of $2,190,155 which includes a revenue deficiency of $112,317 as detailed in Exhibit 6. The schedule of proposed rates is set out in Exhibit 8.
B22: 2 | F22: Approval of the Distribution System Plan as outlined in Exhibit 2.
B24: 3 | F24: Approval of revised low voltage rates as proposed and described in Exhibit 8.
B26: 4 | F26: Approval to adjust the Retail Transmission Rates - Network and Connection as detailed in Exhibit 8.
B28: 5 | F28: Approval to continue to charge Wholesale Market and Rural Rate Protection Charges approved in the Board Decision and Order in the matter of SLHI's 2017 Distribution Rates (EB-2016-00103).
B30: 6 | F30: Approval to continue the Specific Service Charges and Transformer Allowance approved in the Board Decision and Order in the matter of SLHI's 2017 Distribution Rates (EB-2016-0103).
B32: 7 | F32: Approval to remove the Unmetered Scattered Load Class.
B34: 8 | F34: Approval of the proposed loss factors as detailed in Exhibit 8.
B36: 9 | F36: Approval of the rate riders for a one year disposition of the Group 1 Deferral and Variance Accounts as detailed in Exhibit 9.
B38: 10 | F38: Approval to dispose of the Lost Revenue Adjustment Mechanism Variance Account ("LRAMVA") for lost revenue from 2011 to 2015 resulting from 2011 to 2015 IESO (formally OPA) programs as detailed in Exhibit 4.
B40: 11 | F40: Approval to dispose of Group 2 Accounts 1508, Sub Account IFRS, 1518 Retail Cost Variance Account - Retail, 1548 Retails Cost Variance Account - STR as outlined in Exhibit 9 over a one year dispostion.
B42: 12 | F42: Approval to dispose of Account 1575 IFRS-CGAAP Transition PP&E Amounts over a five year disposition period as outlined in Exhibit 9.
B44: 13 | F44: Approval to change the wording under Specific Service Charges from Returned Cheque (plus bank charges) to Returned Item (plus Bank Charges).
B46: 14 | F46: SLHI may request such other approvals as counsel for SLHI may submit and the Board may allow.

Sheet App.2-AA_Capital Projects
G1: File Number: | H1: =EBNUMBER -> EB-2017-0073
G2: Exhibit: | H2: 2
G3: Tab:
G4: Schedule:
G5: Page:
G7: Date: | H7: 2017-08-28
A9: Appendix 2-AA
A10: Capital Projects Table
A13: Projects | B13: =C13-1 -> 2013 | C13: =D13-1 -> 2014 | D13: =E13-1 -> 2015 | E13: =BridgeYear - 1 -> 2016 | F13: =BridgeYear & " Bridge Year" -> 2017 Bridge Year | G13: =TestYear & " Test Year" -> 2018 Test Year
A14: Reporting Basis | B14: CGAAP | C14: CGAAP | D14: MIFRS | E14: MIFRS | F14: MIFRS | G14: MIFRS
A15: System Renewal
A16: Pole Replacements | B16: 66424 | C16: 111358 | D16: 34940 | E16: 76244 | F16: 105500 | G16: 130304
A17: Winoga Submarine Cable | D17: 33317
A18: Smart Meter Modem Upgrade | C18: 12125
A19: Sam Lake Modems | D19: 1118
A20: Cross Arm Replacements | E20: 31907
A21: Transformer Replacements | F21: 23600 | G21: 24025
A22: Meter Reverification Program | E22: 4330 | F22: 16712
A23: Spare Transformers | C23: 9823 | D23: 4025
A24: Sub-Total | B24: =SUM(B16:B23) -> 66424 | C24: 133306 | D24: 73400 | E24: 112481 | F24: 145812 | G24: 154329
A25: System Access
A26: New Connections | B26: 85799 | C26: 69175 | D26: 68629 | E26: 68561 | F26: 140000 | G26: 60000
A27: General Upgrades | B27: 57585 | C27: 61284 | D27: 64180 | E27: 41593 | F27: 25000 | G27: 40000
A28: LTLT Elimination | F28: 147842
A31: Sub-Total | B31: =SUM(B26:B30) -> 143384 | C31: 130459 | D31: 132809 | E31: 110154 | F31: 312842 | G31: 100000
A32: System Service
A33: South Shore Drive Conversion | B33: 10254
A34: Rear Front Street | D34: 25353
A35: F2 Blue Phase Reconductoring | D35: 45184 | E35: 52039 | F35: 48000
A36: Hudson Upgrade | D36: 25108
A38: Sub-Total | B38: =SUM(B33:B37) -> 10254 | C38: 0 | D38: 95645 | E38: 52039 | F38: 48000 | G38: 0
A39: General Plant
A40: Backhoe | B40: 85090
A41: Amcorder Recording Meter | B41: 6145
A42: Tools - General | B42: 1357 | C42: 3504 | D42: 1005 | E42: 5323 | F42: 5000 | G42: 5000
A43: Computers | B43: 3155 | C43: 1000 | D43: 1830 | F43: 2000 | G43: 2000
A44: Vehicle Replacements | C44: 54539 | D44: 14234 | F44: 35000 | G44: 355000
A45: Mapping Upgrade | C45: 33600
A46: Web Presentment | C46: 7250
A47: Shop internet upgrade | C47: 4441
A48: Office Equipment | C48: 278 | D48: 2318 | E48: 299 | F48: 2000 | G48: 2000
A49: Pole testing equipment | E49: 15389
A50: Mapping Software Conversion | F50: 45000
A51: Phone System Upgrade | D51: 11167
A52: Sub-Total | B52: =SUM(B40:B51) -> 95747 | C52: 104612 | D52: 30554 | E52: 21011 | F52: 89000 | G52: 364000
A53: Miscellaneous | B53: 4134 | C53: 2056 | D53: 1523
A54: Total | B54: =SUMPRODUCT(--($A15:$A53="Sub-Total"), B$15:B$53)+B53 -> 319943 | C54: 370433 | D54: 333931 | E54: 295685 | F54: 595654 | G54: 618329
A55: Less Renewable Generation Facility Assets and Other Non-Rate-Regulated Utility Assets (input as negative) | B55: -1067 | D55: -1523
A56: Total | B56: =B54+B55 -> 318876 | C56: 370433 | D56: 332408 | E56: 295685 | F56: 595654 | G56: 618329
A58: Notes:
A60: 1 Please provide a breakdown of the major components of each capital project undertaken in each year. Please ensure that all projects below the materiality threshold are included in the miscellaneous line. Add more projects as required.
A61: 2 The applicant should group projects appropriately and avoid presentations that result in classification of significant components of the capital budget in the miscellaneous category.

Sheet App.2-AB_Capital Expenditures
S1: File Number: | U1: =EBNUMBER -> EB-2017-0073
S2: Exhibit: | U2: 2
S3: Tab:
S4: Schedule:
S5: Page:
S7: Date: | U7: 2017-08-28
A9: Appendix 2-AB
A10: Table 2 - Capital Expenditure Summary from Chapter 5 Consolidated Distribution System Plan Filing Requirements
A12: First year of Forecast Period: | B12: =TestYear -> 2018
A13: CATEGORY | B13: Historical Period (previous plan1 & actual) | Q13: Forecast Period (planned)
B14: =E14-1 -> 2013 | E14: =H14-1 -> 2014 | H14: =K14-1 -> 2015 | K14: =N14-1 -> 2016 | N14: =Q14-1 -> 2017 | Q14: =B12 -> 2018 | R14: =Q14+1 -> 2019 | S14: =R14+1 -> 2020 | T14: =S14+1 -> 2021 | U14: =T14+1 -> 2022
B15: Plan | C15: Actual | D15: Var | E15: Plan | F15: Actual | G15: Var | H15: Plan | I15: Actual | J15: Var | K15: Plan | L15: Actual | M15: Var | N15: Plan | O15: Actual2 | P15: Var
B16: $ '000 | D16: % | E16: $ '000 | G16: % | H16: $ '000 | J16: % | K16: $ '000 | M16: % | N16: $ '000 | P16: % | Q16: $ '000
A17: System Access | B17: 97818 | C17: 143384 | D17: =IF(ISERROR((C17-B17)/B17),"--",(C17-B17)/B17) -> 0.4658242859 | E17: 113000 | F17: 130459 | G17: =IF(ISERROR((F17-E17)/E17),"--",(F17-E17)/E17) -> 0.1545044248 | H17: 102700 | I17: 132809 | J17: =IF(ISERROR((I17-H17)/H17),"--",(I17-H17)/H17) -> 0.2931742941 | K17: 102700 | L17: 110154 | M17: =IF(ISERROR((L17-K17)/K17),"--",(L17-K17)/K17) -> 0.07258033106 | N17: 312842 | P17: =IF(ISERROR((O17-N17)/N17),"--",(O17-N17)/N17) -> -1 | Q17: 100000 | R17: 101800 | S17: 103632 | T17: 105498 | U17: 107397
A18: System Renewal | B18: 119122 | C18: 69491 | D18: -0.4166400833 | E18: 105325 | F18: 133306 | G18: 0.2656634227 | H18: 80000 | I18: 73400 | J18: -0.0825 | K18: 50000 | L18: 112481 | M18: 1.24962 | N18: 145812 | P18: -1 | Q18: 154329 | R18: 220456 | S18: 138836 | T18: 141335 | U18: 143879
A19: System Service | C19: 10254 | D19: -- | E19: 37000 | F19: 0 | G19: -1 | H19: 116140 | I19: 95645 | J19: -0.1764680558 | K19: 48126 | L19: 52039 | M19: 0.0813074014 | N19: 48000 | P19: -1
A20: General Plant | B20: 103000 | C20: 96814 | D20: -0.06005825243 | E20: 108500 | F20: 106668 | G20: -0.01688479263 | H20: 39000 | I20: 30554 | J20: -0.2165641026 | K20: 36900 | L20: 21011 | M20: -0.430596206 | N20: 89000 | P20: -1 | Q20: 364000 | R20: 79000 | S20: 315000 | T20: 44000 | U20: 9000
A21: TOTAL EXPENDITURE | B21: =SUM(B17:B20) -> 319940 | C21: =SUM(C17:C20) -> 319943 | D21: 9.376758142e-06 | E21: 363825 | F21: 370433 | G21: 0.01816257816 | H21: 337840 | I21: 332408 | J21: -0.0160786171 | K21: 237726 | L21: 295685 | M21: 0.2438058942 | N21: 595654 | O21: 0 | P21: -1 | Q21: 618329 | R21: 401256 | S21: 557468 | T21: 290833 | U21: =SUM(U17:U20) -> 260276
A22: System O&M | C22: 750206 | D22: -- | F22: 772525 | G22: -- | I22: 686231 | J22: -- | L22: 769028 | M22: -- | O22: 777712 | P22: -- | Q22: 742406 | R22: 767525 | S22: 746462 | T22: 752364 | U22: 768225
A24: Notes to the Table:
A25: 1. Historical “previous plan” data is not required unless a plan has previously been filed. However, use the last Board-approved, at least on a Total (Capital) Expenditure basis for the last cost of service rebasing year, and the applicant should include their planned budget in each subsequent historical year up to and including the Bridge Year.
A26: 2. Indicate the number of months of 'actual' data included in the last year of the Historical Period (normally a 'bridge' year):
A28: Explanatory Notes on Variances (complete only if applicable)
A29: Notes on shifts in forecast vs. historical budgets by category
A30: System Access is largely new connections. The 2017 planned includes $147,000 for the Long Term Load Transfer Assets acquired. System Renewal - pole replacements are majority of this budget. In 2015 SLHI underwent an asset condition assessment which was not completed until April 2016. The budgeted figure does not represent the findings of the study since the budget is developed in Q4 of 2015 for 2016, therefore much more was spent on pole replacements than was budgeted for after the ACA was completed. System Service - see notes on year over year explanations.
A32: Notes on year over year Plan vs. Actual variances for Total Expenditures
A33: The 2016 planned vs. actual variance is mainly due to the increased number of pole replacements mentioned above.
A35: Notes on Plan vs. Actual variance trends for individual expenditure categories

Sheet App.2-AC_Customer Engagement
B1: File Number: | C1: =EBNUMBER -> EB-2017-0073
B2: Exhibit: | C2: 1
B3: Tab:
B4: Schedule:
B5: Page:
B7: Date: | C7: 2017-08-28
A9: Appendix 2-AC
A10: Customer Engagement Activities Summary
A12: Provide a list of customer engagement activities | B12: Provide a list of customer needs and preferences identified through each engagement activity | C12: Actions taken to respond to identified needs and preferences. If no action was taken, explain why.
A13: 2014 Customer Satisfaction Survey | B13: Overall Customer Satisfaction, Reliability, Conservation Programs Offered, Planned Outage Communication, Satisfaction with unplanned outages, Impact of Power Outages on Customers, Customer Expectations with respect to Unplanned outages, Customer needs with respect to Electric Vehicles, Renewable Generation, Energy Storage and Outage Management Systems | C13: Customers indicated they were generally satisfied overall with SLHI. There was a very low level of interest with respect to customer needs (Electric Vehicles etc.) Therefore no action was taken.
A14: 2016 Customer Satisfaction Survey | B14: Overall Customer Satisfaction, Power Quality and Reliability, Price, Billing Accuracy, Payment Options, Customer Service, Communications and Suggestions for Improvements | C14: There were no identifed needs of the customer in this survey, except for Lower costs and less power outages. The DSP sets out SLHI's plan for continued system renewal in order to decrease the number of power outages due to equipment failure and aging infrastructure.
A15: Facebook | B15: As a communication tool mainly for unexpected power outages to provide customers with information on restoration times etc. It is also used to promote conservation programs and any other important industry related news. | C15: No needs identified
A16: In Office Customer Service and Face-to-face interaction | B16: Customers need local office for customer payments and inquiries including assistance and suppport for arrears management. | C16: Local office open five days a week accepting bill payments and handling inquiries face to face.
A17: Electrical Safety Awareness Survey | B17: Good general knowledge of electrical hazards and safety | C17: No concerns at this time.
A18: Leap Funds to Social Agency | B18: Low-income customers need assistance to pay high heating costs. | C18: SLHI, among other LDCs are mandated to contribute funds to social agencys for the LEAP to support low-income customers in need of resources for paying bills in arrears. The distribution of these funds show this program is highly utillized and needed.
A19: E-Billing and Online Account Services | B19: SLHI provides on-line access to consumption information for customer who sign up for e-billing | C19: Customers find it useful to be able to see their hourly consumption patterns and when they use on, mid and off peak consumption in order to more effectively manage their bill.
A20: Website | B20: Responds to the customers' need for information about the utility, programs offered and other regulatory information. | C20: Important information is found on the SLHI website relating to contact information, scheduled power outage notices, rate information, information on our Online management tool, Programs available for financial assistance (OESP). SLHI Scorecard and Regulatory proceedings.
A21: CDM Programs - RESA | B21: SLHI was under-target in the last Conservation Framework, and identified a need for greater communication with customers | C21: A regional energy services advisor was hired in order to provide customers with on-going information about conservation programs offered in our area, as well as assistance completing paper work for the programs.
A22: Face to Face with large customers | B22: Meeting with the hospital to discuss future plans for retrofits with respect to conservation. | C22: There were no needs identified.
A23: Annual Shareholder's Meeting | B23: As a major customer with several large facilities along with the Street Lighting Account. The Annual Shareholder's Meeting allows SLHI to communicate issues and allows the Shareholder to voice concerns and ask questions on their needs and preferences. At the Shareholder's meeting in June 2017, SLHI made the Municipality aware that the Street Lighting rate class would be materially affected as a result of updated the Cost Allocation Study from 2013. | C23: No needs identifed.
A24: 2018 Investment and Bill Impact Survey | B24: Inform customers of planned capital expenditures, OM&A costs and bill impacts for the 2018 cost of service and ask if they are acceptable to our customers. Just over 50% of Customers indicated SLHI should decrease their capital investment and did not feel the proposed budget was reasonable. 47% indicated that the rate increase was unreasonable. | C24: The increased costs were determined to be necessary in order to operate SLHI going forward. The majority of responses were received by residential customers, and in order to lessen the impact the revenue to cost ratios for the residential and general service classes were adjusted downward from what was initially proposed in the survey to decrease the impact. SLHI has kept increases as low as possible in light of customers' concerns.
A26: Note: Use "ALT-ENTER" to go to the next line within a cell

Sheet App.2-B_Acctg Instructions
A1: General Instructions to MIFRS Appendices
A2: Types of Schedules to File
A4: The purpose of this tab is to provide general instructions. The specific instructions to each appendix are listed in footnotes of each appendix.
A6: The typical applicant is expected to have made capitalization and depreciation policy changes under CGAAP as permitted by the Board on January 1, 2012 or mandated by the Board by January 1, 2013, and adopted IFRS for reporting purposes on January 1, 2015 (transition date January 1, 2014). Some distributors filing for 2018 rates have rebased with these accounting changes reflected in a prior rebasing application. If that is the case, information relating to pre-accounting policy changes is not generally required. The information to be provided by applicants will depend on when the accounting policy changes were made and when they last rebased. In general, applicants should provide the following information in the appendices:
E9: Reflecting Accounting Policy Changes in Current Application | G9: Reflected Accounting Policy Changes in Prior Application3
E10: Accounting Policy Changes in 2012 and Adopted IFRS in 2015 | F10: Accounting Policy Changes in 2013 and Adopted IFRS in 2015 | G10: Adopted IFRS in 2015
A11: Information to be filed in 2018 CoS Application | B11: 2018 | C11: Test | E11: MIFRS | F11: MIFRS | G11: MIFRS
B12: 2017 | C12: Bridge | E12: MIFRS | F12: MIFRS | G12: MIFRS
B13: 2016 | C13: Historical | E13: MIFRS | F13: MIFRS | G13: MIFRS
B14: 2015 | C14: Historical | E14: MIFRS | F14: MIFRS | G14: MIFRS
B15: 2014 | C15: Historical | E15: MIFRS and Revised CGAAP1 | F15: MIFRS and Revised CGAAP1 | G15: MIFRS and Revised CGAAP1
B16: 2013 | C16: Historical | E16: Revised CGAAP | F16: CGAAP and Revised CGAAP2 | G16: N/A
B17: 2012 | C17: Historical | E17: CGAAP and Revised CGAAP2 | F17: N/A | G17: N/A
A19: 1) For the transition year (2014), the applicant may file two appendices, one under Revised CGAAP and one under MIFRS, depending on the materiality of impacts. See the specific instructions under each appendix below for further details.
A20: 2) For applicants that are reflecting accounting policy changes for the first time in a rebasing application, the applicant must file two appendices in the year that the applicant implemented changes to its capitalization and depreciation policies (2012 or 2013), one before and one after the policy changes.
A21: 3) Applicants should provide CGAAP and Revised CGAAP schedules (i.e. as indicated in the first two columns of the above table) to support balances in Account 1576 if the account has yet to be disposed of.
A24: Appendix 2-BA - Fixed Asset Schedule
A26: Applicants are to provide Appendix 2-BA in accordance with the years and corresponding accounting standards noted in the above table to provide a year over year continuity in fixed assets.
A27: For the transition year (2014), the applicant should file two appendices, one under Revised CGAAP and one under MIFRS if the change between Revised CGAAP and MIFRS is material. If the change from the accounting standards is not material, the applicant may choose to only provide one appendix under MIFRS. However, the applicant must also indicate the fixed asset net book value balance under Revised CGAAP, the total dollar value of the change and explain why it is not material.
A31: The applicant must establish the continuity of historic cost for gross assets and accumulated depreciation by asset class by ensuring that the opening balance in the year agrees to the closing balance in the prior year.
A34: Appendix 2-Cx - Depreciation and Amortization
A36: Applicants are to provide Appendix 2-C in accordance with the years and corresponding accounting standards listed in the above table.
A37: Appendix 2-C is to be used under all three of the scenarios presented in the table above. In the appendix, the applicant will need to indicate which scenario applies. The appendix is to be duplicated for each year and accounting standard required under the scenario.
A38: Depreciation accounting policy changes were mandated by the Board by January 1, 2013. In general, no further changes to an applicant's depreciation policy (i.e. assets' service lives) are expected after the Board mandated changes by January 1, 2013. If the applicant has made any changes to its depreciation policy subsequent to the Board mandated changes, for the year of the change, applicants must complete Appendix 2-C before and after the change. Applicants must also explain the nature of the change, the reason for the change, quantify the impact of the change, and quantify the depreciation expense before and after the change.
A40: Appendix 2-E - Account 1575, IFRS-CGAAP Transitional PP&E Amounts (2-EA), Account 1576, Accounting Changes Under CGAAP (2-EB, 2-EC)
A42: 1) For an applicant that has a balance in Account 1576 to dispose:
A43: · | B43: If an applicant changed capitalization and depreciation policies effective January 1, 2012, the applicant must complete Appendix 2-EB
A44: · | B44: If an applicant changed capitalization and depreciation policies effective January 1, 2013, the applicant must complete Appendix 2-EC
A46: 2) For an applicant that has a balance in Account 1575 to dispose:
A47: · | B47: The applicant must complete 2-EA
A48: If the applicant did not make any further PP&E accounting policy changes beyond the capitalization and depreciation policy changes as mandated by the Board by January 1, 2013 (i.e. no further changes made on transition to IFRS), the applicant must indicate this and does not need to complete Appendix 2-EA.
A52: Appendix 2-Y - Summary of Impacts to Revenue Requirement from Transition to MIFRS
A54: An applicant must provide a summary of the dollar impacts of MIFRS to each component of the revenue requirement (e.g. rate base, operating costs, etc.), including the overall impact on the proposed revenue requirement. Accordingly, the applicant must identify financial differences and resulting revenue requirement impacts arising from the adoption of MIFRS as compared to CGAAP. If the applicant is reflecting the changes in capitalization and depreciation policies for the first time in a rebasing application, then a comparison between MIFRS and CGAAP before the change in accounting policies should be completed. If the applicant changed capitalization and depreciation policies and reflected these changes in a prior rebasing application, then a comparison between MIFRS and CGAAP after the change in accounting policies should be completed.

Sheet App.2-BA_Fixed Asset Cont
L1: File Number: | M1: =EBNUMBER -> EB-2017-0073
L2: Exhibit: | M2: 2
L3: Tab:
L4: Schedule:
L5: Page:
L7: Date: | M7: 2017-08-28
A9: Appendix 2-BA
A10: Fixed Asset Continuity Schedule 1
E12: Accounting Standard | F12: CGAAP
E13: Year | F13: 2013
D15: Cost | J15: Accumulated Depreciation
A16: CCA Class 2 | B16: OEB Account 3 | C16: Description 3 | D16: Opening Balance | E16: Additions 4 | F16: Disposals 6 | G16: Closing Balance | I16: Opening Balance | J16: Additions | K16: Disposals 6 | L16: Closing Balance | M16: Net Book Value
A17: 12 | B17: 1611 | C17: Computer Software (Formally known as Account 1925) | D17: 79784.64 | G17: =D17+E17+F17 -> 79784.64 | I17: -44205.81 | J17: -15106.93 | L17: =I17+J17+K17 -> -59312.74 | M17: =G17+L17 -> 20471.9
A18: CEC | B18: 1612 | C18: Land Rights (Formally known as Account 1906) | G18: =D18+E18+F18 -> 0 | L18: =I18+J18+K18 -> 0 | M18: =G18+L18 -> 0
A19: N/A | B19: 1805 | C19: Land | G19: =D19+E19+F19 -> 0 | L19: =I19+J19+K19 -> 0 | M19: =G19+L19 -> 0
A20: 47 | B20: 1808 | C20: Buildings | D20: 91864.15 | G20: =D20+E20+F20 -> 91864.15 | I20: -44696.31 | J20: -3674.56 | L20: =I20+J20+K20 -> -48370.87 | M20: =G20+L20 -> 43493.28
A21: 13 | B21: 1810 | C21: Leasehold Improvements | G21: 0 | L21: 0 | M21: 0
A22: 47 | B22: 1815 | C22: Transformer Station Equipment >50 kV | G22: 0 | L22: 0 | M22: 0
A23: 47 | B23: 1820 | C23: Distribution Station Equipment <50 kV | G23: 0 | L23: 0 | M23: 0
A24: 47 | B24: 1825 | C24: Storage Battery Equipment | G24: 0 | L24: 0 | M24: 0
A25: 47 | B25: 1830 | C25: Poles, Towers & Fixtures | D25: 3655776.24 | E25: 127422.73 | G25: 3783198.97 | I25: -1241689.93 | J25: -72737.61 | L25: -1314427.54 | M25: 2468771.43
A26: 47 | B26: 1835 | C26: Overhead Conductors & Devices | D26: 1088276.89 | E26: 6123.93 | G26: 1094400.82 | I26: -492762.28 | J26: -18049.22 | L26: -510811.5 | M26: 583589.32
A27: 47 | B27: 1840 | C27: Underground Conduit | D27: 178423.97 | E27: 6296.95 | G27: 184720.92 | I27: -70500.4 | J27: -2863.2 | L27: -73363.6 | M27: 111357.32
A28: 47 | B28: 1845 | C28: Underground Conductors & Devices | D28: 910424.32 | E28: 28048.73 | G28: 938473.05 | I28: -322427.07 | J28: -20994.95 | L28: -343422.02 | M28: 595051.03
A29: 47 | B29: 1850 | C29: Line Transformers | D29: 1696557.12 | E29: 50705.77 | G29: 1747262.89 | I29: -618303.37 | J29: -38037.17 | L29: -656340.54 | M29: 1090922.35
A30: 47 | B30: 1855 | C30: Services (Overhead & Underground) | G30: 0 | L30: 0 | M30: 0
A31: 47 | B31: 1860 | C31: Meters | D31: 167758.66 | E31: 1569.21 | G31: 169327.87 | I31: -25456.98 | J31: -12236.58 | L31: -37693.56 | M31: 131634.31
A32: 47 | B32: 1860 | C32: Meters (Smart Meters) | D32: 647486.43 | E32: 2962.76 | F32: -536.03 | G32: 649913.16 | I32: -147660.58 | J32: -43264.52 | K32: 160.82 | L32: -190764.28 | M32: 459148.88
A33: N/A | B33: 1905 | C33: Land | G33: 0 | L33: 0 | M33: 0
A34: 47 | B34: 1908 | C34: Buildings & Fixtures | G34: 0 | L34: 0 | M34: 0
A35: 13 | B35: 1910 | C35: Leasehold Improvements | G35: 0 | L35: 0 | M35: 0
A36: 8 | B36: 1915 | C36: Office Furniture & Equipment (10 years) | D36: 21741.25 | G36: 21741.25 | I36: -8175.84 | J36: -1850.58 | L36: -10026.42 | M36: 11714.83
A37: 8 | B37: 1915 | C37: Office Furniture & Equipment (5 years) | G37: 0 | L37: 0 | M37: 0
A38: 10 | B38: 1920 | C38: Computer Equipment - Hardware | D38: 68885.26 | E38: 3155.45 | F38: -880 | G38: 71160.71 | I38: -41286.54 | J38: -9569.99 | K38: 88 | L38: -50768.53 | M38: 20392.18
A39: 45 | B39: 1920 | C39: Computer Equip.-Hardware(Post Mar. 22/04) | G39: 0 | L39: 0 | M39: 0
A40: 45.1 | B40: 1920 | C40: Computer Equip.-Hardware(Post Mar. 19/07) | G40: 0 | L40: 0 | M40: 0
A41: 10 | B41: 1930 | C41: Transportation Equipment(8 years) | D41: 382970.8 | G41: 382970.8 | I41: -321540.66 | J41: -12981.89 | L41: -334522.55 | M41: 48448.25
A42: 10 | B42: 1930 | C42: Transportation Equipment(5 years) | D42: 90317.12 | G42: 90317.12 | I42: -78363.69 | J42: -6236.59 | L42: -84600.28 | M42: 5716.84
A43: 8 | B43: 1940 | C43: Tools, Shop & Garage Equipment | D43: 84767.65 | E43: 1356.74 | G43: 86124.39 | I43: -58692.2 | J43: -7854.41 | L43: -66546.61 | M43: 19577.78
A44: 8 | B44: 1945 | C44: Measurement & Testing Equipment | D44: 12693.24 | E44: 6144.75 | G44: 18837.99 | I44: -10561.21 | J44: -1250.67 | L44: -11811.88 | M44: 7026.11
A45: 8 | B45: 1950 | C45: Power Operated Equipment(8 years) | D45: 37613.38 | E45: 85090 | G45: 122703.38 | I45: -20307.13 | J45: -13561.25 | L45: -33868.38 | M45: 88835
A46: 8 | B46: 1950 | C46: Power Operated Equipment(5 years) | D46: 98907.97 | G46: 98907.97 | I46: -96657.17 | J46: -987.05 | L46: -97644.22 | M46: 1263.75
A47: 8 | B47: 1955 | C47: Communication Equipment | D47: 38568.68 | G47: 38568.68 | I47: -31948.82 | J47: -1627.48 | L47: -33576.3 | M47: 4992.38
A48: 8 | B48: 1960 | C48: Miscellaneous Equipment | G48: 0 | L48: 0 | M48: 0
A49: 47 | B49: 1970 | C49: Load Management Controls Customer Premises | G49: 0 | L49: 0 | M49: 0
A50: 47 | B50: 1975 | C50: Load Management Controls Utility Premises | G50: 0 | L50: 0 | M50: 0
A51: 47 | B51: 1980 | C51: System Supervisor Equipment | G51: 0 | L51: 0 | M51: 0
A52: 47 | B52: 1985 | C52: Miscellaneous Fixed Assets | D52: 29441.15 | E52: 1067.26 | G52: 30508.41 | I52: -22198.45 | J52: -1419.8 | L52: -23618.25 | M52: 6890.16
A53: 47 | B53: 1990 | C53: Other Tangible Property | G53: 0 | L53: 0 | M53: 0
A54: 47 | B54: 1995 | C54: Contributions & Grants | D54: -975244.14 | E54: -62891.12 | G54: -1038135.26 | I54: 231762.49 | J54: 30851.48 | L54: 262613.97 | M54: -775521.29
A55: 47 | B55: 2440 | C55: Deferred Revenue5
G56: 0 | L56: 0 | M56: 0
C57: Sub-Total | D57: =SUM(D17:D56) -> 8407014.78 | E57: =SUM(E17:E56) -> 257053.16 | F57: =SUM(F17:F56) -> -1416.03 | G57: =SUM(G17:G56) -> 8662651.91 | I57: =SUM(I17:I56) -> -3465671.95 | J57: =SUM(J17:J56) -> -253452.97 | K57: =SUM(K17:K56) -> 248.82 | L57: =SUM(L17:L56) -> -3718876.1 | M57: =SUM(M17:M56) -> 4943775.81
C58: Less Socialized Renewable Energy Generation Investments (input as negative) | G58: =D58+E58+F58 -> 0 | L58: =I58+J58+K58 -> 0 | M58: =G58+L58 -> 0
C59: Less Other Non Rate-Regulated Utility Assets (input as negative) | D59: -29441.15 | E59: -1067.26 | G59: -30508.41 | I59: 22198.45 | J59: 1419.8 | L59: =I59+J59+K59 -> 23618.25 | M59: -6890.16
C60: Total PP&E | D60: =SUM(D57:D59) -> 8377573.63 | E60: =SUM(E57:E59) -> 255985.9 | F60: =SUM(F57:F59) -> -1416.03 | G60: =SUM(G57:G59) -> 8632143.5 | I60: =SUM(I57:I59) -> -3443473.5 | J60: =SUM(J57:J59) -> -252033.17 | K60: =SUM(K57:K59) -> 248.82 | L60: =SUM(L57:L59) -> -3695257.85 | M60: =SUM(M57:M59) -> 4936885.65
C61: Depreciation Expense adj. from gain or loss on the retirement of assets (pool of like assets), if applicable6
C62: Total | J62: =J60+J61 -> -252033.17
I64: Less: Fully Allocated Depreciation
B65: 2013 COS Decision EB_2012-0165 | I65: OEB 1576 | K65: -24296
A66: 10 | C66: Transportation | I66: Transportation | K66: =SUM(J41:J42) -> -19218.48
A67: 8 | C67: Tools and Equipment | I67: Tools | K67: =SUM(J43,J44,J45,J46,J47) -> -25280.86
I68: Net Depreciation | K68: =J62-K65-K66-K67 -> -183237.83
E71: Accounting Standard | F71: CGAAP
E72: Year | F72: 2014
D74: Cost | J74: Accumulated Depreciation
A75: CCA Class 2 | B75: OEB Account 3 | C75: Description 3 | D75: Opening Balance | E75: Additions 4 | F75: Disposals 6 | G75: Closing Balance | I75: Opening Balance | J75: Additions | K75: Disposals 6 | L75: Closing Balance | M75: Net Book Value
A76: 12 | B76: 1611 | C76: Computer Software (Formally known as Account 1925) | D76: =G17 -> 79784.64 | E76: 40850 | G76: =D76+E76+F76 -> 120634.64 | I76: =L17 -> -59312.74 | J76: -16310.26 | L76: =I76+J76+K76 -> -75623 | M76: =G76+L76 -> 45011.64
A77: CEC | B77: 1612 | C77: Land Rights (Formally known as Account 1906) | D77: 0 | G77: =D77+E77+F77 -> 0 | I77: 0 | L77: =I77+J77+K77 -> 0 | M77: =G77+L77 -> 0
A78: N/A | B78: 1805 | C78: Land | D78: 0 | G78: =D78+E78+F78 -> 0 | I78: 0 | L78: =I78+J78+K78 -> 0 | M78: =G78+L78 -> 0
A79: 47 | B79: 1808 | C79: Buildings | D79: 91864.15 | G79: =D79+E79+F79 -> 91864.15 | I79: -48370.87 | J79: -3674.56 | L79: =I79+J79+K79 -> -52045.43 | M79: =G79+L79 -> 39818.72
A80: 13 | B80: 1810 | C80: Leasehold Improvements | D80: 0 | G80: 0 | I80: 0 | L80: 0 | M80: 0
A81: 47 | B81: 1815 | C81: Transformer Station Equipment >50 kV | D81: 0 | G81: 0 | I81: 0 | L81: 0 | M81: 0
A82: 47 | B82: 1820 | C82: Distribution Station Equipment <50 kV | D82: 0 | G82: 0 | I82: 0 | L82: 0 | M82: 0
A83: 47 | B83: 1825 | C83: Storage Battery Equipment | D83: 0 | G83: 0 | I83: 0 | L83: 0 | M83: 0
A84: 47 | B84: 1830 | C84: Poles, Towers & Fixtures | D84: 3783198.97 | E84: 174466.81 | G84: 3957665.78 | I84: -1314427.54 | J84: -76091.94 | L84: -1390519.48 | M84: 2567146.3
A85: 47 | B85: 1835 | C85: Overhead Conductors & Devices | D85: 1094400.82 | E85: 5330.07 | G85: 1099730.89 | I85: -510811.5 | J85: -18235.7 | L85: -529047.2 | M85: 570683.69
A86: 47 | B86: 1840 | C86: Underground Conduit | D86: 184720.92 | E86: 905.4 | G86: 185626.32 | I86: -73363.6 | J86: -2935.23 | L86: -76298.83 | M86: 109327.49
A87: 47 | B87: 1845 | C87: Underground Conductors & Devices | D87: 938473.05 | E87: 13197.21 | G87: 951670.26 | I87: -343422.02 | J87: -21510.53 | L87: -364932.55 | M87: 586737.71
A88: 47 | B88: 1850 | C88: Line Transformers | D88: 1747262.89 | E88: 54575.69 | G88: 1801838.58 | I88: -656340.54 | J88: -39353.19 | L88: -695693.73 | M88: 1106144.85
A89: 47 | B89: 1855 | C89: Services (Overhead & Underground) | D89: 0 | G89: 0 | I89: 0 | L89: 0 | M89: 0
A90: 47 | B90: 1860 | C90: Meters | D90: 169327.87 | E90: 5221.32 | G90: 174549.19 | I90: -37693.56 | J90: -12372.4 | L90: -50065.96 | M90: 124483.23
A91: 47 | B91: 1860 | C91: Meters (Smart Meters) | D91: 649913.16 | E91: 12125.32 | F91: -15905.24 | G91: 646133.24 | I91: -190764.28 | J91: -43731.72 | K91: 5211.84 | L91: -229284.16 | M91: 416849.08
A92: N/A | B92: 1905 | C92: Land | D92: 0 | G92: 0 | I92: 0 | L92: 0 | M92: 0
A93: 47 | B93: 1908 | C93: Buildings & Fixtures | D93: 0 | G93: 0 | I93: 0 | L93: 0 | M93: 0
A94: 13 | B94: 1910 | C94: Leasehold Improvements | D94: 0 | G94: 0 | I94: 0 | L94: 0 | M94: 0
A95: 8 | B95: 1915 | C95: Office Furniture & Equipment (10 years) | D95: 21741.25 | E95: 277.99 | F95: -475.15 | G95: 21544.09 | I95: -10026.42 | J95: -1766.47 | K95: 320.73 | L95: -11472.16 | M95: 10071.93
A96: 8 | B96: 1915 | C96: Office Furniture & Equipment (5 years) | D96: 0 | G96: 0 | I96: 0 | L96: 0 | M96: 0
A97: 10 | B97: 1920 | C97: Computer Equipment - Hardware | D97: 71160.71 | E97: 1000 | G97: 72160.71 | I97: -50768.53 | J97: -4789.2 | L97: -55557.73 | M97: 16602.98
A98: 45 | B98: 1920 | C98: Computer Equip.-Hardware(Post Mar. 22/04) | D98: 0 | G98: 0 | I98: 0 | L98: 0 | M98: 0
A99: 45.1 | B99: 1920 | C99: Computer Equip.-Hardware(Post Mar. 19/07) | D99: 0 | G99: 0 | I99: 0 | L99: 0 | M99: 0
A100: 10 | B100: 1930 | C100: Transportation Equipment(8 years) | D100: 382970.8 | G100: 382970.8 | I100: -334522.55 | J100: -12981.89 | L100: -347504.44 | M100: 35466.36
A101: 10 | B101: 1930 | C101: Transportation Equipment(5 years) | D101: 90317.12 | E101: 54538.75 | F101: -34497.2 | G101: 110358.67 | I101: -84600.28 | J101: -11170.72 | K101: 34497.2 | L101: -61273.8 | M101: 49084.87
A102: 8 | B102: 1940 | C102: Tools, Shop & Garage Equipment | D102: 86124.39 | E102: 3504.33 | G102: 89628.72 | I102: -66546.61 | J102: -7659.28 | L102: -74205.89 | M102: 15422.83
A103: 8 | B103: 1945 | C103: Measurement & Testing Equipment | D103: 18837.99 | G103: 18837.99 | I103: -11811.88 | J103: -1354.26 | L103: -13166.14 | M103: 5671.85
A104: 8 | B104: 1950 | C104: Power Operated Equipment(8 years) | D104: 122703.38 | G104: 122703.38 | I104: -33868.38 | J104: -13561.25 | L104: -47429.63 | M104: 75273.75
A105: 8 | B105: 1950 | C105: Power Operated Equipment(5 years) | D105: 98907.97 | G105: 98907.97 | I105: -97644.22 | J105: -916.78 | L105: -98561 | M105: 346.97
A106: 8 | B106: 1955 | C106: Communication Equipment | D106: 38568.68 | E106: 4441.46 | G106: 43010.14 | I106: -33576.3 | J106: -1819.28 | L106: -35395.58 | M106: 7614.56
A107: 8 | B107: 1960 | C107: Miscellaneous Equipment | D107: 0 | G107: 0 | I107: 0 | L107: 0 | M107: 0
A108: 47 | B108: 1970 | C108: Load Management Controls Customer Premises | D108: 0 | G108: 0 | I108: 0 | L108: 0 | M108: 0
A109: 47 | B109: 1975 | C109: Load Management Controls Utility Premises | D109: 0 | G109: 0 | I109: 0 | L109: 0 | M109: 0
A110: 47 | B110: 1980 | C110: System Supervisor Equipment | D110: 0 | G110: 0 | I110: 0 | L110: 0 | M110: 0
A111: 47 | B111: 1985 | C111: Miscellaneous Fixed Assets | D111: 30508.41 | E111: 178.42 | G111: 30686.83 | I111: -23618.25 | J111: -1313.73 | L111: -24931.98 | M111: 5754.85
A112: 47 | B112: 1990 | C112: Other Tangible Property | D112: 0 | G112: 0 | I112: 0 | L112: 0 | M112: 0
A113: 47 | B113: 1995 | C113: Contributions & Grants | D113: -1038135.26 | E113: -43493.51 | G113: -1081628.77 | I113: 262613.97 | J113: 32190.05 | L113: 294804.02 | M113: -786824.75
A114: 47 | B114: 2440 | C114: Deferred Revenue5 | D114: 0 | G114: 0 | I114: 0 | L114: 0 | M114: 0
D115: 0 | G115: =D115+E115+F115 -> 0 | I115: 0 | L115: =I115+J115+K115 -> 0 | M115: =G115+L115 -> 0
C116: Sub-Total | D116: =SUM(D76:D115) -> 8662651.91 | E116: =SUM(E76:E115) -> 327119.26 | F116: =SUM(F76:F115) -> -50877.59 | G116: =SUM(G76:G115) -> 8938893.58 | I116: =SUM(I76:I115) -> -3718876.1 | J116: =SUM(J76:J115) -> -259358.34 | K116: =SUM(K76:K115) -> 40029.77 | L116: =SUM(L76:L115) -> -3938204.67 | M116: =SUM(M76:M115) -> 5000688.91
C117: Less Socialized Renewable Energy Generation Investments (input as negative) | G117: =D117+E117+F117 -> 0 | L117: =I117+J117+K117 -> 0 | M117: =G117+L117 -> 0
C118: Less Other Non Rate-Regulated Utility Assets (input as negative) | D118: =G59 -> -30508.41 | E118: -178.42 | G118: =D118+E118+F118 -> -30686.83 | I118: =L59 -> 23618.25 | J118: 1313.73 | L118: =I118+J118+K118 -> 24931.98 | M118: =G118+L118 -> -5754.85
C119: Total PP&E | D119: =SUM(D116:D118) -> 8632143.5 | E119: =SUM(E116:E118) -> 326940.84 | F119: =SUM(F116:F118) -> -50877.59 | G119: =SUM(G116:G118) -> 8908206.75 | I119: =SUM(I116:I118) -> -3695257.85 | J119: =SUM(J116:J118) -> -258044.61 | K119: =SUM(K116:K118) -> 40029.77 | L119: =SUM(L116:L118) -> -3913272.69 | M119: =SUM(M116:M118) -> 4994934.06
C120: Depreciation Expense adj. from gain or loss on the retirement of assets (pool of like assets), if applicable6
C121: Total | J121: =J119+J120 -> -258044.61
I123: Less: Fully Allocated Depreciation
B124: 2013 COS Decision EB_2012-0165 | I124: OEB 1576 | K124: -24296
A125: 10 | C125: Transportation | I125: Transportation | K125: =SUM(J100:J101) -> -24152.61
A126: 8 | C126: Tools and Equipment | I126: Tools and Equipment | K126: =SUM(J102:J106) -> -25310.85
I127: Net Depreciation | K127: =J121-K124-K125-K126 -> -184285.15
E130: Accounting Standard | F130: MIFRS
E131: Year | F131: 2014
D133: Cost | J133: Accumulated Depreciation
A134: CCA Class 2 | B134: OEB Account 3 | C134: Description 3 | D134: Opening Balance | E134: Additions 4 | F134: Disposals 6 | G134: Closing Balance | I134: Opening Balance | J134: Additions | K134: Disposals 6 | L134: Closing Balance | M134: Net Book Value
A135: 12 | B135: 1611 | C135: Computer Software (Formally known as Account 1925) | D135: =G17 -> 79784.64 | E135: 40850 | G135: =D135+E135+F135 -> 120634.64 | I135: =L17 -> -59312.74 | J135: -16310.26 | L135: =I135+J135+K135 -> -75623 | M135: =G135+L135 -> 45011.64
A136: CEC | B136: 1612 | C136: Land Rights (Formally known as Account 1906) | D136: 0 | G136: =D136+E136+F136 -> 0 | I136: 0 | L136: 0 | M136: 0
A137: N/A | B137: 1805 | C137: Land | D137: 0 | G137: =D137+E137+F137 -> 0 | I137: 0 | L137: 0 | M137: 0
A138: 47 | B138: 1808 | C138: Buildings | D138: 91864.15 | G138: =D138+E138+F138 -> 91864.15 | I138: -48370.87 | J138: -3674.56 | L138: -52045.43 | M138: 39818.72
A139: 13 | B139: 1810 | C139: Leasehold Improvements | D139: 0 | G139: 0 | I139: 0 | L139: 0 | M139: 0
A140: 47 | B140: 1815 | C140: Transformer Station Equipment >50 kV | D140: 0 | G140: 0 | I140: 0 | L140: 0 | M140: 0
A141: 47 | B141: 1820 | C141: Distribution Station Equipment <50 kV | D141: 0 | G141: 0 | I141: 0 | L141: 0 | M141: 0
A142: 47 | B142: 1825 | C142: Storage Battery Equipment | D142: 0 | G142: 0 | I142: 0 | L142: 0 | M142: 0
A143: 47 | B143: 1830 | C143: Poles, Towers & Fixtures | D143: 3783198.97 | E143: 174466.81 | F143: -53473 | G143: 3904192.78 | I143: -1314427.54 | J143: -75122 | K143: 36566 | L143: -1352983.54 | M143: 2551209.24
A144: 47 | B144: 1835 | C144: Overhead Conductors & Devices | D144: 1094400.82 | E144: 5330.07 | G144: 1099730.89 | I144: -510811.5 | J144: -18180.12 | L144: -528991.62 | M144: 570739.27
A145: 47 | B145: 1840 | C145: Underground Conduit | D145: 184720.92 | E145: 905.4 | G145: 185626.32 | I145: -73363.6 | J145: -2938 | L145: -76301.6 | M145: 109324.72
A146: 47 | B146: 1845 | C146: Underground Conductors & Devices | D146: 938473.05 | E146: 13197.21 | G146: 951670.26 | I146: -343422.02 | J146: -21535 | L146: -364957.02 | M146: 586713.24
A147: 47 | B147: 1850 | C147: Line Transformers | D147: 1747262.89 | E147: 54575.69 | F147: -38945 | G147: 1762893.58 | I147: -656340.54 | J147: -37959 | K147: 18027 | L147: -676272.54 | M147: 1086621.04
A148: 47 | B148: 1855 | C148: Services (Overhead & Underground) | D148: 0 | G148: 0 | I148: 0 | L148: 0 | M148: 0
A149: 47 | B149: 1860 | C149: Meters | D149: 169327.87 | E149: 5221.32 | G149: 174549.19 | I149: -37693.56 | J149: -12372.4 | L149: -50065.96 | M149: 124483.23
A150: 47 | B150: 1860 | C150: Meters (Smart Meters) | D150: 649913.16 | E150: 12125.32 | F150: -15905.24 | G150: 646133.24 | I150: -190764.28 | J150: -43731.72 | K150: 5211.84 | L150: -229284.16 | M150: 416849.08
A151: N/A | B151: 1905 | C151: Land | D151: 0 | G151: 0 | I151: 0 | L151: 0 | M151: 0
A152: 47 | B152: 1908 | C152: Buildings & Fixtures | D152: 0 | G152: 0 | I152: 0 | L152: 0 | M152: 0
A153: 13 | B153: 1910 | C153: Leasehold Improvements | D153: 0 | G153: 0 | I153: 0 | L153: 0 | M153: 0
A154: 8 | B154: 1915 | C154: Office Furniture & Equipment (10 years) | D154: 21741.25 | E154: 277.99 | F154: -475.15 | G154: 21544.09 | I154: -10026.42 | J154: -1766.47 | K154: 320.73 | L154: -11472.16 | M154: 10071.93
A155: 8 | B155: 1915 | C155: Office Furniture & Equipment (5 years) | D155: 0 | G155: 0 | I155: 0 | L155: 0 | M155: 0
A156: 10 | B156: 1920 | C156: Computer Equipment - Hardware | D156: 71160.71 | E156: 1000 | G156: 72160.71 | I156: -50768.53 | J156: -4789.2 | L156: -55557.73 | M156: 16602.98
A157: 45 | B157: 1920 | C157: Computer Equip.-Hardware(Post Mar. 22/04) | D157: 0 | G157: 0 | I157: 0 | L157: 0 | M157: 0
A158: 45.1 | B158: 1920 | C158: Computer Equip.-Hardware(Post Mar. 19/07) | D158: 0 | G158: 0 | I158: 0 | L158: 0 | M158: 0
A159: 10 | B159: 1930 | C159: Transportation Equipment(8 years) | D159: 382970.8 | G159: 382970.8 | I159: -334522.55 | J159: -12981.89 | L159: -347504.44 | M159: 35466.36
A160: 10 | B160: 1930 | C160: Transportation Equipment(5 years) | D160: 90317.12 | E160: 54538.75 | F160: -34497.2 | G160: 110358.67 | I160: -84600.28 | J160: -11170.72 | K160: 34497.2 | L160: -61273.8 | M160: 49084.87
A161: 8 | B161: 1940 | C161: Tools, Shop & Garage Equipment | D161: 86124.39 | E161: 3504.33 | G161: 89628.72 | I161: -66546.61 | J161: -7659.28 | L161: -74205.89 | M161: 15422.83
A162: 8 | B162: 1945 | C162: Measurement & Testing Equipment | D162: 18837.99 | G162: 18837.99 | I162: -11811.88 | J162: -1354.26 | L162: -13166.14 | M162: 5671.85
A163: 8 | B163: 1950 | C163: Power Operated Equipment(8 years) | D163: 122703.38 | G163: 122703.38 | I163: -33868.38 | J163: -13561.25 | L163: -47429.63 | M163: 75273.75
A164: 8 | B164: 1950 | C164: Power Operated Equipment(5 years) | D164: 98907.97 | G164: 98907.97 | I164: -97644.22 | J164: -916.78 | L164: -98561 | M164: 346.97
A165: 8 | B165: 1955 | C165: Communication Equipment | D165: 38568.68 | E165: 4441.46 | G165: 43010.14 | I165: -33576.3 | J165: -1819.28 | L165: -35395.58 | M165: 7614.56
A166: 8 | B166: 1960 | C166: Miscellaneous Equipment | D166: 0 | G166: 0 | I166: 0 | L166: 0 | M166: 0
A167: 47 | B167: 1970 | C167: Load Management Controls Customer Premises | D167: 0 | G167: 0 | I167: 0 | L167: 0 | M167: 0
A168: 47 | B168: 1975 | C168: Load Management Controls Utility Premises | D168: 0 | G168: 0 | I168: 0 | L168: 0 | M168: 0
A169: 47 | B169: 1980 | C169: System Supervisor Equipment | D169: 0 | G169: 0 | I169: 0 | L169: 0 | M169: 0
A170: 47 | B170: 1985 | C170: Miscellaneous Fixed Assets | D170: 30508.41 | E170: 178.42 | G170: 30686.83 | I170: -23618.25 | J170: -1313.73 | L170: -24931.98 | M170: 5754.85
A171: 47 | B171: 1990 | C171: Other Tangible Property | D171: 0 | G171: 0 | I171: 0 | L171: 0 | M171: 0
A172: 47 | B172: 1995 | C172: Contributions & Grants | D172: -1038135.26 | G172: -1038135.26 | I172: 262613.97 | J172: 30897.49 | L172: 293511.46 | M172: -744623.8
A173: 47 | B173: 2440 | C173: Deferred Revenue5 | D173: 0 | E173: -43493.51 | G173: -43493.51 | I173: 0 | J173: 1292.55 | L173: 1292.55 | M173: -42200.96
G174: =D174+E174+F174 -> 0 | I174: 0 | L174: =I174+J174+K174 -> 0
C175: Sub-Total | D175: =SUM(D135:D174) -> 8662651.91 | E175: =SUM(E135:E174) -> 327119.26 | F175: =SUM(F135:F174) -> -143295.59 | G175: =SUM(G135:G174) -> 8846475.58 | I175: =SUM(I135:I174) -> -3718876.1 | J175: =SUM(J135:J174) -> -256965.88 | K175: =SUM(K135:K174) -> 94622.77 | L175: =SUM(L135:L174) -> -3881219.21 | M175: =SUM(M135:M174) -> 4965256.37
C176: Less Socialized Renewable Energy Generation Investments (input as negative) | G176: =D176+E176+F176 -> 0 | L176: =I176+J176+K176 -> 0 | M176: =G176+L176 -> 0
C177: Less Other Non Rate-Regulated Utility Assets (input as negative) | D177: =G59 -> -30508.41 | E177: -178.42 | G177: =D177+E177+F177 -> -30686.83 | I177: =L59 -> 23618.25 | J177: 1313.73 | L177: =I177+J177+K177 -> 24931.98 | M177: =G177+L177 -> -5754.85
C178: Total PP&E | D178: =SUM(D175:D177) -> 8632143.5 | E178: =SUM(E175:E177) -> 326940.84 | F178: =SUM(F175:F177) -> -143295.59 | G178: =SUM(G175:G177) -> 8815788.75 | I178: =SUM(I175:I177) -> -3695257.85 | J178: =SUM(J175:J177) -> -255652.15 | K178: =SUM(K175:K177) -> 94622.77 | L178: =SUM(L175:L177) -> -3856287.23 | M178: =SUM(M175:M177) -> 4959501.52
C179: Depreciation Expense adj. from gain or loss on the retirement of assets (pool of like assets), if applicable6
C180: Total | J180: =J178+J179 -> -255652.15
I182: Less: Fully Allocated Depreciation
I183: Deferred Revenue | K183: =J173 -> 1292.55
B184: 2013 COS Decision EB_2012-0165 | I184: OEB 1576 | K184: -24296
A185: 10 | C185: Transportation | I185: Transportation | K185: =SUM(J159:J160) -> -24152.61
A186: 8 | C186: Tools and Equipment | I186: Tools and Equipment | K186: =SUM(J161:J165) -> -25310.85
I187: Net Depreciation | K187: =J180-K183-K184-K185-K186 -> -183185.24
E190: Accounting Standard | F190: MIFRS
E191: Year | F191: 2015
D193: Cost | J193: Accumulated Depreciation
A194: CCA Class 2 | B194: OEB Account 3 | C194: Description 3 | D194: Opening Balance | E194: Additions 4 | F194: Disposals 6 | G194: Closing Balance | I194: Opening Balance | J194: Additions | K194: Disposals 6 | L194: Closing Balance | M194: Net Book Value
A195: 12 | B195: 1611 | C195: Computer Software (Formally known as Account 1925) | D195: =G135 -> 120634.64 | E195: 1163 | G195: =D195+E195+F195 -> 121797.64 | I195: =L135 -> -75623 | J195: -13846.26 | L195: =I195+J195+K195 -> -89469.26 | M195: =G195+L195 -> 32328.38
A196: CEC | B196: 1612 | C196: Land Rights (Formally known as Account 1906) | D196: 0 | G196: =D196+E196+F196 -> 0 | I196: 0 | L196: 0 | M196: 0
A197: N/A | B197: 1805 | C197: Land | D197: 0 | G197: =D197+E197+F197 -> 0 | I197: 0 | L197: 0 | M197: 0
A198: 47 | B198: 1808 | C198: Buildings | D198: 91864.15 | G198: =D198+E198+F198 -> 91864.15 | I198: -52045.43 | J198: -3674.56 | L198: -55719.99 | M198: 36144.16
A199: 13 | B199: 1810 | C199: Leasehold Improvements | D199: 0 | G199: 0 | I199: 0 | L199: 0 | M199: 0
A200: 47 | B200: 1815 | C200: Transformer Station Equipment >50 kV | D200: 0 | G200: 0 | I200: 0 | L200: 0 | M200: 0
A201: 47 | B201: 1820 | C201: Distribution Station Equipment <50 kV | D201: 0 | G201: 0 | I201: 0 | L201: 0 | M201: 0
A202: 47 | B202: 1825 | C202: Storage Battery Equipment | D202: 0 | G202: 0 | I202: 0 | L202: 0 | M202: 0
A203: 47 | B203: 1830 | C203: Poles, Towers & Fixtures | D203: 3904192.78 | E203: 170006.31 | F203: -15438.46 | G203: 4058760.63 | I203: -1352983.54 | J203: -79315.62 | K203: 8740.27 | L203: -1423558.89 | M203: 2635201.74
A204: 47 | B204: 1835 | C204: Overhead Conductors & Devices | D204: 1099730.89 | E204: 26651.11 | F204: -10418.58 | G204: 1115963.42 | I204: -528991.62 | J204: -18509.21 | K204: 9562.89 | L204: -537937.94 | M204: 578025.48
A205: 47 | B205: 1840 | C205: Underground Conduit | D205: 185626.32 | E205: 1730.03 | G205: 187356.35 | I205: -76301.6 | J205: -2964.08 | L205: -79265.68 | M205: 108090.67
A206: 47 | B206: 1845 | C206: Underground Conductors & Devices | D206: 951670.26 | E206: 24992.91 | G206: 976663.17 | I206: -364957.02 | J206: -22008.41 | L206: -386965.43 | M206: 589697.74
A207: 47 | B207: 1850 | C207: Line Transformers | D207: 1762893.58 | E207: 40013.04 | F207: -4174.46 | G207: 1798732.16 | I207: -676272.54 | J207: -39781.16 | K207: 2393.61 | L207: -713660.09 | M207: 1085072.07
A208: 47 | B208: 1855 | C208: Services (Overhead & Underground) | D208: 0 | G208: 0 | I208: 0 | L208: 0 | M208: 0
A209: 47 | B209: 1860 | C209: Meters | D209: 174549.19 | E209: 4025.4 | G209: 178574.59 | I209: -50065.96 | J209: -12557.33 | L209: -62623.29 | M209: 115951.3
A210: 47 | B210: 1860 | C210: Meters (Smart Meters) | D210: 646133.24 | F210: -3457.33 | G210: 642675.91 | I210: -229284.16 | J210: -43075.55 | K210: 1415.7 | L210: -270944.01 | M210: 371731.9
A211: N/A | B211: 1905 | C211: Land | D211: 0 | G211: 0 | I211: 0 | L211: 0 | M211: 0
A212: 47 | B212: 1908 | C212: Buildings & Fixtures | D212: 0 | G212: 0 | I212: 0 | L212: 0 | M212: 0
A213: 13 | B213: 1910 | C213: Leasehold Improvements | D213: 0 | G213: 0 | I213: 0 | L213: 0 | M213: 0
A214: 8 | B214: 1915 | C214: Office Furniture & Equipment (10 years) | D214: 21544.09 | E214: 2317.9 | G214: 23861.99 | I214: -11472.16 | J214: -1784.91 | L214: -13257.07 | M214: 10604.92
A215: 8 | B215: 1915 | C215: Office Furniture & Equipment (5 years) | D215: 0 | G215: 0 | I215: 0 | L215: 0 | M215: 0
A216: 10 | B216: 1920 | C216: Computer Equipment - Hardware | D216: 72160.71 | E216: 1830 | G216: 73990.71 | I216: -55557.73 | J216: -5101.17 | L216: -60658.9 | M216: 13331.81
... 203 more rows

Sheet Appendix 2-BB Service Life
N1: File Number: | P1: ='LDC Info'!E16 -> EB-2017-0073
N2: Exhibit: | P2: 4
N3: Tab:
N4: Schedule:
N5: Page:
N7: Date: | P7: 2017-08-28
A9: Appendix 2-BB
A10: Service Life Comparison
A11: Table F-1 from Kinetrics Report1
C15: Asset Details | F15: Useful Life | J15: USoA Account Number | K15: USoA Account Description | L15: Current | N15: Proposed | P15: Outside Range of Min, Max TUL?
A16: Parent* | B16: # | C16: Category| Component | Type | F16: MIN UL | G16: TUL | H16: MAX UL | L16: Years | M16: Rate | N16: Years | O16: Rate | P16: Below Min TUL | Q16: Above Max TUL
A17: OH | B17: 1 | C17: Fully Dressed Wood Poles | D17: Overall | F17: 35 | G17: 45 | H17: 75 | J17: 1830 | K17: Poles, Towers and Fixtures | L17: 45 | M17: =IF(ISERROR(1/L17), "", 1/L17) -> 0.02222222222 | N17: 45 | O17: =IF(ISERROR(1/N17), "", 1/N17) -> 0.02222222222 | P17: =IF(ISBLANK(N17),"",IF(N17<F17,"Yes","No")) -> No | Q17: =IF(ISBLANK(N17),"",IF(N17>H17,"Yes","No")) -> No
D18: Cross Arm | E18: Wood | F18: 20 | G18: 40 | H18: 55 | M18: =IF(ISERROR(1/L18), "", 1/L18) ->  | O18: =IF(ISERROR(1/N18), "", 1/N18) ->  | P18: =IF(ISBLANK(N18),"",IF(N18<F18,"Yes","No")) ->  | Q18: =IF(ISBLANK(N18),"",IF(N18>H18,"Yes","No")) -> 
E19: Steel | F19: 30 | G19: 70 | H19: 95
B20: 2 | C20: Fully Dressed Concrete Poles | D20: Overall | F20: 50 | G20: 60 | H20: 80
D21: Cross Arm | E21: Wood | F21: 20 | G21: 40 | H21: 55
E22: Steel | F22: 30 | G22: 70 | H22: 95
B23: 3 | C23: Fully Dressed Steel Poles | D23: Overall | F23: 60 | G23: 60 | H23: 80
D24: Cross Arm | E24: Wood | F24: 20 | G24: 40 | H24: 55
E25: Steel | F25: 30 | G25: 70 | H25: 95
B26: 4 | C26: OH Line Switch | F26: 30 | G26: 45 | H26: 55
B27: 5 | C27: OH Line Switch Motor | F27: 15 | G27: 25 | H27: 25
B28: 6 | C28: OH Line Switch RTU | F28: 15 | G28: 20 | H28: 20
B29: 7 | C29: OH Integral Switches | F29: 35 | G29: 45 | H29: 60
B30: 8 | C30: OH Conductors | F30: 50 | G30: 60 | H30: 75 | J30: 1835 | K30: Overhead Conductors & Devices | L30: 45 | M30: 0.02222222222 | N30: 45 | O30: 0.02222222222 | P30: Yes | Q30: No
B31: 9 | C31: OH Transformers & Voltage Regulators | F31: 30 | G31: 40 | H31: 60 | J31: 1850 | K31: Line Transformers | L31: 40 | M31: 0.025 | N31: 40 | O31: 0.025 | P31: No | Q31: No
B32: 10 | C32: OH Shunt Capacitor Banks | F32: 25 | G32: 30 | H32: 40
B33: 11 | C33: Reclosers | F33: 25 | G33: 40 | H33: 55
A34: TS & MS | B34: 12 | C34: Power Transformers | D34: Overall | F34: 30 | G34: 45 | H34: 60
D35: Bushing | F35: 10 | G35: 20 | H35: 30
D36: Tap Changer | F36: 20 | G36: 30 | H36: 60
B37: 13 | C37: Station Service Transformer | F37: 30 | G37: 45 | H37: 55
B38: 14 | C38: Station Grounding Transformer | F38: 30 | G38: 40 | H38: 40
B39: 15 | C39: Station DC System | D39: Overall | F39: 10 | G39: 20 | H39: 30
D40: Battery Bank | F40: 10 | G40: 15 | H40: 15
D41: Charger | F41: 20 | G41: 20 | H41: 30
B42: 16 | C42: Station Metal Clad Switchgear | D42: Overall | F42: 30 | G42: 40 | H42: 60
D43: Removable Breaker | F43: 25 | G43: 40 | H43: 60
B44: 17 | C44: Station Independent Breakers | F44: 35 | G44: 45 | H44: 65
B45: 18 | C45: Station Switch | F45: 30 | G45: 50 | H45: 60
B46: 19 | C46: Electromechanical Relays | F46: 25 | G46: 35 | H46: 50
B47: 20 | C47: Solid State Relays | F47: 10 | G47: 30 | H47: 45
B48: 21 | C48: Digital & Numeric Relays | F48: 15 | G48: 20 | H48: 20
B49: 22 | C49: Rigid Busbars | F49: 30 | G49: 55 | H49: 60
B50: 23 | C50: Steel Structure | F50: 35 | G50: 50 | H50: 90
A51: UG | B51: 24 | C51: Primary Paper Insulated Lead Covered (PILC) Cables | F51: 60 | G51: 65 | H51: 75
B52: 25 | C52: Primary Ethylene-Propylene Rubber (EPR) Cables | F52: 20 | G52: 25 | H52: 25
B53: 26 | C53: Primary Non-Tree Retardant (TR) Cross Linked Polyethylene (XLPE) Cables Direct Buried | F53: 20 | G53: 25 | H53: 30
B54: 27 | C54: Primary Non-TR XLPE Cables in Duct | F54: 20 | G54: 25 | H54: 30
B55: 30 | C55: Secondary PILC Cables | F55: 70 | G55: 75 | H55: 80
B56: 31 | C56: Secondary Cables Direct Buried | F56: 25 | G56: 35 | H56: 40
B57: 32 | C57: Secondary Cables in Duct | F57: 35 | G57: 40 | H57: 60 | J57: 1845 | K57: Underground Conductors & Devices | L57: 40 | M57: 0.025 | N57: 40 | O57: 0.025 | P57: No | Q57: No
B58: 33 | C58: Network Tranformers | D58: Overall | F58: 20 | G58: 35 | H58: 50
D59: Protector | F59: 20 | G59: 35 | H59: 40
B60: 34 | C60: Pad-Mounted Transformers | F60: 25 | G60: 40 | H60: 45 | J60: 1850 | K60: Line Transformers | L60: 40 | M60: 0.025 | N60: 40 | O60: 0.025 | P60: No | Q60: No
B61: 35 | C61: Submersible/Vault Transformers | F61: 25 | G61: 35 | H61: 45
B62: 36 | C62: UG Foundation | F62: 35 | G62: 55 | H62: 70
B63: 37 | C63: UG Vaults | D63: Overall | F63: 40 | G63: 60 | H63: 80
D64: Roof | F64: 20 | G64: 30 | H64: 45
B65: 38 | C65: UG Vault Switches | F65: 20 | G65: 35 | H65: 50
B66: 39 | C66: Pad-Mounted Switchgear | F66: 20 | G66: 30 | H66: 45
B67: 40 | C67: Ducts | F67: 30 | G67: 50 | H67: 85 | J67: 1840 | K67: Underground Conduit | L67: 50 | M67: 0.02 | N67: 50 | O67: 0.02 | P67: No | Q67: No
B68: 41 | C68: Concrete Encased Duct Banks | F68: 35 | G68: 55 | H68: 80
B69: 42 | C69: Cable Chambers | F69: 50 | G69: 60 | H69: 80
A70: S | B70: 43 | C70: Remote SCADA | F70: 15 | G70: 20 | H70: 30
A73: Table F-2 from Kinetrics Report1
C75: Asset Details | F75: Useful Life Range | J75: USoA Account Number | K75: USoA Account Description | L75: Current | N75: Proposed | P75: Outside Range of Min, Max TUL?
B76: # | C76: Category| Component | Type | L76: Years | M76: Rate | N76: Years | O76: Rate | P76: Below Min Range | Q76: Above Max Range
B77: 1 | C77: Office Equipment | F77: 5 | G77: 15 | J77: 1915 | K77: Office Furniture & Equipment | L77: 10 | M77: =IF(ISERROR(1/L77), "", 1/L77) -> 0.1 | N77: 10 | O77: =IF(ISERROR(1/N77), "", 1/N77) -> 0.1 | P77: =IF(ISBLANK(N77),"",IF(N77<F77,"Yes","No")) -> No | Q77: =IF(ISBLANK(N77),"",IF(N77>G77,"Yes","No")) -> No
B78: 2 | C78: Vehicles | D78: Trucks & Buckets | F78: 5 | G78: 15 | J78: 1930 | K78: Transportation Equipment > 3 tons | L78: 8 | M78: =IF(ISERROR(1/L78), "", 1/L78) -> 0.125 | N78: 8 | O78: =IF(ISERROR(1/N78), "", 1/N78) -> 0.125 | P78: =IF(ISBLANK(N78),"",IF(N78<F78,"Yes","No")) -> No | Q78: =IF(ISBLANK(N78),"",IF(N78>G78,"Yes","No")) -> No
D79: Trailers | F79: 5 | G79: 20 | J79: 1930 | K79: Transportation Equipment < 3 tons | L79: 5 | M79: 0.2 | N79: 5 | O79: 0.2 | P79: No | Q79: No
D80: Vans | F80: 5 | G80: 10
B81: 3 | C81: Administrative Buildings | F81: 50 | G81: 75
B82: 4 | C82: Leasehold Improvements | F82: Lease dependent
B83: 5 | C83: Station Buildings | D83: Station Buildings | F83: 50 | G83: 75
D84: Parking | F84: 25 | G84: 30
D85: Fence | F85: 25 | G85: 60
D86: Roof | F86: 20 | G86: 30
B87: 6 | C87: Computer Equipment | D87: Hardware | F87: 3 | G87: 5 | J87: 1920 | K87: Computer Hardware | L87: 5 | M87: 0.2 | N87: 5 | O87: 0.2 | P87: No | Q87: No
D88: Software | F88: 2 | G88: 5 | J88: 1925 | K88: Computer Software | L88: 5 | M88: 0.2 | N88: 5 | O88: 0.2 | P88: No | Q88: No
B89: 7 | C89: Equipment | D89: Power Operated | F89: 5 | G89: 10 | J89: 1950 | K89: Power Operated Equipment | L89: 5 | M89: 0.2 | N89: 5 | O89: 0.2 | P89: No | Q89: No
D90: Stores | F90: 5 | G90: 10 | J90: 1950 | K90: Power Operated Equipment | L90: 8 | M90: 0.125 | N90: 8 | O90: 0.125 | P90: No | Q90: No
D91: Tools, Shop, Garage Equipment | F91: 5 | G91: 10 | J91: 1940 | K91: Tools, Shop and Garage Equipment | L91: 10 | M91: 0.1 | N91: 10 | O91: 0.1 | P91: No | Q91: No
D92: Measurement & Testing Equipment | F92: 5 | G92: 10 | J92: 1945 | K92: Measurement and Testing Equipment | L92: 10 | M92: 0.1 | N92: 10 | O92: 0.1 | P92: No | Q92: No
B93: 8 | C93: Communication | D93: Towers | F93: 60 | G93: 70
D94: Wireless | F94: 2 | G94: 10 | J94: 1955 | K94: Communication Equipment | L94: 10 | M94: 0.1 | N94: 10 | O94: 0.1 | P94: No | Q94: No
B95: 9 | C95: Residential Energy Meters | F95: 25 | G95: 35
B96: 10 | C96: Industrial/Commercial Energy Meters | F96: 25 | G96: 35
B97: 11 | C97: Wholesale Energy Meters | F97: 15 | G97: 30
B98: 12 | C98: Current & Potential Transformer (CT & PT) | F98: 35 | G98: 50 | J98: 1860 | K98: Meters - CTs & PTs | L98: 25 | M98: 0.04 | N98: 25 | O98: 0.04 | P98: Yes | Q98: No
B99: 13 | C99: Smart Meters | F99: 5 | G99: 15 | J99: 1860 | K99: Meters - Smart Meters | L99: 15 | M99: 0.06666666667 | N99: 15 | O99: 0.06666666667 | P99: No | Q99: No
B100: 14 | C100: Repeaters - Smart Metering | F100: 10 | G100: 15
B101: 15 | C101: Data Collectors - Smart Metering | F101: 15 | G101: 20
A104: * TS & MS = Transformer and Municipal Stations UG = Underground Systems S = Monitoring and Control Systems
A106: Note 1: | B106: Tables F-1 and F-2 above are to be used as a reference in order to complete columns J, K, L and N.
B107: See pages 17-19 of Kinetrics Report

Sheet App.2-C_DepExp
A9: Appendix 2-C | Y9: CGAAP
A10: Depreciation and Amortization Expense | Y10: Revised CGAAP
Y11: MIFRS
A12: This appendix is to be completed in conjunction with the accounting instructions in Appendix 2-B
A14: Scenario that applies | C14: Applicable Years and Accounting Standard | R14: Year Reflected in Schedule Below | S14: Accounting Standard Reflected in Schedule Below | Y14: 2012
A15: Rebasing for the first time with depreciation policy changes made in 2012. | C15: This appendix must be duplicated and completed for the years 2012 to 2018. The appendix for 2012 is to be completed under CGAAP (prior to changes in depreciation policies). The appendix for 2012 to 2014 must be completed under Revised CGAAP (after changes in depreciation policies). The appendix for 2014 to 2018 is to be completed under MIFRS (2014 if changes to MIFRS are material). | Y15: 2013
A16: Rebasing for the first time with depreciation policy changes made in 2013. | C16: This appendix must be duplicated and completed for the years 2013 to 2018. The appendix for 2013 is to be completed under CGAAP (prior to changes in depreciation policies). The appendix for 2013 to 2014 must be completed under Revised CGAAP (after changes in depreciation policies). The appendix for 2014 to 2018 is to be completed under MIFRS (2014 if changes to MIFRS are material). | Y16: 2014
A17: Already rebased with depreciation policy changes in a prior rate application | C17: This appendix must be completed for 2014 to 2018. The appendix for 2014 is to be completed under Revised CGAAP (after changes in depreciation policies). The appendix for 2014 to 2018 is to be completed under MIFRS (2014 if changes to MIFRS are material). | R17: 2014 | S17: Revised CGAAP | Y17: 2015
Y18: 2016
Y19: 2017
C20: Book Values | J20: Service Lives | N20: Depreciation Expense | Y20: 2018
A21: Account | B21: Description | C21: Opening Net Book Value of Existing Assets as at Date of Policy Change (Jan. 1) 1 | D21: Less Fully Depreciated 7 | E21: Net Amount of Existing Assets Before Policy Change to be Depreciated | F21: Opening Gross Book Value of Assets Acquired After Policy Change 2 | G21: Less Fully Depreciated 8 | H21: Net Amount of Assets Acquired After Policy Change to be Depreciated | I21: Current Year Additions | J21: Average Remaining Life of Assets Existing Before Policy Change 3 | K21: Depreciation Rate Assets Acquired After Policy Change | L21: Life of Assets Acquired After Policy Change 4 | M21: Depreciation Rate on New Additions | N21: Depreciation Expense on Assets Existing Before Policy Change | O21: Depreciation Expense on Assets Acquired After Policy Change | P21: Depreciation Expense on Current Year Additions 5 | Q21: Total Current Year Depreciation Expense | R21: Depreciation Expense per Appendix 2-BA Fixed Assets, Column J | S21: Variance 6
C22: a | D22: b | E22: c = a-b | F22: d | G22: e | H22: f = d- e | I22: g | J22: h | K22: i = 1/h | L22: j | M22: k = 1/j | N22: l = c/h | O22: m = f/j | P22: n = g*0.5/j | Q22: o = l+m+n | R22: p | S22: q = p-o
A23: 1611 | B23: Computer Software (Formally known as Account 1925) | C23: 24240 | D23: 14825.68 | E23: =C23-D23 -> 9414.32 | F23: 50739.64 | G23: 4250 | H23: =F23-G23 -> 46489.64 | I23: 40850 | J23: 3.27 | K23: =IF(J23=0,0,1/J23) -> 0.3058103976 | L23: 5 | M23: =IF(L23=0,0,1/L23) -> 0.2 | N23: =IF(J23=0,0,+E23/J23) -> 2878.996942 | O23: =IF(L23=0,0,+H23/L23) -> 9297.928 | P23: =IF(L23=0,0,+(I23*0.5)/L23) -> 4085 | Q23: =IF(ISERROR(+N23+O23+P23), 0, +N23+O23+P23) -> 16261.92494 | R23: =-'App.2-BA_Fixed Asset Cont'!J76 -> 16310.26 | S23: =IF(ISERROR(+R23-122), 0, +R23-Q23) -> 48.3350581
A24: 1612 | B24: Land Rights (Formally known as Account 1906) | E24: =C24-D24 -> 0 | H24: =F24-G24 -> 0 | K24: =IF(J24=0,0,1/J24) -> 0 | M24: =IF(L24=0,0,1/L24) -> 0 | N24: =IF(J24=0,0,+E24/J24) -> 0 | O24: =IF(L24=0,0,+H24/L24) -> 0 | P24: =IF(L24=0,0,+(I24*0.5)/L24) -> 0 | Q24: =IF(ISERROR(+N24+O24+P24), 0, +N24+O24+P24) -> 0 | S24: =IF(ISERROR(+R24-122), 0, +R24-Q24) -> 0
A25: 1805 | B25: Land | E25: 0 | H25: 0 | K25: 0 | M25: 0 | N25: 0 | O25: =IF(L25=0,0,+H25/L25) -> 0 | P25: 0 | Q25: 0 | S25: 0
A26: 1808 | B26: Buildings | C26: 50840 | E26: 50840 | F26: 0 | G26: 0 | H26: 0 | J26: 14 | K26: 0.07142857143 | L26: 25 | M26: 0.04 | N26: 3631.428571 | O26: =IF(L26=0,0,+H26/L26) -> 0 | P26: 0 | Q26: 3631.428571 | R26: =-'App.2-BA_Fixed Asset Cont'!J79 -> 3674.56 | S26: 43.13142857
A27: 1810 | B27: Leasehold Improvements | E27: 0 | H27: 0 | K27: 0 | M27: 0 | N27: 0 | O27: 0 | P27: 0 | Q27: 0 | S27: 0
A28: 1815 | B28: Transformer Station Equipment >50 kV | E28: 0 | H28: 0 | K28: 0 | M28: 0 | N28: 0 | O28: 0 | P28: 0 | Q28: 0 | S28: 0
A29: 1820 | B29: Distribution Station Equipment <50 kV | E29: 0 | H29: 0 | K29: 0 | M29: 0 | N29: 0 | O29: 0 | P29: 0 | Q29: 0 | S29: 0
A30: 1825 | B30: Storage Battery Equipment | E30: 0 | H30: 0 | K30: 0 | M30: 0 | N30: 0 | O30: 0 | P30: 0 | Q30: 0 | S30: 0
A31: 1830 | B31: Poles, Towers & Fixtures | C31: 2287202 | E31: 2287202 | F31: 309725.24 | H31: 309725.24 | I31: 174467 | J31: 34 | K31: 0.02941176471 | L31: 45 | M31: 0.02222222222 | N31: 67270.64706 | O31: 6882.783111 | P31: 1938.522222 | Q31: 76091.95239 | R31: =-'App.2-BA_Fixed Asset Cont'!J84 -> 76091.94 | S31: -0.01239215686
A32: 1835 | B32: Overhead Conductors & Devices | C32: 605093 | E32: 605093 | F32: 14419.08 | H32: 14419.08 | I32: 5330 | J32: 34 | K32: 0.02941176471 | L32: 45 | M32: 0.02222222222 | N32: 17796.85294 | O32: 320.424 | P32: 59.22222222 | Q32: 18176.49916 | R32: =-'App.2-BA_Fixed Asset Cont'!J85 -> 18235.7 | S32: 59.2008366
A33: 1840 | B33: Underground Conduit | C33: 105284 | E33: 105284 | F33: 11328.13 | H33: 11328.13 | I33: 905 | J33: 39 | K33: 0.02564102564 | L33: 50 | M33: 0.02 | N33: 2699.589744 | O33: 226.5626 | P33: 9.05 | Q33: 2935.202344 | R33: =-'App.2-BA_Fixed Asset Cont'!J86 -> 2935.23 | S33: 0.02765641026
A34: 1845 | B34: Underground Conductors & Devices | C34: 582212 | E34: 582212 | F34: 50771.79 | H34: 50771.79 | I34: 13197 | J34: 29 | K34: 0.03448275862 | L34: 40 | M34: 0.025 | N34: 20076.27586 | O34: 1269.29475 | P34: 164.9625 | Q34: 21510.53311 | R34: =-'App.2-BA_Fixed Asset Cont'!J87 -> 21510.53 | S34: -0.003112068967
A35: 1850 | B35: Line Transformers | C35: 1020305 | E35: 1020305 | F35: 139522.45 | H35: 139522.45 | I35: 54576 | J35: 29 | K35: 0.03448275862 | L35: 40 | M35: 0.025 | N35: 35182.93103 | O35: 3488.06125 | P35: 682.2 | Q35: 39353.19228 | R35: =-'App.2-BA_Fixed Asset Cont'!J88 -> 39353.19 | S35: -0.002284482754
A36: 1855 | B36: Services (Overhead & Underground) | E36: 0 | H36: 0 | K36: 0 | M36: 0 | N36: 0 | O36: 0 | P36: 0 | Q36: 0 | S36: 0
A37: 1860 | B37: Meters | C37: 327572 | D37: 181593 | E37: 145979 | F37: 9707.01 | H37: 9707.01 | I37: 5221 | J37: 14 | K37: 0.07142857143 | L37: 25 | M37: 0.04 | N37: 10427.07143 | O37: 388.2804 | P37: 104.42 | Q37: 10919.77183 | R37: =-'App.2-BA_Fixed Asset Cont'!J90 -> 12372.4 | S37: 1452.628171
A38: 1860 | B38: Meters (Smart Meters) | E38: 0 | F38: 650449 | G38: 375 | H38: 650074 | I38: 12125 | J38: 12 | K38: 0.08333333333 | L38: 15 | M38: 0.06666666667 | N38: 0 | O38: 43338.26667 | P38: 404.1666667 | Q38: 43742.43333 | R38: =-'App.2-BA_Fixed Asset Cont'!J91 -> 43731.72 | S38: -10.71333333
A39: 1905 | B39: Land | E39: 0 | H39: 0 | K39: 0 | M39: 0 | N39: 0 | O39: 0 | P39: 0 | Q39: 0 | S39: 0
A40: 1908 | B40: Buildings & Fixtures | E40: 0 | H40: 0 | K40: 0 | M40: 0 | N40: 0 | O40: 0 | P40: 0 | Q40: 0 | S40: 0
A41: 1910 | B41: Leasehold Improvements | E41: 0 | H41: 0 | K41: 0 | M41: 0 | N41: 0 | O41: 0 | P41: 0 | Q41: 0 | S41: 0
A42: 1915 | B42: Office Furniture & Equipment (10 years) | C42: 9103 | E42: 9103 | F42: 6000.35 | H42: 6000.35 | I42: 278 | J42: 7.79 | K42: 0.1283697047 | L42: 10 | M42: 0.1 | N42: 1168.549422 | O42: 600.035 | P42: 13.9 | Q42: 1782.484422 | R42: =-'App.2-BA_Fixed Asset Cont'!J95 -> 1766.47 | S42: -16.01442234
A43: 1915 | B43: Office Furniture & Equipment (5 years) | E43: 0 | H43: 0 | K43: 0 | M43: 0 | N43: 0 | O43: 0 | P43: 0 | Q43: 0 | S43: 0
A44: 1920 | B44: Computer Equipment - Hardware | E44: 0 | H44: 0 | K44: 0 | M44: 0 | N44: 0 | O44: 0 | P44: 0 | Q44: 0 | S44: 0
A45: 1920 | B45: Computer Equip.-Hardware(Post Mar. 22/04) | C45: 12678 | D45: 1752.84 | E45: 10925.16 | F45: 32132.26 | G45: 26690 | H45: 5442.26 | I45: 1000 | J45: 2.83 | K45: 0.3533568905 | L45: 5 | M45: 0.2 | N45: 3860.480565 | O45: =IF(L45=0,0,+H45/L45) -> 1088.452 | P45: 100 | Q45: 5048.932565 | R45: =-'App.2-BA_Fixed Asset Cont'!J97 -> 4789.2 | S45: -259.7325654
A46: 1920 | B46: Computer Equip.-Hardware(Post Mar. 19/07) | E46: 0 | H46: 0 | K46: 0 | M46: 0 | N46: 0 | O46: 0 | P46: 0 | Q46: 0 | S46: 0
A47: 1930 | B47: Transportation Equipment (8 years) | C47: 34927.42 | E47: 34927.42 | F47: 35425.16 | H47: 35425.16 | J47: 4.1 | K47: 0.243902439 | L47: 8 | M47: 0.125 | N47: 8518.882927 | O47: 4428.145 | P47: 0 | Q47: 12947.02793 | R47: =-'App.2-BA_Fixed Asset Cont'!J100 -> 12981.89 | S47: 34.86207317
A48: 1930 | B48: Transportation Equipment ( 5 years) | C48: 18189.09 | E48: 18189.09 | H48: 0 | I48: 54538.75 | J48: 3 | K48: 0.3333333333 | L48: 5 | M48: 0.2 | N48: 6063.03 | O48: 0 | P48: 5453.875 | Q48: 11516.905 | R48: =-'App.2-BA_Fixed Asset Cont'!J101 -> 11170.72 | S48: -346.185
A49: 1940 | B49: Tools, Shop & Garage Equipment | C49: 15953 | E49: 15953 | F49: 18913.05 | H49: 18913.05 | I49: 3504.33 | J49: 6.17 | K49: 0.1620745543 | L49: 10 | M49: 0.1 | N49: 2585.575365 | O49: =IF(L49=0,0,+H49/L49) -> 1891.305 | P49: 175.2165 | Q49: 4652.096865 | R49: =-'App.2-BA_Fixed Asset Cont'!J102 -> 7659.28 | S49: 3007.183135
A50: 1945 | B50: Measurement & Testing Equipment | C50: 3220 | E50: 3220 | F50: 6144.75 | H50: 6144.75 | J50: 2.69 | K50: 0.3717472119 | L50: 10 | M50: 0.1 | N50: 1197.026022 | O50: 614.475 | P50: 0 | Q50: 1811.501022 | R50: =-'App.2-BA_Fixed Asset Cont'!J103 -> 1354.26 | S50: -457.2410223
A51: 1950 | B51: Power Operated Equipment(8 years) | C51: 20231.25 | E51: 20231.25 | F51: 85090 | H51: 85090 | J51: 5.87 | K51: 0.1703577513 | L51: 8 | M51: 0.125 | N51: 3446.550256 | O51: 10636.25 | P51: 0 | Q51: 14082.80026 | R51: =-'App.2-BA_Fixed Asset Cont'!J104 -> 13561.25 | S51: -521.5502555
A52: 1950 | B52: Power Operated Equipment(5 years) | C52: 2458.91 | E52: 2458.91 | F52: 719.95 | H52: 719.95 | J52: 3.65 | K52: 0.2739726027 | L52: 5 | M52: 0.2 | N52: 673.6739726 | O52: 143.99 | P52: 0 | Q52: 817.6639726 | R52: =-'App.2-BA_Fixed Asset Cont'!J105 -> 916.78 | S52: 99.1160274
A53: 1955 | B53: Communications Equipment | C53: 6980 | E53: 6980 | F53: 1235.04 | H53: 1235.04 | I53: 4441.26 | J53: 4.55 | K53: 0.2197802198 | L53: 10 | M53: 0.1 | N53: 1534.065934 | O53: 123.504 | P53: 222.063 | Q53: 1879.632934 | R53: =-'App.2-BA_Fixed Asset Cont'!J106 -> 1819.28 | S53: -60.35293407
A54: 1955 | B54: Communication Equipment (Smart Meters) | E54: 0 | H54: 0 | K54: 0 | M54: 0 | N54: 0 | O54: 0 | P54: 0 | Q54: 0 | S54: 0
A55: 1960 | B55: Miscellaneous Equipment | E55: 0 | H55: 0 | K55: 0 | M55: 0 | N55: 0 | O55: 0 | P55: 0 | Q55: 0 | S55: 0
A56: 1970 | B56: Load Management Controls Customer Premises | E56: 0 | H56: 0 | K56: 0 | M56: 0 | N56: 0 | O56: 0 | P56: 0 | Q56: 0 | S56: 0
A57: 1975 | B57: Load Management Controls Utility Premises | E57: 0 | H57: 0 | K57: 0 | M57: 0 | N57: 0 | O57: 0 | P57: 0 | Q57: 0 | S57: 0
A58: 1980 | B58: System Supervisor Equipment | E58: 0 | H58: 0 | K58: 0 | M58: 0 | N58: 0 | O58: 0 | P58: 0 | Q58: 0 | S58: 0
A59: 1985 | B59: Miscellaneous Fixed Assets | C59: 6711 | D59: 276.06 | E59: 6434.94 | F59: 2819.09 | G59: 1683.29 | H59: 1135.8 | I59: 178.42 | J59: 5.37 | K59: 0.1862197393 | L59: 10 | M59: 0.1 | N59: 1198.312849 | O59: 113.58 | P59: 8.921 | Q59: 1320.813849 | R59: =-'App.2-BA_Fixed Asset Cont'!J111 -> 1313.73 | S59: -7.083849162
A60: 1990 | B60: Other Tangible Property | E60: 0 | H60: 0 | K60: 0 | M60: 0 | N60: 0 | O60: 0 | P60: 0 | Q60: 0 | S60: 0
A61: 1995 | B61: Contributions & Grants | C61: -681468 | E61: -681468 | F61: -146944.08 | H61: -146944.08 | I61: -43494 | J61: 29 | K61: 0.03448275862 | L61: 40 | M61: 0.025 | N61: -23498.89655 | O61: -3673.602 | P61: -543.675 | Q61: -27716.17355 | R61: =-'App.2-BA_Fixed Asset Cont'!J113 -> -32190.05 | S61: -4473.876448
B62: Total | C62: =SUM(C23:C61) -> 4451731.67 | D62: 198447.58 | E62: 4253284.09 | F62: 1278197.91 | G62: 32998.29 | H62: 1245199.62 | I62: 327117.76 | N62: =SUM(N23:N61) -> 166711.0443 | O62: 81177.73478 | P62: 12877.84411 | Q62: 260766.6232 | R62: 259358.34 | S62: -1408.283232
A65: General: | B65: Applicants are to complete this appendix to show the reasonability of the depreciation expense that is included in rate base via. Accumulated depreciation and the revenue requirement.
B66: Applicants must provide a breakdown of depreciation and amortization expense in the above format for all relevant accounts. Balances presented in the table should exclude asset retirement obligations (AROs) and the related depreciation and accretion expense. These should be disclosed separately consistent with the Notes of historical Audited Financial Statements.
A69: Notes:
A70: 1 | B70: This is the net book value of assets that existed as at the date of the utility's change in depreciation policies (i.e. as at Jan. 1, 2012 or Jan. 1, 2013). These assets are to be depreciated at the average remaining service life. This amount will not change in years subsequent to the date of the utility's change in depreciation policies. This column is expected to be used until the assets that existed as at the date of the utility's change in depreciation policies are fully depreciated.
A71: 2 | B71: This is the opening gross book value of assets that have been acquired after the date of the utilities change in depreciation policies (i.e. additions starting in 2012/2013 for those who changed policies Jan. 1, 2012/2013). These assets are to be depreciated at the revised service life. The amount is expected to be equal to the gross book value of the prior year plus the prior year's additions.
A72: 3 | B72: A recalculation should be performed to determine the average remaining life of opening balance of assets (i.e. excluding current year's additions) under the change in policies under CGAAP. For example, Asset A had a useful life of 20 years under CGAAP without the change in policies. On January 1 of the year of policy changes, Asset A was 3 years depreciated. As a result, Asset A would have a remaining service life of 17 years (20 years less 3 years) as at January 1 of the year of policy changes. Due to making the change in policies under CGAAP, management re-assessed the asset useful lives and concluded that the revised useful life of Asset A is now 30 years. Therefore, the average remaining useful life of the opening balance of Asset A is determined to be 27 years (30 years less 3 years) under the revised CGAAP as at January 1 of the year of policy changes.
A73: 4 | B73: The useful life used should be consistent with the OEB's regulatory accounting policies as set out in the Accounting Procedures Handbook for Electricity Distributors, effective Jan. 1, 2012 and also with the Report of the Board, Transition to International Financial Reporting Standards, EB-2008-0408, and the Kinectrics Report.
A74: 5 | B74: Board policy of the "half-year" rule - the applicant must ensure that additions in the year attract a half-year depreciation expense in the first year. Deviations from this standard practice must be supported in the application.
A75: 6 | B75: The applicant must provide an explanation of material variances in evidence.
A76: 7 | B76: This should include assets in column a (excel column C) that become fully depreciated since the date of the policy change. The amount input in b (excel column D) should equal the net book value of the asset as at the date of depreciation policy change
A77: 8 | B77: This should include assets in column d (excel column f) that have become fully depreciated. The amount input in e (excel column G) should equal the gross book value of the asset
A81: Appendix 2-C
A82: Depreciation and Amortization Expense
A84: This appendix is to be completed in conjunction with the accounting instructions in Appendix 2-B
A86: Scenario that applies | C86: Applicable Years and Accounting Standard | R86: Year Reflected in Schedule Below | S86: Accounting Standard Reflected in Schedule Below
A87: Rebasing for the first time with depreciation policy changes made in 2012. | C87: This appendix must be duplicated and completed for the years 2012 to 2018. The appendix for 2012 is to be completed under CGAAP (prior to changes in depreciation policies). The appendix for 2012 to 2014 must be completed under Revised CGAAP (after changes in depreciation policies). The appendix for 2014 to 2018 is to be completed under MIFRS (2014 if changes to MIFRS are material).
A88: Rebasing for the first time with depreciation policy changes made in 2013. | C88: This appendix must be duplicated and completed for the years 2013 to 2018. The appendix for 2013 is to be completed under CGAAP (prior to changes in depreciation policies). The appendix for 2013 to 2014 must be completed under Revised CGAAP (after changes in depreciation policies). The appendix for 2014 to 2018 is to be completed under MIFRS (2014 if changes to MIFRS are material).
A89: Already rebased with depreciation policy changes in a prior rate application | C89: This appendix must be completed for 2014 to 2018. The appendix for 2014 is to be completed under Revised CGAAP (after changes in depreciation policies). The appendix for 2014 to 2018 is to be completed under MIFRS (2014 if changes to MIFRS are material). | R89: 2015 | S89: MIFRS
C92: Book Values | J92: Service Lives | N92: Depreciation Expense
A93: Account | B93: Description | C93: Opening Net Book Value of Existing Assets as at Date of Policy Change (Jan. 1) 1 | D93: Less Fully Depreciated 7 | E93: Net Amount of Existing Assets Before Policy Change to be Depreciated | F93: Opening Gross Book Value of Assets Acquired After Policy Change 2 | G93: Less Fully Depreciated 8 | H93: Net Amount of Assets Acquired After Policy Change to be Depreciated | I93: Current Year Additions | J93: Average Remaining Life of Assets Existing Before Policy Change 3 | K93: Depreciation Rate Assets Acquired After Policy Change | L93: Life of Assets Acquired After Policy Change 4 | M93: Depreciation Rate on New Additions | N93: Depreciation Expense on Assets Existing Before Policy Change | O93: Depreciation Expense on Assets Acquired After Policy Change | P93: Depreciation Expense on Current Year Additions 5 | Q93: Total Current Year Depreciation Expense | R93: Depreciation Expense per Appendix 2-BA Fixed Assets, Column J | S93: Variance 6
C94: a | D94: b | E94: c = a-b | F94: d | G94: e | H94: f = d- e | I94: g | J94: h | K94: i = 1/h | L94: j | M94: k = 1/j | N94: l = c/h | O94: m = f/j | P94: n = g*0.5/j | Q94: o = l+m+n | R94: p | S94: q = p-o
A95: 1611 | B95: Computer Software (Formally known as Account 1925) | C95: 24240 | D95: 14825.68 | E95: =C95-D95 -> 9414.32 | F95: =SUM(F23,I23) -> 91589.64 | G95: 48407.74 | H95: =F95-G95 -> 43181.9 | I95: 1163 | J95: 3.27 | K95: =IF(J95=0,0,1/J95) -> 0.3058103976 | L95: 5 | M95: =IF(L95=0,0,1/L95) -> 0.2 | N95: =IF(J95=0,0,+E95/J95) -> 2878.996942 | O95: =IF(L95=0,0,+H95/L95) -> 8636.38 | P95: =IF(L95=0,0,+(I95*0.5)/L95) -> 116.3 | Q95: =IF(ISERROR(+N95+O95+P95), 0, +N95+O95+P95) -> 11631.67694 | R95: =-'App.2-BA_Fixed Asset Cont'!J195 -> 13846.26 | S95: =IF(ISERROR(+R95-122), 0, +R95-Q95) -> 2214.583058
A96: 1612 | B96: Land Rights (Formally known as Account 1906) | E96: =C96-D96 -> 0 | H96: =F96-G96 -> 0 | K96: =IF(J96=0,0,1/J96) -> 0 | M96: =IF(L96=0,0,1/L96) -> 0 | N96: =IF(J96=0,0,+E96/J96) -> 0 | O96: =IF(L96=0,0,+H96/L96) -> 0 | P96: =IF(L96=0,0,+(I96*0.5)/L96) -> 0 | Q96: =IF(ISERROR(+N96+O96+P96), 0, +N96+O96+P96) -> 0 | S96: =IF(ISERROR(+R96-122), 0, +R96-Q96) -> 0
A97: 1805 | B97: Land | E97: 0 | H97: 0 | K97: 0 | M97: 0 | N97: 0 | O97: =IF(L97=0,0,+H97/L97) -> 0 | P97: 0 | Q97: 0 | S97: 0
A98: 1808 | B98: Buildings | C98: 50840 | E98: 50840 | H98: 0 | J98: 14 | K98: 0.07142857143 | L98: 25 | M98: 0.04 | N98: 3631.428571 | O98: 0 | P98: 0 | Q98: 3631.428571 | R98: =-'App.2-BA_Fixed Asset Cont'!J198 -> 3674.56 | S98: 43.13142857
A99: 1810 | B99: Leasehold Improvements | E99: 0 | H99: 0 | K99: 0 | M99: 0 | N99: 0 | O99: 0 | P99: 0 | Q99: 0 | S99: 0
A100: 1815 | B100: Transformer Station Equipment >50 kV | E100: 0 | H100: 0 | K100: 0 | M100: 0 | N100: 0 | O100: 0 | P100: 0 | Q100: 0 | S100: 0
A101: 1820 | B101: Distribution Station Equipment <50 kV | E101: 0 | H101: 0 | K101: 0 | M101: 0 | N101: 0 | O101: 0 | P101: 0 | Q101: 0 | S101: 0
A102: 1825 | B102: Storage Battery Equipment | E102: 0 | H102: 0 | K102: 0 | M102: 0 | N102: 0 | O102: 0 | P102: 0 | Q102: 0 | S102: 0
A103: 1830 | B103: Poles, Towers & Fixtures | C103: 2287202 | E103: 2287202 | F103: =SUM(F31,I31) -> 484192.24 | H103: 484192.24 | I103: 170006 | J103: 34 | K103: 0.02941176471 | L103: 45 | M103: 0.02222222222 | N103: 67270.64706 | O103: 10759.82756 | P103: 1888.955556 | Q103: 79919.43017 | R103: =-'App.2-BA_Fixed Asset Cont'!J203 -> 79315.62 | S103: -603.8101699
A104: 1835 | B104: Overhead Conductors & Devices | C104: 605093 | E104: 605093 | F104: =SUM(F32,I32) -> 19749.08 | H104: 19749.08 | I104: 26651 | J104: 34 | K104: 0.02941176471 | L104: 45 | M104: 0.02222222222 | N104: 17796.85294 | O104: 438.8684444 | P104: 296.1222222 | Q104: 18531.84361 | R104: =-'App.2-BA_Fixed Asset Cont'!J204 -> 18509.21 | S104: -22.63360784
A105: 1840 | B105: Underground Conduit | C105: 105284 | E105: 105284 | F105: =SUM(F33,I33) -> 12233.13 | H105: 12233.13 | I105: 1730 | J105: 39 | K105: 0.02564102564 | L105: 50 | M105: 0.02 | N105: 2699.589744 | O105: 244.6626 | P105: 17.3 | Q105: 2961.552344 | R105: =-'App.2-BA_Fixed Asset Cont'!J205 -> 2964.08 | S105: 2.52765641
A106: 1845 | B106: Underground Conductors & Devices | C106: 582212 | E106: 582212 | F106: =SUM(F34,I34) -> 63968.79 | H106: 63968.79 | I106: 24993 | J106: 29 | K106: 0.03448275862 | L106: 40 | M106: 0.025 | N106: 20076.27586 | O106: 1599.21975 | P106: 312.4125 | Q106: 21987.90811 | R106: =-'App.2-BA_Fixed Asset Cont'!J206 -> 22008.41 | S106: 20.50188793
A107: 1850 | B107: Line Transformers | C107: 1020305 | E107: 1020305 | F107: =SUM(F35,I35) -> 194098.45 | H107: 194098.45 | I107: 40013 | J107: 29 | K107: 0.03448275862 | L107: 40 | M107: 0.025 | N107: 35182.93103 | O107: 4852.46125 | P107: 500.1625 | Q107: 40535.55478 | R107: =-'App.2-BA_Fixed Asset Cont'!J207 -> 39781.16 | S107: -754.3947845
A108: 1855 | B108: Services (Overhead & Underground) | E108: 0 | H108: 0 | K108: 0 | M108: 0 | N108: 0 | O108: 0 | P108: 0 | Q108: 0 | S108: 0
A109: 1860 | B109: Meters | C109: 327572 | D109: 181593 | E109: 145979 | F109: =SUM(F37,I37) -> 14928.01 | H109: 14928.01 | I109: 4025 | J109: 14 | K109: 0.07142857143 | L109: 25 | M109: 0.04 | N109: 10427.07143 | O109: 597.1204 | P109: 80.5 | Q109: 11104.69183 | R109: =-'App.2-BA_Fixed Asset Cont'!J209 -> 12557.33 | S109: 1452.638171
A110: 1860 | B110: Meters (Smart Meters) | E110: 0 | F110: =SUM(F38,I38) -> 662574 | G110: 11068 | H110: 651506 | I110: 0 | J110: 12 | K110: 0.08333333333 | L110: 15 | M110: 0.06666666667 | N110: 0 | O110: 43433.73333 | P110: 0 | Q110: 43433.73333 | R110: =-'App.2-BA_Fixed Asset Cont'!J210 -> 43075.55 | S110: -358.1833333
A111: 1905 | B111: Land | E111: 0 | H111: 0 | K111: 0 | M111: 0 | N111: 0 | O111: 0 | P111: 0 | Q111: 0 | S111: 0
A112: 1908 | B112: Buildings & Fixtures | E112: 0 | H112: 0 | K112: 0 | M112: 0 | N112: 0 | O112: 0 | P112: 0 | Q112: 0 | S112: 0
A113: 1910 | B113: Leasehold Improvements | E113: 0 | H113: 0 | K113: 0 | M113: 0 | N113: 0 | O113: 0 | P113: 0 | Q113: 0 | S113: 0
A114: 1915 | B114: Office Furniture & Equipment (10 years) | C114: 9103 | E114: 9103 | F114: =SUM(F42,I42) -> 6278.35 | G114: 753.84 | H114: 5524.51 | I114: 2318 | J114: 7.79 | K114: 0.1283697047 | L114: 10 | M114: 0.1 | N114: 1168.549422 | O114: 552.451 | P114: 115.9 | Q114: 1836.900422 | R114: =-'App.2-BA_Fixed Asset Cont'!J214 -> 1784.91 | S114: -51.99042234
A115: 1915 | B115: Office Furniture & Equipment (5 years) | E115: 0 | H115: 0 | K115: 0 | M115: 0 | N115: 0 | O115: 0 | P115: 0 | Q115: 0 | S115: 0
A116: 1920 | B116: Computer Equipment - Hardware | E116: 0 | H116: 0 | K116: 0 | M116: 0 | N116: 0 | O116: 0 | P116: 0 | Q116: 0 | S116: 0
A117: 1920 | B117: Computer Equip.-Hardware(Post Mar. 22/04) | C117: 12678 | D117: 1752.84 | E117: 10925.16 | F117: =SUM(F45,I45) -> 33132.26 | G117: 26690 | H117: 6442.26 | I117: 1830 | J117: 2.83 | K117: 0.3533568905 | L117: 5 | M117: 0.2 | N117: 3860.480565 | O117: 1288.452 | P117: 183 | Q117: 5331.932565 | R117: =-'App.2-BA_Fixed Asset Cont'!J216 -> 5101.17 | S117: -230.7625654
A118: 1920 | B118: Computer Equip.-Hardware(Post Mar. 19/07) | E118: 0 | H118: 0 | K118: 0 | M118: 0 | N118: 0 | O118: 0 | P118: 0 | Q118: 0 | S118: 0
A119: 1930 | B119: Transportation Equipment (8 years) | C119: 34927.42 | E119: 34927.42 | F119: =SUM(F47,I47) -> 35425.16 | H119: 35425.16 | I119: 0 | J119: 4.1 | K119: 0.243902439 | L119: 8 | M119: 0.125 | N119: 8518.882927 | O119: 4428.145 | P119: 0 | Q119: 12947.02793 | R119: =-'App.2-BA_Fixed Asset Cont'!J219 -> 12981.89 | S119: 34.86207317
A120: 1930 | B120: Transportation Equipment ( 5 years) | C120: 18189.09 | E120: 18189.09 | F120: 54538.75 | G120: 31182.92 | H120: 23355.83 | I120: 0 | J120: 3 | K120: 0.3333333333 | L120: 5 | M120: 0.2 | N120: 6063.03 | O120: 4671.166 | P120: 0 | Q120: 10734.196 | R120: =-'App.2-BA_Fixed Asset Cont'!J220 -> 10907.75 | S120: 173.554
A121: 1940 | B121: Tools, Shop & Garage Equipment | C121: 15953 | E121: 15953 | F121: 22417.38 | H121: 22417.38 | I121: 1005 | J121: 6.17 | K121: 0.1620745543 | L121: 10 | M121: 0.1 | N121: 2585.575365 | O121: 2241.738 | P121: 50.25 | Q121: 4877.563365 | R121: =-'App.2-BA_Fixed Asset Cont'!J221 -> 7395.85 | S121: 2518.286635
A122: 1945 | B122: Measurement & Testing Equipment | C122: 3220 | E122: 3220 | F122: 6144.75 | G122: 6111.67 | H122: 33.08 | I122: 0 | J122: 2.69 | K122: 0.3717472119 | L122: 10 | M122: 0.1 | N122: 1197.026022 | O122: 3.308 | P122: 0 | Q122: 1200.334022 | R122: =-'App.2-BA_Fixed Asset Cont'!J222 -> 946.75 | S122: -253.5840223
A123: 1950 | B123: Power Operated Equipment(8 years) | C123: 20231.25 | E123: 20231.25 | F123: 85090 | H123: 85090 | I123: 0 | J123: 5.87 | K123: 0.1703577513 | L123: 8 | M123: 0.125 | N123: 3446.550256 | O123: 10636.25 | P123: 0 | Q123: 14082.80026 | R123: =-'App.2-BA_Fixed Asset Cont'!J223 -> 13561.25 | S123: -521.5502555
A124: 1950 | B124: Power Operated Equipment(5 years) | C124: 2458.91 | E124: 2458.91 | F124: 719.95 | G124: 4215.29 | H124: -3495.34 | I124: 14234 | J124: 3.65 | K124: 0.2739726027 | L124: 5 | M124: 0.2 | N124: 673.6739726 | O124: -699.068 | P124: 1423.4 | Q124: 1398.005973 | R124: =-'App.2-BA_Fixed Asset Cont'!J224 -> 381.22 | S124: -1016.785973 | T124: Bought snowmobile in December 2015
A125: 1955 | B125: Communications Equipment | C125: 6980 | E125: 6980 | F125: 5676.3 | G125: 1653.77 | H125: 4022.53 | I125: 11122 | J125: 4.55 | K125: 0.2197802198 | L125: 10 | M125: 0.1 | N125: 1534.065934 | O125: 402.253 | P125: 556.1 | Q125: 2492.418934 | R125: =-'App.2-BA_Fixed Asset Cont'!J225 -> 2431.98 | S125: -60.43893407
A126: 1955 | B126: Communication Equipment (Smart Meters) | E126: 0 | H126: 0 | K126: 0 | M126: 0 | N126: 0 | O126: 0 | P126: 0 | Q126: 0 | S126: 0
A127: 1960 | B127: Miscellaneous Equipment | E127: 0 | H127: 0 | K127: 0 | M127: 0 | N127: 0 | O127: 0 | P127: 0 | Q127: 0 | S127: 0
A128: 1970 | B128: Load Management Controls Customer Premises | E128: 0 | H128: 0 | K128: 0 | M128: 0 | N128: 0 | O128: 0 | P128: 0 | Q128: 0 | S128: 0
A129: 1975 | B129: Load Management Controls Utility Premises | E129: 0 | H129: 0 | K129: 0 | M129: 0 | N129: 0 | O129: 0 | P129: 0 | Q129: 0 | S129: 0
A130: 1980 | B130: System Supervisor Equipment | E130: 0 | H130: 0 | K130: 0 | M130: 0 | N130: 0 | O130: 0 | P130: 0 | Q130: 0 | S130: 0
A131: 1985 | B131: Miscellaneous Fixed Assets | C131: 6711 | D131: 276.06 | E131: 6434.94 | F131: =SUM(F59,I59) -> 2997.51 | G131: 3038.85 | H131: -41.34 | I131: 1523 | J131: 5.37 | K131: 0.1862197393 | L131: 10 | M131: 0.1 | N131: 1198.312849 | O131: -4.134 | P131: 76.15 | Q131: 1270.328849 | R131: =-'App.2-BA_Fixed Asset Cont'!J230 -> 1263.15 | S131: -7.178849162
A132: 1990 | B132: Other Tangible Property | E132: 0 | H132: 0 | K132: 0 | M132: 0 | N132: 0 | O132: 0 | P132: 0 | Q132: 0 | S132: 0
A133: 1995 | B133: Contributions & Grants | C133: -681468 | E133: =C133-D133 -> -681468 | F133: =SUM(F61,I61) -> -190438.08 | H133: =F133-G133 -> -190438.08 | J133: 29 | K133: =IF(J133=0,0,1/J133) -> 0.03448275862 | L133: 40 | M133: =IF(L133=0,0,1/L133) -> 0.025 | N133: =IF(J133=0,0,+E133/J133) -> -23498.89655 | O133: =IF(L133=0,0,+H133/L133) -> -4760.952 | P133: =IF(L133=0,0,+(I133*0.5)/L133) -> 0 | Q133: =IF(ISERROR(+N133+O133+P133), 0, +N133+O133+P133) -> -28259.84855 | R133: =-'App.2-BA_Fixed Asset Cont'!J232 -> -30758 | S133: =IF(ISERROR(+R133-122), 0, +R133-Q133) -> -2498.151448
A134: 2440 | B134: Deferred Revenue | E134: 0 | H134: 0 | I134: -40513 | K134: 0 | L134: 40 | M134: 0.025 | N134: 0 | O134: 0 | P134: -506.4125 | Q134: -506.4125 | R134: =-SUM('App.2-BA_Fixed Asset Cont'!J233) -> -2496.52 | S134: -1990.1075 | T134: average 40 years, but different for each type of asset
B135: Total | C135: =SUM(C95:C134) -> 4451731.67 | D135: 198447.58 | E135: 4253284.09 | F135: 1605315.67 | G135: 133122.08 | H135: 1472193.59 | I135: 260100 | N135: =SUM(N95:N134) -> 166711.0443 | O135: 89321.88233 | P135: 5110.140278 | Q135: 261143.067 | R135: 259233.58 | S135: -1909.486954
A138: General: | B138: Applicants are to complete this appendix to show the reasonability of the depreciation expense that is included in rate base via. Accumulated depreciation and the revenue requirement.
B139: Applicants must provide a breakdown of depreciation and amortization expense in the above format for all relevant accounts. Balances presented in the table should exclude asset retirement obligations (AROs) and the related depreciation and accretion expense. These should be disclosed separately consistent with the Notes of historical Audited Financial Statements.
A142: Notes:
A143: 1 | B143: This is the net book value of assets that existed as at the date of the utility's change in depreciation policies (i.e. as at Jan. 1, 2012 or Jan. 1, 2013). These assets are to be depreciated at the average remaining service life. This amount will not change in years subsequent to the date of the utility's change in depreciation policies. This column is expected to be used until the assets that existed as at the date of the utility's change in depreciation policies are fully depreciated.
A144: 2 | B144: This is the opening gross book value of assets that have been acquired after the date of the utilities change in depreciation policies (i.e. additions starting in 2012/2013 for those who changed policies Jan. 1, 2012/2013). These assets are to be depreciated at the revised service life. The amount is expected to be equal to the gross book value of the prior year plus the prior year's additions.
A145: 3 | B145: A recalculation should be performed to determine the average remaining life of opening balance of assets (i.e. excluding current year's additions) under the change in policies under CGAAP. For example, Asset A had a useful life of 20 years under CGAAP without the change in policies. On January 1 of the year of policy changes, Asset A was 3 years depreciated. As a result, Asset A would have a remaining service life of 17 years (20 years less 3 years) as at January 1 of the year of policy changes. Due to making the change in policies under CGAAP, management re-assessed the asset useful lives and concluded that the revised useful life of Asset A is now 30 years. Therefore, the average remaining useful life of the opening balance of Asset A is determined to be 27 years (30 years less 3 years) under the revised CGAAP as at January 1 of the year of policy changes.
A146: 4 | B146: The useful life used should be consistent with the OEB's regulatory accounting policies as set out in the Accounting Procedures Handbook for Electricity Distributors, effective Jan. 1, 2012 and also with the Report of the Board, Transition to International Financial Reporting Standards, EB-2008-0408, and the Kinectrics Report.
A147: 5 | B147: Board policy of the "half-year" rule - the applicant must ensure that additions in the year attract a half-year depreciation expense in the first year. Deviations from this standard practice must be supported in the application.
A148: 6 | B148: The applicant must provide an explanation of material variances in evidence.
A149: 7 | B149: This should include assets in column a (excel column C) that become fully depreciated since the date of the policy change. The amount input in b (excel column D) should equal the net book value of the asset as at the date of depreciation policy change
A150: 8 | B150: This should include assets in column d (excel column f) that have become fully depreciated. The amount input in e (excel column G) should equal the gross book value of the asset
A154: Appendix 2-C
A155: Depreciation and Amortization Expense
A157: This appendix is to be completed in conjunction with the accounting instructions in Appendix 2-B
A159: Scenario that applies | C159: Applicable Years and Accounting Standard | R159: Year Reflected in Schedule Below | S159: Accounting Standard Reflected in Schedule Below
A160: Rebasing for the first time with depreciation policy changes made in 2012. | C160: This appendix must be duplicated and completed for the years 2012 to 2018. The appendix for 2012 is to be completed under CGAAP (prior to changes in depreciation policies). The appendix for 2012 to 2014 must be completed under Revised CGAAP (after changes in depreciation policies). The appendix for 2014 to 2018 is to be completed under MIFRS (2014 if changes to MIFRS are material).
A161: Rebasing for the first time with depreciation policy changes made in 2013. | C161: This appendix must be duplicated and completed for the years 2013 to 2018. The appendix for 2013 is to be completed under CGAAP (prior to changes in depreciation policies). The appendix for 2013 to 2014 must be completed under Revised CGAAP (after changes in depreciation policies). The appendix for 2014 to 2018 is to be completed under MIFRS (2014 if changes to MIFRS are material).
A162: Already rebased with depreciation policy changes in a prior rate application | C162: This appendix must be completed for 2014 to 2018. The appendix for 2014 is to be completed under Revised CGAAP (after changes in depreciation policies). The appendix for 2014 to 2018 is to be completed under MIFRS (2014 if changes to MIFRS are material). | R162: 2016 | S162: MIFRS
C165: Book Values | J165: Service Lives | N165: Depreciation Expense
A166: Account | B166: Description | C166: Opening Net Book Value of Existing Assets as at Date of Policy Change (Jan. 1) 1 | D166: Less Fully Depreciated 7 | E166: Net Amount of Existing Assets Before Policy Change to be Depreciated | F166: Opening Gross Book Value of Assets Acquired After Policy Change 2 | G166: Less Fully Depreciated 8 | H166: Net Amount of Assets Acquired After Policy Change to be Depreciated | I166: Current Year Additions | J166: Average Remaining Life of Assets Existing Before Policy Change 3 | K166: Depreciation Rate Assets Acquired After Policy Change | L166: Life of Assets Acquired After Policy Change 4 | M166: Depreciation Rate on New Additions | N166: Depreciation Expense on Assets Existing Before Policy Change | O166: Depreciation Expense on Assets Acquired After Policy Change | P166: Depreciation Expense on Current Year Additions 5 | Q166: Total Current Year Depreciation Expense | R166: Depreciation Expense per Appendix 2-BA Fixed Assets, Column J | S166: Variance 6
C167: a | D167: b | E167: c = a-b | F167: d | G167: e | H167: f = d- e | I167: g | J167: h | K167: i = 1/h | L167: j | M167: k = 1/j | N167: l = c/h | O167: m = f/j | P167: n = g*0.5/j | Q167: o = l+m+n | R167: p | S167: q = p-o
A168: 1611 | B168: Computer Software (Formally known as Account 1925) | C168: 24240 | D168: 14825.68 | E168: =C168-D168 -> 9414.32 | F168: =SUM(F95,I95) -> 92752.64 | G168: 57284.64 | H168: =F168-G168 -> 35468 | I168: 0 | J168: 3.27 | K168: =IF(J168=0,0,1/J168) -> 0.3058103976 | L168: 5 | M168: =IF(L168=0,0,1/L168) -> 0.2 | N168: =IF(J168=0,0,+E168/J168) -> 2878.996942 | O168: =IF(L168=0,0,+H168/L168) -> 7093.6 | P168: =IF(L168=0,0,+(I168*0.5)/L168) -> 0 | Q168: =IF(ISERROR(+N168+O168+P168), 0, +N168+O168+P168) -> 9972.596942 | R168: =-'App.2-BA_Fixed Asset Cont'!J254 -> 12527.6 | S168: =IF(ISERROR(+R168-122), 0, +R168-Q168) -> 2555.003058
A169: 1612 | B169: Land Rights (Formally known as Account 1906) | E169: =C169-D169 -> 0 | H169: =F169-G169 -> 0 | K169: =IF(J169=0,0,1/J169) -> 0 | M169: =IF(L169=0,0,1/L169) -> 0 | N169: =IF(J169=0,0,+E169/J169) -> 0 | O169: =IF(L169=0,0,+H169/L169) -> 0 | P169: =IF(L169=0,0,+(I169*0.5)/L169) -> 0 | Q169: =IF(ISERROR(+N169+O169+P169), 0, +N169+O169+P169) -> 0 | S169: =IF(ISERROR(+R169-122), 0, +R169-Q169) -> 0
A170: 1805 | B170: Land | E170: 0 | H170: 0 | K170: 0 | M170: 0 | N170: 0 | O170: =IF(L170=0,0,+H170/L170) -> 0 | P170: 0 | Q170: 0 | S170: 0
A171: 1808 | B171: Buildings | C171: 50840 | E171: 50840 | H171: 0 | J171: 14 | K171: 0.07142857143 | L171: 25 | M171: 0.04 | N171: 3631.428571 | O171: 0 | P171: 0 | Q171: 3631.428571 | R171: =-'App.2-BA_Fixed Asset Cont'!J257 -> 3674.56 | S171: 43.13142857
A172: 1810 | B172: Leasehold Improvements | E172: 0 | H172: 0 | K172: 0 | M172: 0 | N172: 0 | O172: 0 | P172: 0 | Q172: 0 | S172: 0
A173: 1815 | B173: Transformer Station Equipment >50 kV | E173: 0 | H173: 0 | K173: 0 | M173: 0 | N173: 0 | O173: 0 | P173: 0 | Q173: 0 | S173: 0
A174: 1820 | B174: Distribution Station Equipment <50 kV | E174: 0 | H174: 0 | K174: 0 | M174: 0 | N174: 0 | O174: 0 | P174: 0 | Q174: 0 | S174: 0
A175: 1825 | B175: Storage Battery Equipment | E175: 0 | H175: 0 | K175: 0 | M175: 0 | N175: 0 | O175: 0 | P175: 0 | Q175: 0 | S175: 0
A176: 1830 | B176: Poles, Towers & Fixtures | C176: 2287202 | E176: 2287202 | F176: =SUM(F103,I103) -> 654198.24 | H176: 654198.24 | I176: 204058.9 | J176: 34 | K176: 0.02941176471 | L176: 45 | M176: 0.02222222222 | N176: 67270.64706 | O176: 14537.73867 | P176: 2267.321111 | Q176: 84075.70684 | R176: =-'App.2-BA_Fixed Asset Cont'!J262 -> 83342.75 | S176: -732.9568366
A177: 1835 | B177: Overhead Conductors & Devices | C177: 605093 | E177: 605093 | F177: =SUM(F104,I104) -> 46400.08 | H177: 46400.08 | I177: 28065.54 | J177: 34 | K177: 0.02941176471 | L177: 45 | M177: 0.02222222222 | N177: 17796.85294 | O177: 1031.112889 | P177: 311.8393333 | Q177: 19139.80516 | R177: =-'App.2-BA_Fixed Asset Cont'!J263 -> 19109.49 | S177: -30.3151634
A178: 1840 | B178: Underground Conduit | C178: 105284 | E178: 105284 | F178: =SUM(F105,I105) -> 13963.13 | H178: 13963.13 | I178: 5827.43 | J178: 39 | K178: 0.02564102564 | L178: 50 | M178: 0.02 | N178: 2699.589744 | O178: 279.2626 | P178: 58.2743 | Q178: 3037.126644 | R178: =-'App.2-BA_Fixed Asset Cont'!J264 -> 3040 | S178: 2.87335641
A179: 1845 | B179: Underground Conductors & Devices | C179: 582212 | E179: 582212 | F179: =SUM(F106,I106) -> 88961.79 | H179: 88961.79 | I179: 46334.51 | J179: 29 | K179: 0.03448275862 | L179: 40 | M179: 0.025 | N179: 20076.27586 | O179: 2224.04475 | P179: 579.181375 | Q179: 22879.50199 | R179: =-'App.2-BA_Fixed Asset Cont'!J265 -> 22908.02 | S179: 28.51801293
A180: 1850 | B180: Line Transformers | C180: 1020305 | E180: 1020305 | F180: =SUM(F107,I107) -> 234111.45 | H180: 234111.45 | I180: 20392.31 | J180: 29 | K180: 0.03448275862 | L180: 40 | M180: 0.025 | N180: 35182.93103 | O180: 5852.78625 | P180: 254.903875 | Q180: 41290.62116 | R180: =-'App.2-BA_Fixed Asset Cont'!J266 -> 40549.05 | S180: -741.5711595
A181: 1855 | B181: Services (Overhead & Underground) | E181: 0 | H181: 0 | K181: 0 | M181: 0 | N181: 0 | O181: 0 | P181: 0 | Q181: 0 | S181: 0
A182: 1860 | B182: Meters | C182: 327572 | D182: 181593 | E182: 145979 | F182: =SUM(F109,I109) -> 18953.01 | H182: 18953.01 | I182: 799.15 | J182: 14 | K182: 0.07142857143 | L182: 25 | M182: 0.04 | N182: 10427.07143 | O182: 758.1204 | P182: 15.983 | Q182: 11201.17483 | R182: =-'App.2-BA_Fixed Asset Cont'!J268 -> 12653.83 | S182: 1452.655171
A183: 1860 | B183: Meters (Smart Meters) | E183: 0 | F183: =SUM(F110,I110) -> 662574 | G183: 14890.08 | H183: 647683.92 | I183: 4330.08 | J183: 12 | K183: 0.08333333333 | L183: 15 | M183: 0.06666666667 | N183: 0 | O183: 43178.928 | P183: 144.336 | Q183: 43323.264 | R183: =-'App.2-BA_Fixed Asset Cont'!J269 -> 42989.39 | S183: -333.874
A184: 1905 | B184: Land | E184: 0 | H184: 0 | K184: 0 | M184: 0 | N184: 0 | O184: 0 | P184: 0 | Q184: 0 | S184: 0
A185: 1908 | B185: Buildings & Fixtures | E185: 0 | H185: 0 | K185: 0 | M185: 0 | N185: 0 | O185: 0 | P185: 0 | Q185: 0 | S185: 0
A186: 1910 | B186: Leasehold Improvements | E186: 0 | H186: 0 | K186: 0 | M186: 0 | N186: 0 | O186: 0 | P186: 0 | Q186: 0 | S186: 0
A187: 1915 | B187: Office Furniture & Equipment (10 years) | C187: 9103 | E187: 9103 | F187: =SUM(F114,I114) -> 8596.35 | G187: 753.84 | H187: 7842.51 | I187: 298.95 | J187: 7.79 | K187: 0.1283697047 | L187: 10 | M187: 0.1 | N187: 1168.549422 | O187: 784.251 | P187: 14.9475 | Q187: 1967.747922 | R187: =-'App.2-BA_Fixed Asset Cont'!J273 -> 1915.73 | S187: -52.01792234
A188: 1915 | B188: Office Furniture & Equipment (5 years) | E188: 0 | H188: 0 | K188: 0 | M188: 0 | N188: 0 | O188: 0 | P188: 0 | Q188: 0 | S188: 0
A189: 1920 | B189: Computer Equipment - Hardware | E189: 0 | H189: 0 | K189: 0 | M189: 0 | N189: 0 | O189: 0 | P189: 0 | Q189: 0 | S189: 0
A190: 1920 | B190: Computer Equip.-Hardware(Post Mar. 22/04) | C190: 12678 | D190: 1752.84 | E190: 10925.16 | F190: =SUM(F117,I117) -> 34962.26 | G190: 27009.85 | H190: 7952.41 | I190: 0 | J190: 2.83 | K190: 0.3533568905 | L190: 5 | M190: 0.2 | N190: 3860.480565 | O190: 1590.482 | P190: 0 | Q190: 5450.962565 | R190: =-'App.2-BA_Fixed Asset Cont'!J275 -> 5069.73 | S190: -381.2325654
A191: 1920 | B191: Computer Equip.-Hardware(Post Mar. 19/07) | E191: 0 | H191: 0 | K191: 0 | M191: 0 | N191: 0 | O191: 0 | P191: 0 | Q191: 0 | S191: 0
A192: 1930 | B192: Transportation Equipment (8 years) | C192: 34927.42 | E192: 34927.42 | F192: =SUM(F119,I119) -> 35425.16 | G192: 68429.88 | H192: -33004.72 | I192: 0 | J192: 4.1 | K192: 0.243902439 | L192: 8 | M192: 0.125 | N192: 8518.882927 | O192: -4125.59 | P192: 0 | Q192: 4393.292927 | R192: =-'App.2-BA_Fixed Asset Cont'!J278 -> 5140.92 | S192: 747.6270732
A193: 1930 | B193: Transportation Equipment ( 5 years) | C193: 18189.09 | E193: 18189.09 | F193: 54538.75 | G193: 31183 | H193: 23355.75 | I193: 0 | J193: 3 | K193: 0.3333333333 | L193: 5 | M193: 0.2 | N193: 6063.03 | O193: 4671.15 | P193: 0 | Q193: 10734.18 | R193: =-'App.2-BA_Fixed Asset Cont'!J279 -> 10907.75 | S193: 173.57
A194: 1940 | B194: Tools, Shop & Garage Equipment | C194: 15953 | E194: 15953 | F194: 23422.38 | H194: 23422.38 | I194: 3944.75 | J194: 6.17 | K194: 0.1620745543 | L194: 10 | M194: 0.1 | N194: 2585.575365 | O194: 2342.238 | P194: 197.2375 | Q194: 5125.050865 | R194: =-'App.2-BA_Fixed Asset Cont'!J280 -> 7466.34 | S194: 2341.289135
A195: 1945 | B195: Measurement & Testing Equipment | C195: 3220 | E195: 3220 | F195: 6144.75 | G195: 8948.29 | H195: -2803.54 | I195: 15389.3 | J195: 2.69 | K195: 0.3717472119 | L195: 10 | M195: 0.1 | N195: 1197.026022 | O195: -280.354 | P195: 769.465 | Q195: 1686.137022 | R195: =-'App.2-BA_Fixed Asset Cont'!J281 -> 1342.97 | S195: -343.1670223
A196: 1950 | B196: Power Operated Equipment(8 years) | C196: 20231.25 | E196: 20231.25 | F196: 85090 | H196: 85090 | I196: 0 | J196: 5.87 | K196: 0.1703577513 | L196: 8 | M196: 0.125 | N196: 3446.550256 | O196: 10636.25 | P196: 0 | Q196: 14082.80026 | R196: =-'App.2-BA_Fixed Asset Cont'!J282 -> 13561.25 | S196: -521.5502555
A197: 1950 | B197: Power Operated Equipment(5 years) | C197: 2458.91 | E197: 2458.91 | F197: 14953.95 | G197: 4215.29 | H197: 10738.66 | I197: 779 | J197: 3.65 | K197: 0.2739726027 | L197: 5 | M197: =IF(L197=0,0,1/L197) -> 0.2 | N197: =IF(J197=0,0,+E197/J197) -> 673.6739726 | O197: =IF(L197=0,0,+H197/L197) -> 2147.732 | P197: =IF(L197=0,0,+(I197*0.5)/L197) -> 77.9 | Q197: =IF(ISERROR(+N197+O197+P197), 0, +N197+O197+P197) -> 2899.305973 | R197: =-'App.2-BA_Fixed Asset Cont'!J283 -> 3107.64 | S197: 208.3340274
A198: 1955 | B198: Communications Equipment | C198: 6980 | E198: 6980 | F198: =SUM(F125,I125) -> 16798.3 | G198: 3494.5 | H198: 13303.8 | I198: 599 | J198: 4.55 | K198: 0.2197802198 | L198: 10 | M198: 0.1 | N198: 1534.065934 | O198: 1330.38 | P198: 29.95 | Q198: 2894.395934 | R198: =-'App.2-BA_Fixed Asset Cont'!J284 -> 2839.03 | S198: -55.36593407
A199: 1955 | B199: Communication Equipment (Smart Meters) | E199: 0 | H199: 0 | K199: 0 | M199: 0 | N199: 0 | O199: 0 | P199: 0 | Q199: 0 | S199: 0
A200: 1960 | B200: Miscellaneous Equipment | E200: 0 | H200: 0 | K200: 0 | M200: 0 | N200: 0 | O200: 0 | P200: 0 | Q200: 0 | S200: 0
A201: 1970 | B201: Load Management Controls Customer Premises | E201: 0 | H201: 0 | K201: 0 | M201: 0 | N201: 0 | O201: 0 | P201: 0 | Q201: 0 | S201: 0
A202: 1975 | B202: Load Management Controls Utility Premises | E202: 0 | H202: 0 | K202: 0 | M202: 0 | N202: 0 | O202: 0 | P202: 0 | Q202: 0 | S202: 0
A203: 1980 | B203: System Supervisor Equipment | E203: 0 | H203: 0 | K203: 0 | M203: 0 | N203: 0 | O203: 0 | P203: 0 | Q203: 0 | S203: 0
A204: 1985 | B204: Miscellaneous Fixed Assets | C204: 6711 | D204: 276.06 | E204: 6434.94 | F204: =SUM(F131,I131) -> 4520.51 | G204: 4028.3 | H204: 492.21 | I204: 0 | J204: 5.37 | K204: 0.1862197393 | L204: 10 | M204: 0.1 | N204: 1198.312849 | O204: 49.221 | P204: 0 | Q204: 1247.533849 | R204: =-'App.2-BA_Fixed Asset Cont'!J289 -> 1240.45 | S204: -7.083849162
A205: 1990 | B205: Other Tangible Property | E205: 0 | H205: 0 | K205: 0 | M205: 0 | N205: 0 | O205: 0 | P205: 0 | Q205: 0 | S205: 0
A206: 1995 | B206: Contributions & Grants | C206: -681468 | E206: =C206-D206 -> -681468 | F206: =SUM(F133,I133) -> -190438.08 | H206: =F206-G206 -> -190438.08 | J206: 29 | K206: =IF(J206=0,0,1/J206) -> 0.03448275862 | L206: 40 | M206: =IF(L206=0,0,1/L206) -> 0.025 | N206: =IF(J206=0,0,+E206/J206) -> -23498.89655 | O206: =IF(L206=0,0,+H206/L206) -> -4760.952 | P206: =IF(L206=0,0,+(I206*0.5)/L206) -> 0 | Q206: =IF(ISERROR(+N206+O206+P206), 0, +N206+O206+P206) -> -28259.84855 | R206: =-'App.2-BA_Fixed Asset Cont'!J291 -> -31626.4 | S206: =IF(ISERROR(+R206-122), 0, +R206-Q206) -> -3366.551448
A207: 2440 | B207: Deferred Revenue | E207: 0 | F207: =SUM(F134,I134) -> -40513 | H207: -40513 | I207: -29695.84 | K207: 0 | L207: 40 | M207: 0.025 | N207: 0 | O207: -1012.825 | P207: -371.198 | Q207: -1384.023 | R207: =-'App.2-BA_Fixed Asset Cont'!J292 -> -2477.26 | S207: -1093.237
B208: Total | C208: =SUM(C168:C207) -> 4451731.67 | D208: 198447.58 | E208: 4253284.09 | F208: 1865415.67 | G208: 220237.67 | H208: 1645178 | I208: 301123.08 | N208: =SUM(N168:N207) -> 166711.0443 | O208: 88327.57656 | P208: 4350.140994 | Q208: 259388.7619 | R208: 259282.84 | S208: -105.9218932
A211: General: | B211: Applicants are to complete this appendix to show the reasonability of the depreciation expense that is included in rate base via. Accumulated depreciation and the revenue requirement.
B212: Applicants must provide a breakdown of depreciation and amortization expense in the above format for all relevant accounts. Balances presented in the table should exclude asset retirement obligations (AROs) and the related depreciation and accretion expense. These should be disclosed separately consistent with the Notes of historical Audited Financial Statements.
A215: Notes:
A216: 1 | B216: This is the net book value of assets that existed as at the date of the utility's change in depreciation policies (i.e. as at Jan. 1, 2012 or Jan. 1, 2013). These assets are to be depreciated at the average remaining service life. This amount will not change in years subsequent to the date of the utility's change in depreciation policies. This column is expected to be used until the assets that existed as at the date of the utility's change in depreciation policies are fully depreciated.
A217: 2 | B217: This is the opening gross book value of assets that have been acquired after the date of the utilities change in depreciation policies (i.e. additions starting in 2012/2013 for those who changed policies Jan. 1, 2012/2013). These assets are to be depreciated at the revised service life. The amount is expected to be equal to the gross book value of the prior year plus the prior year's additions.
A218: 3 | B218: A recalculation should be performed to determine the average remaining life of opening balance of assets (i.e. excluding current year's additions) under the change in policies under CGAAP. For example, Asset A had a useful life of 20 years under CGAAP without the change in policies. On January 1 of the year of policy changes, Asset A was 3 years depreciated. As a result, Asset A would have a remaining service life of 17 years (20 years less 3 years) as at January 1 of the year of policy changes. Due to making the change in policies under CGAAP, management re-assessed the asset useful lives and concluded that the revised useful life of Asset A is now 30 years. Therefore, the average remaining useful life of the opening balance of Asset A is determined to be 27 years (30 years less 3 years) under the revised CGAAP as at January 1 of the year of policy changes.
A219: 4 | B219: The useful life used should be consistent with the OEB's regulatory accounting policies as set out in the Accounting Procedures Handbook for Electricity Distributors, effective Jan. 1, 2012 and also with the Report of the Board, Transition to International Financial Reporting Standards, EB-2008-0408, and the Kinectrics Report.
A220: 5 | B220: Board policy of the "half-year" rule - the applicant must ensure that additions in the year attract a half-year depreciation expense in the first year. Deviations from this standard practice must be supported in the application.
A221: 6 | B221: The applicant must provide an explanation of material variances in evidence.
A222: 7 | B222: This should include assets in column a (excel column C) that become fully depreciated since the date of the policy change. The amount input in b (excel column D) should equal the net book value of the asset as at the date of depreciation policy change
A223: 8 | B223: This should include assets in column d (excel column f) that have become fully depreciated. The amount input in e (excel column G) should equal the gross book value of the asset
A229: Appendix 2-C
A230: Depreciation and Amortization Expense
A232: This appendix is to be completed in conjunction with the accounting instructions in Appendix 2-B
A234: Scenario that applies | C234: Applicable Years and Accounting Standard | R234: Year Reflected in Schedule Below | S234: Accounting Standard Reflected in Schedule Below
A235: Rebasing for the first time with depreciation policy changes made in 2012. | C235: This appendix must be duplicated and completed for the years 2012 to 2018. The appendix for 2012 is to be completed under CGAAP (prior to changes in depreciation policies). The appendix for 2012 to 2014 must be completed under Revised CGAAP (after changes in depreciation policies). The appendix for 2014 to 2018 is to be completed under MIFRS (2014 if changes to MIFRS are material).
A236: Rebasing for the first time with depreciation policy changes made in 2013. | C236: This appendix must be duplicated and completed for the years 2013 to 2018. The appendix for 2013 is to be completed under CGAAP (prior to changes in depreciation policies). The appendix for 2013 to 2014 must be completed under Revised CGAAP (after changes in depreciation policies). The appendix for 2014 to 2018 is to be completed under MIFRS (2014 if changes to MIFRS are material).
A237: Already rebased with depreciation policy changes in a prior rate application | C237: This appendix must be completed for 2014 to 2018. The appendix for 2014 is to be completed under Revised CGAAP (after changes in depreciation policies). The appendix for 2014 to 2018 is to be completed under MIFRS (2014 if changes to MIFRS are material). | R237: 2017 | S237: MIFRS
C240: Book Values | J240: Service Lives | N240: Depreciation Expense
A241: Account | B241: Description | C241: Opening Net Book Value of Existing Assets as at Date of Policy Change (Jan. 1) 1 | D241: Less Fully Depreciated 7 | E241: Net Amount of Existing Assets Before Policy Change to be Depreciated | F241: Opening Gross Book Value of Assets Acquired After Policy Change 2 | G241: Less Fully Depreciated 8 | H241: Net Amount of Assets Acquired After Policy Change to be Depreciated | I241: Current Year Additions | J241: Average Remaining Life of Assets Existing Before Policy Change 3 | K241: Depreciation Rate Assets Acquired After Policy Change | L241: Life of Assets Acquired After Policy Change 4 | M241: Depreciation Rate on New Additions | N241: Depreciation Expense on Assets Existing Before Policy Change | O241: Depreciation Expense on Assets Acquired After Policy Change | P241: Depreciation Expense on Current Year Additions 5 | Q241: Total Current Year Depreciation Expense | R241: Depreciation Expense per Appendix 2-BA Fixed Assets, Column J | S241: Variance 6
C242: a | D242: b | E242: c = a-b | F242: d | G242: e | H242: f = d- e | I242: g | J242: h | K242: i = 1/h | L242: j | M242: k = 1/j | N242: l = c/h | O242: m = f/j | P242: n = g*0.5/j | Q242: o = l+m+n | R242: p | S242: q = p-o
A243: 1611 | B243: Computer Software (Formally known as Account 1925) | C243: 24240 | D243: 14825.68 | E243: =C243-D243 -> 9414.32 | F243: =SUM(F168,I168) -> 92752.64 | G243: 79784.64 | H243: =F243-G243 -> 12968 | I243: 45000 | J243: 3.27 | K243: =IF(J243=0,0,1/J243) -> 0.3058103976 | L243: 5 | M243: =IF(L243=0,0,1/L243) -> 0.2 | N243: =IF(J243=0,0,+E243/J243) -> 2878.996942 | O243: =IF(L243=0,0,+H243/L243) -> 2593.6 | P243: =IF(L243=0,0,+(I243*0.5)/L243) -> 4500 | Q243: =IF(ISERROR(+N243+O243+P243), 0, +N243+O243+P243) -> 9972.596942 | R243: =-'App.2-BA_Fixed Asset Cont'!J314 -> 8403 | S243: =IF(ISERROR(+R243-122), 0, +R243-Q243) -> -1569.596942
A244: 1612 | B244: Land Rights (Formally known as Account 1906) | E244: =C244-D244 -> 0 | H244: =F244-G244 -> 0 | K244: =IF(J244=0,0,1/J244) -> 0 | M244: =IF(L244=0,0,1/L244) -> 0 | N244: =IF(J244=0,0,+E244/J244) -> 0 | O244: =IF(L244=0,0,+H244/L244) -> 0 | P244: =IF(L244=0,0,+(I244*0.5)/L244) -> 0 | Q244: =IF(ISERROR(+N244+O244+P244), 0, +N244+O244+P244) -> 0 | S244: =IF(ISERROR(+R244-122), 0, +R244-Q244) -> 0
... 112 more rows

Sheet App.2-D_Overhead
F1: File Number: | G1: =EBNUMBER -> EB-2017-0073
F2: Exhibit: | G2: 2
F3: Tab:
F4: Schedule:
F5: Page:
F7: Date: | G7: 2017-08-28
A9: Appendix 2-D
A10: Overhead Expense
A12: Applicants are to provide a breakdown of OM&A before capitalization in the below table. OM&A before capitalization may be broken down by cost center, program, drivers or another format best suited to focus on capitalized vs. uncapitalized OM&A.
A14: OM&A Before Capitalization
B15: =F15-4 -> 2014 | C15: =F15-3 -> 2015 | D15: =F15-2 -> 2016 | E15: =F15-1 -> 2017 | F15: =TestYear -> 2018
B16: Historical Year | C16: Historical Year | D16: Historical Year | E16: Bridge Year | F16: Test Year
A17: Total OM&A Before Capitalization | B17: 1499301 | C17: 1493964 | D17: 1622607 | E17: 1694090 | F17: 1639469
A20: Total OM&A Before Capitalization (B) | B20: =SUM(B17:B19) -> 1499301 | C20: =SUM(C17:C19) -> 1493964 | D20: =SUM(D17:D19) -> 1622607 | E20: =SUM(E17:E19) -> 1694090 | F20: =SUM(F17:F19) -> 1639469
A22: Applicants are to provide a breakdown of capitalized OM&A in the below table. Capitalized OM&A may be broken down using the categories listed in the table below if possible. Otherwise, applicants are to provide its own break down of capitalized OM&A.
A24: Capitalized OM&A | G24: Directly | H24: Explanation for Change in Overhead Capitalized
B25: =F25-4 -> 2014 | C25: =F25-3 -> 2015 | D25: =F25-2 -> 2016 | E25: =F25-1 -> 2017 | F25: =TestYear -> 2018 | G25: Attributable?
B26: Historical Year | C26: Historical Year | D26: Historical Year | E26: Bridge Year | F26: Test Year | G26: (Yes/No)
A27: employee benefits | B27: 32617.12 | C27: 39766 | D27: 54827 | E27: 35307 | F27: 28652 | G27: Yes | H27: No Changes made to Overhead Capitalized
A28: Trucking/Fleet Costs | B28: 11907.54 | C28: 17026 | D28: 17874 | E28: 17223 | F28: 17431 | G28: Yes | H28: No Changes made to Overhead Capitalized
A29: Material | B29: 5268.03 | C29: 5395 | D29: 6895 | E29: 4898 | F29: 4986 | G29: Yes | H29: No Changes made to Overhead Capitalized
A30: Downtime (Sick time/Vacation etc.) | B30: 9607.68 | C30: 11531 | D30: 11566 | E30: 8553 | F30: 6941 | G30: Yes | H30: No Changes made to Overhead Capitalized
A38: Insert description of additional item(s) and new rows if needed
A40: Total Capitalized OM&A (A) | B40: =SUM(B27:B39) -> 59400.37 | C40: =SUM(C27:C39) -> 73718 | D40: =SUM(D27:D39) -> 91162 | E40: =SUM(E27:E39) -> 65981 | F40: =SUM(F27:F39) -> 58010
A42: % of Capitalized OM&A (=A/B) | B42: =IF(ISERROR(B40/B20),"0%",B40/B20) -> 0.03961870899 | C42: =IF(ISERROR(C40/C20),"0%",C40/C20) -> 0.04934389316 | D42: =IF(ISERROR(D40/D20),"0%",D40/D20) -> 0.05618242741 | E42: =IF(ISERROR(E40/E20),"0%",E40/E20) -> 0.03894775366 | F42: =IF(ISERROR(F40/F20),"0%",F40/F20) -> 0.03538340768

Sheet App.2-EA_Account 1575 (2015)
H1: File Number: | I1: =EBNUMBER -> EB-2017-0073
H2: Exhibit: | I2: 9
H3: Tab:
H4: Schedule:
H5: Page:
H7: Date: | I7: 2017-08-28
A9: Appendix 2-EA
A10: Account 1575 - IFRS-CGAAP Transitional PP&E Amounts
A11: 2015 Adopters of IFRS for Financial Reporting Purposes
A13: For applicants that adopted IFRS on January 1, 2015 for financial reporting purposes
B17: 2014 | C17: =TestYear-3 -> 2015 | D17: =TestYear-2 -> 2016 | E17: =CONCATENATE(TestYear-1," Bridge Year") -> 2017 Bridge Year | F17: =CONCATENATE(TestYear," Rebasing Year") -> 2018 Rebasing Year
A18: Reporting Basis | B18: CGAAP | C18: CGAAP | D18: CGAAP | E18: MIFRS | F18: MIFRS
B19: Actual | C19: Actual | D19: Actual | E19: Forecast | F19: Forecast
D20: $ | E20: $
A21: PP&E Values under CGAAP
A22: Opening net PP&E - Note 1 | B22: 4936887 | C22: =+B25 -> 4992542.37 | D22: =+C25 -> 4988393.57 | E22: =+D25 -> 5026747.12
A23: Net Additions - Note 4 | B23: 276063 | C23: 255121 | D23: 272451 | E23: 425354
A24: Net Depreciation (amounts should be negative) - Note 4 | B24: =-218015-2392.63 -> -220407.63 | C24: =-257912-1357.8 -> -259269.8 | D24: =-232624-1473.45 -> -234097.45 | E24: -258997
A25: Closing net PP&E (1) | B25: =SUM(B22:B24) -> 4992542.37 | C25: =SUM(C22:C24) -> 4988393.57 | D25: =SUM(D22:D24) -> 5026747.12 | E25: =SUM(E22:E24) -> 5193104.12
A27: PP&E Values under MIFRS (Starts from 2014, the transition year)
A28: Opening net PP&E - Note 1 | B28: 4936887 | C28: =+B31 -> 4957111 | D28: =+C31 -> 4944984 | E28: =+D31 -> 4979216
A29: Net Additions - Note 4 | B29: 183646 | C29: 225089 | D29: 250957 | E29: 405090
A30: Net Depreciation (amounts should be negative) - Note 4 | B30: -163422 | C30: -237216 | D30: -216725 | E30: -244171
A31: Closing net PP&E (2) | B31: =SUM(B28:B30) -> 4957111 | C31: =SUM(C28:C30) -> 4944984 | D31: =SUM(D28:D30) -> 4979216 | E31: =SUM(E28:E30) -> 5140135
A33: Difference in Closing net PP&E, former CGAAP vs. revised CGAAP | B33: =B25-B31 -> 35431.37 | C33: =C25-C31 -> 43409.57 | D33: =D25-D31 -> 47531.12 | E33: =E25-E31 -> 52969.12
A36: Effect on Deferral and Variance Account Rate Riders
A37: Closing balance in Account 1575 | F37: =IF(ISERROR(E33), 0, E33) -> 52969.12 | H37: WACC | I37: 0.0372
A38: Return on Rate Base Associated with Account 1575 balance at WACC - Note 2 | F38: =E33*I37*I38 -> 9852.25632 | G38: # of years of rate rider disposition period | I38: 5
A39: Amount included in Deferral and Variance Account Rate Rider Calculation | F39: =F37+F38 -> 62821.37632
A41: Notes:
A42: 1 For an applicant that adopted IFRS on January 1, 2015, the PP&E values as of January 1, 2014 under both CGAAP and MIFRS should be the same.
A43: 2 Return on rate base associated with deferred balance is calculated as:
A44: the deferral account closing balance as of 2017 x WACC X # of years of rate rider disposition period
A45: * Please note that the calculation should be adjusted once WACC is updated and finalized in the rate application.
A46: 3 The PP&E deferral account is cleared by including the total balance in the deferral and variance account rate rider calculation.
A47: 4 Net additions are additions net of disposals; Net depreciation is additions to depreciation net of disposals.

Sheet App.2-EB_Account 1576 (2012)
K1: File Number: | L1: =EBNUMBER -> EB-2017-0073
K2: Exhibit:
K3: Tab:
K4: Schedule:
K5: Page:
K7: Date: | L7: 2017-08-28
A9: Appendix 2-EB
A10: Account 1576 - Accounting Changes under CGAAP
A11: 2012 Changes in Accounting Policies under CGAAP
A13: For applicants with a balance in Account 1576 and made capitalization and depreciation expense accounting policy changes under CGAAP effective January 1, 2012. This is the first time the applicant is rebasing with changes in these accounting policies.
B17: Prior Years Rebasing | C17: 2012 | D17: 2013 | E17: 2014 | F17: 2015 | G17: 2016 | H17: 2017 | I17: 2018 Rebasing Year
A18: Reporting Basis | B18: CGAAP | C18: CGAAP | D18: CGAAP | E18: CGAAP | F18: MIFRS - Note 5 | G18: MIFRS | H18: MIFRS | I18: MIFRS
B19: Forecast | C19: Actual | D19: Actual | E19: Actual | F19: Actual | G19: Actual | H19: Forecast | I19: Forecast
C20: $ | D20: $ | E20: $ | F20: $ | G20: $ | H20: $
A21: PP&E Values under former CGAAP
A22: Opening net PP&E - Note 1 | D22: =+C25 -> 0 | E22: =+D25 -> 0 | F22: =+E25 -> 0 | G22: =+F25 -> 0 | H22: =+G25 -> 0
A23: Net Additions - Note 4
A24: Net Depreciation (amounts should be negative) - Note 4
A25: Closing net PP&E (1) | C25: =C22+C23+C24 -> 0 | D25: 0 | E25: 0 | F25: 0 | G25: 0 | H25: 0
A27: PP&E Values under revised CGAAP (Starts from 2012)
A28: Opening net PP&E - Note 1 | D28: =+C31 -> 0 | E28: =+D31 -> 0 | F28: =+E31 -> 0 | G28: =+F31 -> 0 | H28: =+G31 -> 0
A29: Net Additions - Note 4
A30: Net Depreciation (amounts should be negative) - Note 4
A31: Closing net PP&E (2) | C31: =SUM(C28:C30) -> 0 | D31: 0 | E31: 0 | F31: 0 | G31: 0 | H31: 0
A33: Difference in Closing net PP&E, former CGAAP vs. revised CGAAP | C33: =C25-C31 -> 0 | D33: 0 | E33: 0 | F33: 0 | G33: 0 | H33: 0
A36: Effect on Deferral and Variance Account Rate Riders
A37: Closing balance in Account 1576 | I37: =IF(ISERROR(H33), 0, H33) -> 0 | K37: WACC
A38: Return on Rate Base Associated with Account 1576 balance at WACC - Note 2 | I38: =H33*L37*L38 -> 0 | J38: # of years of rate rider disposition period
A39: Amount included in Deferral and Variance Account Rate Rider Calculation | I39: =I37+I38 -> 0
A41: Notes:
A42: 1 For an applicant that made the capitalization and depreciation expense accounting policy changes on January 1, 2012, the PP&E values as of January 1, 2012 under both former CGAAP and revised CGAAP should be the same.
A43: 2 Return on rate base associated with Account 1576 balance is calculated as:
A44: the variance account ending balance as of 2017 x WACC X # of years of rate rider disposition period
A45: * Please note that the calculation should be adjusted once WACC is updated and finalized in the rate application.
A46: 3 Account 1576 is cleared by including the total balance in the deferral and variance account rate rider calculation.
A47: 4 Net additions are additions net of disposals; Net depreciation is additions to depreciation net of disposals.
A48: 5 Differences due to the adoption of MIFRS are to be shown separately in Account 1575 in Appendix 2-EA as Accounts 1575 and 1576 cannot be used interchangably.

Sheet App.2-EC_Account 1576 (2013)
J1: File Number: | K1: =EBNUMBER -> EB-2017-0073
J2: Exhibit:
J3: Tab:
J4: Schedule:
J5: Page:
J7: Date: | K7: 2017-08-28
A9: Appendix 2-EC
A10: Account 1576 - Accounting Changes under CGAAP
A11: 2013 Changes in Accounting Policies under CGAAP
A13: For applicants with a balance in Account 1576 and made capitalization and depreciation expense accounting policy changes under CGAAP effective January 1, 2013. This is the first time the applicant is rebasing with changes in these accounting policies.
B17: Prior Years Rebasing | C17: 2013 | D17: 2014 | E17: 2015 | F17: 2016 | G17: 2017 | H17: 2018 Rebasing Year
A18: Reporting Basis | B18: CGAAP | C18: CGAAP | D18: CGAAP | E18: MIFRS - Note 5 | F18: MIFRS | G18: MIFRS | H18: MIFRS
B19: Actual | C19: Actual | D19: Actual | E19: Actual | F19: Actual | G19: Forecast | H19: Forecast
C20: $ | D20: $ | F20: $
A21: PP&E Values under former CGAAP
A22: Opening net PP&E - Note 1 | D22: =+C25 -> 0 | E22: =+D25 -> 0 | F22: =+E25 -> 0 | G22: =+F25 -> 0
A23: Net Additions - Note 4
A24: Net Depreciation (amounts should be negative) - Note 4
A25: Closing net PP&E (1) | C25: =C22+C23+C24 -> 0 | D25: =D22+D23+D24 -> 0 | E25: =E22+E23+E24 -> 0 | F25: =F22+F23+F24 -> 0 | G25: =G22+G23+G24 -> 0
A27: PP&E Values under revised CGAAP (Starts from 2012)
A28: Opening net PP&E - Note 1 | D28: =+C31 -> 0 | E28: =+D31 -> 0 | F28: =+E31 -> 0 | G28: =+F31 -> 0
A29: Net Additions - Note 4
A30: Net Depreciation (amounts should be negative) - Note 4
A31: Closing net PP&E (2) | C31: =SUM(C28:C30) -> 0 | D31: =SUM(D28:D30) -> 0 | E31: =SUM(E28:E30) -> 0 | F31: =SUM(F28:F30) -> 0 | G31: =SUM(G28:G30) -> 0
A33: Difference in Closing net PP&E, former CGAAP vs. revised CGAAP | C33: =C25-C31 -> 0 | D33: =D25-D31 -> 0 | E33: =E25-E31 -> 0 | F33: =F25-F31 -> 0 | G33: =G25-G31 -> 0
A36: Effect on Deferral and Variance Account Rate Riders
A37: Closing balance in Account 1576 | H37: =IF(ISERROR(G33), 0, G33) -> 0 | J37: WACC
A38: Return on Rate Base Associated with Account 1576 balance at WACC - Note 2 | H38: =G33*K37*K38 -> 0 | I38: # of years of rate rider disposition period
A39: Amount included in Deferral and Variance Account Rate Rider Calculation | H39: =H37+H38 -> 0
A41: Notes:
A42: 1 For an applicant that made the capitalization and depreciation expense accounting policy changes on January 1, 2013, the PP&E values as of January 1, 2013 under both former CGAAP and revised CGAAP should be the same.
A43: 2 Return on rate base associated with Account 1576 balance is calculated as:
A44: the variance account ending balance as of 2017 x WACC X # of years of rate rider disposition period
A45: * Please note that the calculation should be adjusted once WACC is updated and finalized in the rate application.
A46: 3 Account 1576 is cleared by including the total balance in the deferral and variance account rate rider calculation.
A47: 4 Net additions are additions net of disposals; Net depreciation is additions to depreciation net of disposals.
A48: 5 Differences due to the adoption of MIFRS are to be shown separately in Account 1575 in Appendix 2-EA as Accounts 1575 and 1576 cannot be used interchangably.

Sheet App.2-FA Proposed REG Invest.
J1: File Number: | K1: =EBNUMBER -> EB-2017-0073
J2: Exhibit:
J3: Tab:
J4: Schedule:
J5: Page:
J7: Date:
A9: Appendix 2-FA
A10: Renewable Generation Connection Investment Summary (past investments or over the future rate setting period)
A12: Enter the details of the Renewable Generation Connection projects as described in the appropriate section of the Filing Requirements.
A13: All costs entered on this page will be transferred to the appropriate cells in the appendices that follow.
A14: For Part A, Renewable Enabling Improvements (REI), these amounts will be transferred to Appendix 2 - FB
A15: For Part B, Expansions, these amounts will be transferred to Appendix 2 - FC
A17: If there are more than five projects proposed to be in-service in a certain year, please amend the tables below and ensure that the formulae for the Total Amounts in any given rate year are updated.
A18: Based on the current methodology and allocation, amounts allocated represent 6% for REI Connection Investments and 17% for Expansion Investments. (EB-2009-0349, 6-10-2010, p. 15, note 9)
A20: There are two scenarios described below. Separate sets of spreadsheets (2-FA, 2-FB, 2-FC) should be submited for each scenario as required.
A21: Scenario 1: Past Investments with No Recovery. The distributor has made investments in the past (during the IRM Years), but has not received approval for these projects and therefore did not receive
A22: revenue from the IESO under Regulation 330/09 and did not receive ratepayer revenue for the direct benefit portion of the investment.
A23: The WCA percentage, debt percentages, interest rates, kWh, tax rates, amortization period, CCA Class and percentage should correspond to the distributor's last Cost of Service approval.
A24: The Direct Benefit portion of the calculated Revenue Requirement for each year should be summed and can be applied for recovery from the distributor's ratepayers through a rate rider.
A25: The Provincial Recovery portion of the calculated Revenue Requirement for each year should be summed and can be applied for recovery from the IESO through a separate order.
A27: Scenario 2: Investments in the Test Year and Beyond. Distributor plans to make investments in 2017 and/or beyond. These investments should be added to 2-FA in the appropriate year.
A28: The WCA percentage, debt percentages, interest rates, kWh, tax rates, amortization period, CCA Class and percentage should correspond to the distributor's current application.
A30: Part A | G30: Test Year
A31: REI Investments (Direct Benefit at 6%) | C31: =D31-1 -> 2014 | D31: =E31-1 -> 2015 | E31: =F31-1 -> 2016 | F31: =G31-1 -> 2017 | G31: =TestYear -> 2018 | H31: =G31+1 -> 2019 | I31: =H31+1 -> 2020 | J31: =I31+1 -> 2021 | K31: =J31+1 -> 2022
A32: Project 1
A33: Name: REI Connection Project
A34: Capital Costs | C34: 0 | D34: 0 | E34: 0 | F34: 0 | G34: 0 | H34: 0 | I34: 0 | J34: 0 | K34: 0
A35: OM&A (Start-Up) | C35: 0 | D35: 0 | E35: 0 | F35: 0 | G35: 0 | H35: 0 | I35: 0 | J35: 0 | K35: 0
A36: OM&A (Ongoing) | C36: 0 | D36: 0 | E36: 0 | F36: 0 | G36: 0 | H36: 0 | I36: 0 | J36: 0 | K36: 0
A38: Project 2
A39: Name: REI Connection Project
A40: Capital Costs | C40: 0 | D40: 0 | E40: 0 | F40: 0 | G40: 0 | H40: 0 | I40: 0 | J40: 0 | K40: 0
A41: OM&A (Start-Up) | C41: 0 | D41: 0 | E41: 0 | F41: 0 | G41: 0 | H41: 0 | I41: 0 | J41: 0 | K41: 0
A42: OM&A (Ongoing) | C42: 0 | D42: 0 | E42: 0 | F42: 0 | G42: 0 | H42: 0 | I42: 0 | J42: 0 | K42: 0
A44: Project 3
A45: Name: REI Connection Project
A46: Capital Costs | C46: 0 | D46: 0 | E46: 0 | F46: 0 | G46: 0 | H46: 0 | I46: 0 | J46: 0 | K46: 0
A47: OM&A (Start-Up) | C47: 0 | D47: 0 | E47: 0 | F47: 0 | G47: 0 | H47: 0 | I47: 0 | J47: 0 | K47: 0
A48: OM&A (Ongoing) | C48: 0 | D48: 0 | E48: 0 | F48: 0 | G48: 0 | H48: 0 | I48: 0 | J48: 0 | K48: 0
A50: Project 4
A51: Name: REI Connection Project
A52: Capital Costs | C52: 0 | D52: 0 | E52: 0 | F52: 0 | G52: 0 | H52: 0 | I52: 0 | J52: 0 | K52: 0
A53: OM&A (Start-Up) | C53: 0 | D53: 0 | E53: 0 | F53: 0 | G53: 0 | H53: 0 | I53: 0 | J53: 0 | K53: 0
A54: OM&A (Ongoing) | C54: 0 | D54: 0 | E54: 0 | F54: 0 | G54: 0 | H54: 0 | I54: 0 | J54: 0 | K54: 0
A56: Project 5
A57: Name: REI Connection Project
A58: Capital Costs | C58: 0 | D58: 0 | E58: 0 | F58: 0 | G58: 0 | H58: 0 | I58: 0 | J58: 0 | K58: 0
A59: OM&A (Start-Up) | C59: 0 | D59: 0 | E59: 0 | F59: 0 | G59: 0 | H59: 0 | I59: 0 | J59: 0 | K59: 0
A60: OM&A (Ongoing) | C60: 0 | D60: 0 | E60: 0 | F60: 0 | G60: 0 | H60: 0 | I60: 0 | J60: 0 | K60: 0
A62: Total Capital Costs | C62: =SUM(C58,C52,C46,C40,C34) -> 0 | D62: 0 | E62: 0 | F62: 0 | G62: =SUM(G58,G52,G46,G40,G34) -> 0 | H62: =SUM(H58,H52,H46,H40,H34) -> 0 | I62: 0 | J62: 0 | K62: 0
A63: Total OM&A (Start-Up) | C63: 0 | D63: 0 | E63: 0 | F63: 0 | G63: =SUM(G59,G53,G47,G41,G35) -> 0 | H63: 0 | I63: 0 | J63: 0 | K63: 0
A64: Total OM&A (Ongoing) | C64: 0 | D64: 0 | E64: 0 | F64: 0 | G64: =SUM(G60,G54,G48,G42,G36) -> 0 | H64: 0 | I64: 0 | J64: 0 | K64: 0
A67: Part B | G67: Test Year
A68: Expansion Investments (Direct Benefit at 17%) | C68: =D68-1 -> 2014 | D68: =E68-1 -> 2015 | E68: =F68-1 -> 2016 | F68: =G68-1 -> 2017 | G68: =TestYear -> 2018 | H68: =G68+1 -> 2019 | I68: =H68+1 -> 2020 | J68: =I68+1 -> 2021 | K68: =J68+1 -> 2022
A69: Project 1
A70: Name: Expansion Connection Project
A71: Capital Costs | C71: 0 | D71: 0 | E71: 0 | F71: 0 | G71: 0 | H71: 0 | I71: 0 | J71: 0 | K71: 0
A72: OM&A (Start-Up) | C72: 0 | D72: 0 | E72: 0 | F72: 0 | G72: 0 | H72: 0 | I72: 0 | J72: 0 | K72: 0
A73: OM&A (Ongoing) | C73: 0 | D73: 0 | E73: 0 | F73: 0 | G73: 0 | H73: 0 | I73: 0 | J73: 0 | K73: 0
A75: Project 2
A76: Name: Expansion Connection Project
A77: Capital Costs | C77: 0 | D77: 0 | E77: 0 | F77: 0 | G77: 0 | H77: 0 | I77: 0 | J77: 0 | K77: 0
A78: OM&A (Start-Up) | C78: 0 | D78: 0 | E78: 0 | F78: 0 | G78: 0 | H78: 0 | I78: 0 | J78: 0 | K78: 0
A79: OM&A (Ongoing) | C79: 0 | D79: 0 | E79: 0 | F79: 0 | G79: 0 | H79: 0 | I79: 0 | J79: 0 | K79: 0
A81: Project 3
A82: Name: Expansion Connection Project
A83: Capital Costs | C83: 0 | D83: 0 | E83: 0 | F83: 0 | G83: 0 | H83: 0 | I83: 0 | J83: 0 | K83: 0
A84: OM&A (Start-Up) | C84: 0 | D84: 0 | E84: 0 | F84: 0 | G84: 0 | H84: 0 | I84: 0 | J84: 0 | K84: 0
A85: OM&A (Ongoing) | C85: 0 | D85: 0 | E85: 0 | F85: 0 | G85: 0 | H85: 0 | I85: 0 | J85: 0 | K85: 0
A87: Project 4
A88: Name: Expansion Connection Project
A89: Capital Costs | C89: 0 | D89: 0 | E89: 0 | F89: 0 | G89: 0 | H89: 0 | I89: 0 | J89: 0 | K89: 0
A90: OM&A (Start-Up) | C90: 0 | D90: 0 | E90: 0 | F90: 0 | G90: 0 | H90: 0 | I90: 0 | J90: 0 | K90: 0
A91: OM&A (Ongoing) | C91: 0 | D91: 0 | E91: 0 | F91: 0 | G91: 0 | H91: 0 | I91: 0 | J91: 0 | K91: 0
A93: Project 5
A94: Name: Expansion Connection Project
A95: Capital Costs | C95: 0 | D95: 0 | E95: 0 | F95: 0 | G95: 0 | H95: 0 | I95: 0 | J95: 0 | K95: 0
A96: OM&A (Start-Up) | C96: 0 | D96: 0 | E96: 0 | F96: 0 | G96: 0 | H96: 0 | I96: 0 | J96: 0 | K96: 0
A97: OM&A (Ongoing) | C97: 0 | D97: 0 | E97: 0 | F97: 0 | G97: 0 | H97: 0 | I97: 0 | J97: 0 | K97: 0
A99: Total Capital Costs | C99: =SUM(C95,C89,C83,C77,C71) -> 0 | D99: 0 | E99: 0 | F99: 0 | G99: =SUM(G95,G89,G83,G77,G71) -> 0 | H99: =SUM(H95,H89,H83,H77,H71) -> 0 | I99: 0 | J99: 0 | K99: 0
A100: Total OM&A (Start-Up) | C100: 0 | D100: 0 | E100: 0 | F100: 0 | G100: =SUM(G96,G90,G84,G78,G72) -> 0 | H100: 0 | I100: 0 | J100: 0 | K100: 0
A101: Total OM&A (Ongoing) | C101: 0 | D101: 0 | E101: 0 | F101: 0 | G101: =SUM(G97,G91,G85,G79,G73) -> 0 | H101: 0 | I101: 0 | J101: 0 | K101: 0

Sheet App.2-FB Calc of REG Improvemnt
N1: File Number: | O1: =EBNUMBER -> EB-2017-0073
N2: Exhibit:
N3: Tab:
N4: Schedule:
N5: Page:
N7: Date:
A9: Appendix 2-FB
A10: Calculation of Renewable Generation Connection Direct Benefits/Provincial Amount: Renewable Enabling Improvement Investments
A12: This table will calculate the distributor/provincial shares of the investments entered in Part A of Appendix 2-FA.
A13: Enter values in green shaded cells: WCA percentage, debt percentages, interest rates, kWh, tax rates, amortization period, CCA Class and percentage.
A14: For historical investments, enter these variables for your last cost of service test year. For 2017 and beyond, enter variables as in the application.
A15: Rate Riders are not calculated for the Test Year as these assets and costs are already in the distributor's rate base/revenue requirement.
C17: =F17-1 -> 2014 | F17: =I17-1 -> 2015 | I17: =L17-1 -> 2016 | L17: =BridgeYear -> 2017 | O17: =CONCATENATE(TestYear," Test Year") -> 2018 Test Year | R17: =TestYear+1 -> 2019 | U17: =R17+1 -> 2020 | V17: 2016 | X17: =U17+1 -> 2021 | AA17: =X17+1 -> 2022
D18: Direct Benefit | E18: Provincial | G18: Direct Benefit | H18: Provincial | J18: Direct Benefit | K18: Provincial | M18: Direct Benefit | N18: Provincial | P18: Direct Benefit | Q18: Provincial | S18: Direct Benefit | T18: Provincial | V18: Direct Benefit | W18: Provincial | Y18: Direct Benefit | Z18: Provincial | AB18: Direct Benefit | AC18: Provincial
C19: Total | D19: 0.06 | E19: 0.94 | F19: Total | G19: 0.06 | H19: 0.94 | I19: Total | J19: 0.06 | K19: 0.94 | L19: Total | M19: 0.06 | N19: 0.94 | O19: Total | P19: 0.06 | Q19: 0.94 | R19: Total | S19: 0.06 | T19: 0.94 | U19: Total | V19: 0.06 | W19: 0.94 | X19: Total | Y19: 0.06 | Z19: 0.94 | AA19: Total | AB19: 0.06 | AC19: 0.94
A20: Net Fixed Assets (average) | C20: =D82 -> 0 | D20: =C20*D19 -> 0 | E20: =C20*E19 -> 0 | F20: =E82 -> 0 | G20: =F20*G19 -> 0 | H20: =F20*H19 -> 0 | I20: =F82 -> 0 | J20: =I20*J19 -> 0 | K20: =I20*K19 -> 0 | L20: =G82 -> 0 | M20: =L20*M19 -> 0 | N20: =L20*N19 -> 0 | O20: =H82 -> 0 | P20: =O20*P19 -> 0 | Q20: =O20*Q19 -> 0 | R20: =I82 -> 0 | S20: =R20*S19 -> 0 | T20: =R20*T19 -> 0 | U20: =J82 -> 0 | V20: =U20*V19 -> 0 | W20: =U20*W19 -> 0 | X20: =K82 -> 0 | Y20: =X20*Y19 -> 0 | Z20: =X20*Z19 -> 0 | AA20: =L82 -> 0 | AB20: =AA20*AB19 -> 0 | AC20: =AA20*AC19 -> 0
A21: Incremental OM&A (on-going, N/A for Provincial Recovery) | C21: ='App.2-FA Proposed REG Invest.'!C64 -> 0 | D21: =C21 -> 0 | F21: ='App.2-FA Proposed REG Invest.'!D64 -> 0 | G21: =F21 -> 0 | I21: ='App.2-FA Proposed REG Invest.'!E64 -> 0 | J21: =I21 -> 0 | L21: ='App.2-FA Proposed REG Invest.'!F64 -> 0 | M21: =L21 -> 0 | O21: ='App.2-FA Proposed REG Invest.'!G64 -> 0 | P21: =O21 -> 0 | R21: ='App.2-FA Proposed REG Invest.'!H64 -> 0 | S21: =R21 -> 0 | U21: ='App.2-FA Proposed REG Invest.'!I64 -> 0 | V21: =U21 -> 0 | X21: ='App.2-FA Proposed REG Invest.'!J64 -> 0 | Y21: =X21 -> 0 | AA21: ='App.2-FA Proposed REG Invest.'!K64 -> 0 | AB21: =AA21 -> 0
A22: Incremental OM&A (start-up, applicable for Provincial Recovery) | C22: ='App.2-FA Proposed REG Invest.'!C63 -> 0 | D22: =C22*D19 -> 0 | E22: =C22*E19 -> 0 | F22: ='App.2-FA Proposed REG Invest.'!D63 -> 0 | G22: =F22*G19 -> 0 | H22: =F22*H19 -> 0 | I22: ='App.2-FA Proposed REG Invest.'!E63 -> 0 | J22: =I22*J19 -> 0 | K22: =I22*K19 -> 0 | L22: ='App.2-FA Proposed REG Invest.'!F63 -> 0 | M22: =L22*M19 -> 0 | N22: =L22*N19 -> 0 | O22: ='App.2-FA Proposed REG Invest.'!G63 -> 0 | P22: =O22*P19 -> 0 | Q22: =O22*Q19 -> 0 | R22: ='App.2-FA Proposed REG Invest.'!H63 -> 0 | S22: =R22*S19 -> 0 | T22: =R22*T19 -> 0 | U22: ='App.2-FA Proposed REG Invest.'!I63 -> 0 | V22: =U22*V19 -> 0 | W22: =U22*W19 -> 0 | X22: ='App.2-FA Proposed REG Invest.'!J63 -> 0 | Y22: =X22*Y19 -> 0 | Z22: =X22*Z19 -> 0 | AA22: ='App.2-FA Proposed REG Invest.'!K63 -> 0 | AB22: =AA22*AB19 -> 0 | AC22: =AA22*AC19 -> 0
A23: WCA | D23: =(D21+D22)*$B$23 -> 0 | E23: =E22*$B$23 -> 0 | G23: =(G21+G22)*$B$23 -> 0 | H23: =H22*$B$23 -> 0 | J23: =(J21+J22)*$B$23 -> 0 | K23: =K22*$B$23 -> 0 | M23: =(M21+M22)*$B$23 -> 0 | N23: =N22*$B$23 -> 0 | P23: =(P21+P22)*$B$23 -> 0 | Q23: =Q22*$B$23 -> 0 | S23: =(S21+S22)*$B$23 -> 0 | T23: =T22*$B$23 -> 0 | V23: =(V21+V22)*$B$23 -> 0 | W23: =W22*$B$23 -> 0 | Y23: =(Y21+Y22)*$B$23 -> 0 | Z23: =Z22*$B$23 -> 0 | AB23: =(AB21+AB22)*$B$23 -> 0 | AC23: =AC22*$B$23 -> 0
A24: Rate Base | D24: =SUM(D20+D23) -> 0 | E24: =SUM(E20+E23) -> 0 | G24: =SUM(G20+G23) -> 0 | H24: =SUM(H20+H23) -> 0 | J24: =SUM(J20+J23) -> 0 | K24: =SUM(K20+K23) -> 0 | M24: =SUM(M20+M23) -> 0 | N24: =SUM(N20+N23) -> 0 | P24: =SUM(P20+P23) -> 0 | Q24: =SUM(Q20+Q23) -> 0 | S24: =SUM(S20+S23) -> 0 | T24: =SUM(T20+T23) -> 0 | V24: =SUM(V20+V23) -> 0 | W24: =SUM(W20+W23) -> 0 | Y24: =SUM(Y20+Y23) -> 0 | Z24: =SUM(Z20+Z23) -> 0 | AB24: =SUM(AB20+AB23) -> 0 | AC24: =SUM(AC20+AC23) -> 0
A27: Deemed ST Debt | D27: =D24*$B$27 -> 0 | E27: =E24*$B$27 -> 0 | G27: =G24*$B$27 -> 0 | H27: =H24*$B$27 -> 0 | J27: =J24*$B$27 -> 0 | K27: =K24*$B$27 -> 0 | M27: =M24*$B$27 -> 0 | N27: =N24*$B$27 -> 0 | P27: =P24*$B$27 -> 0 | Q27: =Q24*$B$27 -> 0 | S27: =S24*$B$27 -> 0 | T27: =T24*$B$27 -> 0 | V27: =V24*$B$27 -> 0 | W27: =W24*$B$27 -> 0 | Y27: =Y24*$B$27 -> 0 | Z27: =Z24*$B$27 -> 0 | AB27: =AB24*$B$27 -> 0 | AC27: =AC24*$B$27 -> 0
A28: Deemed LT Debt | D28: =D24*$B$28 -> 0 | E28: =E24*$B$28 -> 0 | G28: =G24*$B$28 -> 0 | H28: =H24*$B$28 -> 0 | J28: =J24*$B$28 -> 0 | K28: =K24*$B$28 -> 0 | M28: =M24*$B$28 -> 0 | N28: =N24*$B$28 -> 0 | P28: =P24*$B$28 -> 0 | Q28: =Q24*$B$28 -> 0 | S28: =S24*$B$28 -> 0 | T28: =T24*$B$28 -> 0 | V28: =V24*$B$28 -> 0 | W28: =W24*$B$28 -> 0 | Y28: =Y24*$B$28 -> 0 | Z28: =Z24*$B$28 -> 0 | AB28: =AB24*$B$28 -> 0 | AC28: =AC24*$B$28 -> 0
A29: Deemed Equity | D29: =D24*$B$29 -> 0 | E29: =E24*$B$29 -> 0 | G29: =G24*$B$29 -> 0 | H29: =H24*$B$29 -> 0 | J29: =J24*$B$29 -> 0 | K29: =K24*$B$29 -> 0 | M29: =M24*$B$29 -> 0 | N29: =N24*$B$29 -> 0 | P29: =P24*$B$29 -> 0 | Q29: =Q24*$B$29 -> 0 | S29: =S24*$B$29 -> 0 | T29: =T24*$B$29 -> 0 | V29: =V24*$B$29 -> 0 | W29: =W24*$B$29 -> 0 | Y29: =Y24*$B$29 -> 0 | Z29: =Z24*$B$29 -> 0 | AB29: =AB24*$B$29 -> 0 | AC29: =AC24*$B$29 -> 0
A31: ST Interest | D31: =D27*$B31 -> 0 | E31: 0 | G31: =G27*$B31 -> 0 | H31: 0 | J31: =J27*$B31 -> 0 | K31: 0 | M31: =M27*$B31 -> 0 | N31: 0 | P31: =P27*$B31 -> 0 | Q31: 0 | S31: =S27*$B31 -> 0 | T31: 0 | V31: =V27*$B31 -> 0 | W31: 0 | Y31: =Y27*$B31 -> 0 | Z31: 0 | AB31: =AB27*$B31 -> 0 | AC31: 0
A32: LT Interest | D32: 0 | E32: 0 | G32: 0 | H32: 0 | J32: 0 | K32: 0 | M32: 0 | N32: 0 | P32: 0 | Q32: 0 | S32: 0 | T32: 0 | V32: 0 | W32: 0 | Y32: 0 | Z32: 0 | AB32: 0 | AC32: 0
A33: ROE | D33: 0 | E33: 0 | G33: 0 | H33: 0 | J33: 0 | K33: 0 | M33: 0 | N33: 0 | P33: 0 | Q33: 0 | S33: 0 | T33: 0 | V33: 0 | W33: 0 | Y33: 0 | Z33: 0 | AB33: 0 | AC33: 0
A34: Cost of Capital Total | D34: =SUM(D31:D33) -> 0 | E34: =SUM(E31:E33) -> 0 | G34: =SUM(G31:G33) -> 0 | H34: =SUM(H31:H33) -> 0 | J34: =SUM(J31:J33) -> 0 | K34: =SUM(K31:K33) -> 0 | M34: =SUM(M31:M33) -> 0 | N34: =SUM(N31:N33) -> 0 | P34: =SUM(P31:P33) -> 0 | Q34: =SUM(Q31:Q33) -> 0 | S34: =SUM(S31:S33) -> 0 | T34: =SUM(T31:T33) -> 0 | V34: =SUM(V31:V33) -> 0 | W34: =SUM(W31:W33) -> 0 | Y34: =SUM(Y31:Y33) -> 0 | Z34: =SUM(Z31:Z33) -> 0 | AB34: =SUM(AB31:AB33) -> 0 | AC34: =SUM(AC31:AC33) -> 0
A36: OM&A | D36: =D21+D22 -> 0 | E36: =E22 -> 0 | G36: =G21+G22 -> 0 | H36: =H22 -> 0 | J36: =J21+J22 -> 0 | K36: =K22 -> 0 | M36: =M21+M22 -> 0 | N36: =N22 -> 0 | P36: =P21+P22 -> 0 | Q36: =Q22 -> 0 | S36: =S21+S22 -> 0 | T36: =T22 -> 0 | V36: =V21+V22 -> 0 | W36: =W22 -> 0 | Y36: =Y21+Y22 -> 0 | Z36: =Z22 -> 0 | AB36: =AB21+AB22 -> 0 | AC36: =AC22 -> 0
A37: Amortization | C37: =D77 -> 0 | D37: =C37*D$19 -> 0 | E37: =C37*E$19 -> 0 | F37: =E77 -> 0 | G37: =F37*G$19 -> 0 | H37: =F37*H$19 -> 0 | I37: =F77 -> 0 | J37: =I37*J$19 -> 0 | K37: =I37*K$19 -> 0 | L37: =G77 -> 0 | M37: =L37*M$19 -> 0 | N37: =L37*N$19 -> 0 | O37: =H77 -> 0 | P37: =O37*P$19 -> 0 | Q37: =O37*Q$19 -> 0 | R37: =I76+I77 -> 0 | S37: =R37*S$19 -> 0 | T37: =R37*T$19 -> 0 | U37: =J76+J77 -> 0 | V37: =U37*V$19 -> 0 | W37: =U37*W$19 -> 0 | X37: =K76+K77 -> 0 | Y37: =X37*Y$19 -> 0 | Z37: =X37*Z$19 -> 0 | AA37: =L76+L77 -> 0 | AB37: =AA37*AB$19 -> 0 | AC37: =AA37*AC$19 -> 0
A38: Grossed-up PILs | D38: =D65 -> 0 | E38: =E65 -> 0 | G38: =G65 -> 0 | H38: =H65 -> 0 | J38: =J65 -> 0 | K38: =K65 -> 0 | M38: =M65 -> 0 | N38: =N65 -> 0 | P38: =P65 -> 0 | Q38: =Q65 -> 0 | S38: =S65 -> 0 | T38: =T65 -> 0 | V38: =V65 -> 0 | W38: =W65 -> 0 | Y38: =Y65 -> 0 | Z38: =Z65 -> 0 | AB38: =AB65 -> 0 | AC38: =AC65 -> 0
A40: Revenue Requirement | D40: =SUM(D34:D38) -> 0 | E40: =SUM(E34:E38) -> 0 | G40: =SUM(G34:G38) -> 0 | H40: =SUM(H34:H38) -> 0 | J40: =SUM(J34:J38) -> 0 | K40: =SUM(K34:K38) -> 0 | M40: =SUM(M34:M38) -> 0 | N40: =SUM(N34:N38) -> 0 | P40: =SUM(P34:P38) -> 0 | Q40: =SUM(Q34:Q38) -> 0 | S40: =SUM(S34:S38) -> 0 | T40: =SUM(T34:T38) -> 0 | V40: =SUM(V34:V38) -> 0 | W40: =SUM(W34:W38) -> 0 | Y40: =SUM(Y34:Y38) -> 0 | Z40: =SUM(Z34:Z38) -> 0 | AB40: =SUM(AB34:AB38) -> 0 | AC40: =SUM(AC34:AC38) -> 0
A43: Provincial Rate Protection | E43: =E40 -> 0 | H43: =H40 -> 0 | K43: =K40 -> 0 | N43: =N40 -> 0 | Q43: =Q40 -> 0 | T43: =T40 -> 0 | W43: =W40 -> 0 | Z43: =Z40 -> 0 | AC43: =AC40 -> 0
A45: Monthly Amount Paid by IESO | E45: =E43/12 -> 0 | H45: =H43/12 -> 0 | K45: =K43/12 -> 0 | N45: =N43/12 -> 0 | Q45: =Q43/12 -> 0 | T45: =T43/12 -> 0 | W45: =W43/12 -> 0 | Z45: =Z43/12 -> 0 | AC45: =AC43/12 -> 0
A47: Note 1: The difference between the actual costs of approved eligible investments and revenue received from the IESO should be recorded in a variance account. The Board may provide
A48: regulatory accounting guidance regarding a variance account either in an individual proceeding or on a generic basis.
A49: Note 2: For the 2016 Test Year, Costs and Revenues of the Direct Benefit are to be included in the test year applicant Rate Base and Revenues.
A51: PILs Calculation
D52: =C17 -> 2014 | G52: =F17 -> 2015 | J52: =I17 -> 2016 | M52: =L17 -> 2017 | P52: =O17 -> 2018 Test Year | S52: =R17 -> 2019 | V52: =U17 -> 2020 | Y52: =X17 -> 2021 | AB52: =AA17 -> 2022
A53: Income Tax | D53: Direct Benefit | E53: Provincial | G53: Direct Benefit | H53: Provincial | J53: Direct Benefit | K53: Provincial | M53: Direct Benefit | N53: Provincial | P53: Direct Benefit | Q53: Provincial | S53: Direct Benefit | T53: Provincial | V53: Direct Benefit | W53: Provincial | Y53: Direct Benefit | Z53: Provincial | AB53: Direct Benefit | AC53: Provincial
X54: Total | AA54: Total
A55: Net Income - ROE on Rate Base | D55: =D33 -> 0 | E55: =E33 -> 0 | G55: =G33 -> 0 | H55: =H33 -> 0 | J55: =J33 -> 0 | K55: =K33 -> 0 | M55: =M33 -> 0 | N55: =N33 -> 0 | P55: =P33 -> 0 | Q55: =Q33 -> 0 | S55: =S33 -> 0 | T55: =T33 -> 0 | V55: =V33 -> 0 | W55: =W33 -> 0 | Y55: =Y33 -> 0 | Z55: =Z33 -> 0 | AB55: =AB33 -> 0 | AC55: =AC33 -> 0
A56: Amortization (6% DB and 94% P) | D56: =D37 -> 0 | E56: =E37 -> 0 | G56: =G37 -> 0 | H56: =H37 -> 0 | J56: =J37 -> 0 | K56: =K37 -> 0 | M56: =M37 -> 0 | N56: =N37 -> 0 | P56: =P37 -> 0 | Q56: =Q37 -> 0 | S56: =S37 -> 0 | T56: =T37 -> 0 | V56: =V37 -> 0 | W56: =W37 -> 0 | Y56: =Y37 -> 0 | Z56: =Z37 -> 0 | AB56: =AB37 -> 0 | AC56: =AC37 -> 0
A57: CCA (6% DB and 94% P) | D57: =-D94*D$19 -> 0 | E57: =-D94*E$19 -> 0 | G57: =-E94*G19 -> 0 | H57: =-E94*H$19 -> 0 | J57: =-F94*J$19 -> 0 | K57: =-F94*K$19 -> 0 | M57: =-G94*M$19 -> 0 | N57: =-G94*N$19 -> 0 | P57: =-H94*P$19 -> 0 | Q57: =-H94*Q$19 -> 0 | S57: =-I94*S$19 -> 0 | T57: =-I94*T$19 -> 0 | V57: =-J94*V$19 -> 0 | W57: =-J94*W$19 -> 0 | Y57: =-K94*Y$19 -> 0 | Z57: =-K94*Z$19 -> 0 | AB57: =-L94*AB$19 -> 0 | AC57: =-L94*AC$19 -> 0
A58: Taxable income | D58: =SUM(D55:D57) -> 0 | E58: =SUM(E55:E57) -> 0 | G58: =SUM(G55:G57) -> 0 | H58: =SUM(H55:H57) -> 0 | J58: =SUM(J55:J57) -> 0 | K58: =SUM(K55:K57) -> 0 | M58: =SUM(M55:M57) -> 0 | N58: =SUM(N55:N57) -> 0 | P58: =SUM(P55:P57) -> 0 | Q58: =SUM(Q55:Q57) -> 0 | S58: =SUM(S55:S57) -> 0 | T58: =SUM(T55:T57) -> 0 | V58: =SUM(V55:V57) -> 0 | W58: =SUM(W55:W57) -> 0 | Y58: =SUM(Y55:Y57) -> 0 | Z58: =SUM(Z55:Z57) -> 0 | AB58: =SUM(AB55:AB57) -> 0 | AC58: =SUM(AC55:AC57) -> 0
A60: Tax Rate (to be entered)
A62: Income Taxes Payable | D62: =D58*D60 -> 0 | E62: =E58*E60 -> 0 | G62: =G58*G60 -> 0 | H62: =H58*H60 -> 0 | J62: =J58*J60 -> 0 | K62: =K58*K60 -> 0 | M62: =M58*M60 -> 0 | N62: =N58*N60 -> 0 | P62: =P58*P60 -> 0 | Q62: =Q58*Q60 -> 0 | S62: =S58*S60 -> 0 | T62: =T58*T60 -> 0 | V62: =V58*V60 -> 0 | W62: =W58*W60 -> 0 | Y62: =Y58*Y60 -> 0 | Z62: =Z58*Z60 -> 0 | AB62: =AB58*AB60 -> 0 | AC62: =AC58*AC60 -> 0
A63: Gross Up
A64: Income Taxes Payable | D64: =D62/(1-D60) -> 0 | E64: =E62/(1-E60) -> 0 | G64: =G62/(1-G60) -> 0 | H64: =H62/(1-H60) -> 0 | J64: =J62/(1-J60) -> 0 | K64: =K62/(1-K60) -> 0 | M64: =M62/(1-M60) -> 0 | N64: =N62/(1-N60) -> 0 | P64: =P62/(1-P60) -> 0 | Q64: =Q62/(1-Q60) -> 0 | S64: =S62/(1-S60) -> 0 | T64: =T62/(1-T60) -> 0 | V64: =V62/(1-V60) -> 0 | W64: =W62/(1-W60) -> 0 | Y64: =Y62/(1-Y60) -> 0 | Z64: =Z62/(1-Z60) -> 0 | AB64: =AB62/(1-AB60) -> 0 | AC64: =AC62/(1-AC60) -> 0
A65: Grossed Up PILs | D65: =SUM(D64:D64) -> 0 | E65: =SUM(E64:E64) -> 0 | G65: =SUM(G64:G64) -> 0 | H65: =SUM(H64:H64) -> 0 | J65: =SUM(J64:J64) -> 0 | K65: =SUM(K64:K64) -> 0 | M65: =SUM(M64:M64) -> 0 | N65: =SUM(N64:N64) -> 0 | P65: =SUM(P64:P64) -> 0 | Q65: =SUM(Q64:Q64) -> 0 | S65: =SUM(S64:S64) -> 0 | T65: =SUM(T64:T64) -> 0 | V65: =SUM(V64:V64) -> 0 | W65: =SUM(W64:W64) -> 0 | Y65: =SUM(Y64:Y64) -> 0 | Z65: =SUM(Z64:Z64) -> 0 | AB65: =SUM(AB64:AB64) -> 0 | AC65: =SUM(AC64:AC64) -> 0
D68: =E68-1 -> 2014 | E68: =F68-1 -> 2015 | F68: =G68-1 -> 2016 | G68: =H68-1 -> 2017 | H68: =TestYear -> 2018 | I68: =H68+1 -> 2019 | J68: =I68+1 -> 2020 | K68: =J68+1 -> 2021 | L68: =K68+1 -> 2022
A69: Net Fixed Assets
B70: Enter applicable amortization in years: | C70: 25
A71: Opening Gross Fixed Assets | E71: =D73 -> 0 | F71: 0 | G71: 0 | H71: 0 | I71: 0 | J71: 0 | K71: 0 | L71: 0
A72: Gross Capital Additions | D72: ='App.2-FA Proposed REG Invest.'!C62 -> 0 | E72: ='App.2-FA Proposed REG Invest.'!D62 -> 0 | F72: ='App.2-FA Proposed REG Invest.'!E62 -> 0 | G72: ='App.2-FA Proposed REG Invest.'!F62 -> 0 | H72: ='App.2-FA Proposed REG Invest.'!G62 -> 0 | I72: ='App.2-FA Proposed REG Invest.'!H62 -> 0 | J72: ='App.2-FA Proposed REG Invest.'!I62 -> 0 | K72: ='App.2-FA Proposed REG Invest.'!J62 -> 0 | L72: ='App.2-FA Proposed REG Invest.'!K62 -> 0
A73: Closing Gross Fixed Assets | D73: =SUM(D71:D72) -> 0 | E73: 0 | F73: 0 | G73: 0 | H73: 0 | I73: 0 | J73: 0 | K73: 0 | L73: 0
A75: Opening Accumulated Amortization | E75: =+D78 -> 0 | F75: =E78 -> 0 | G75: 0 | H75: 0 | I75: 0 | J75: 0 | K75: 0 | L75: 0
A76: Current Year Amortization (before additions) | D76: =IF(ISERROR(D71/$C$70), 0, D71/$C$70) -> 0 | E76: 0 | F76: 0 | G76: 0 | H76: 0 | I76: 0 | J76: 0 | K76: 0 | L76: 0
A77: Additions (half year) | D77: =D72/$C$70/2 -> 0 | E77: =E72/$C$70/2 -> 0 | F77: =F72/$C$70/2 -> 0 | G77: =G72/$C$70/2 -> 0 | H77: =H72/$C$70/2 -> 0 | I77: =I72/C70/2 -> 0 | J77: =J72/C70/2 -> 0 | K77: =K72/C70/2 -> 0 | L77: =L72/C70/2 -> 0
A78: Closing Accumulated Amortization | D78: =SUM(D75+D76+D77) -> 0 | E78: =SUM(E75+E76+E77) -> 0 | F78: =SUM(F75+F76+F77) -> 0 | G78: =SUM(G75+G76+G77) -> 0 | H78: =SUM(H75+H76+H77) -> 0 | I78: =SUM(I75:I77) -> 0 | J78: =SUM(J75:J77) -> 0 | K78: =SUM(K75:K77) -> 0 | L78: =SUM(L75:L77) -> 0
A80: Opening Net Fixed Assets | D80: =D71-D75 -> 0 | E80: =E71-E75 -> 0 | F80: =F71-F75 -> 0 | G80: =G71-G75 -> 0 | H80: =H71-H75 -> 0 | I80: =H81 -> 0 | J80: =I81 -> 0 | K80: =J81 -> 0 | L80: =K81 -> 0
A81: Closing Net Fixed Assets | D81: =D73-D78 -> 0 | E81: 0 | F81: 0 | G81: 0 | H81: 0 | I81: 0 | J81: 0 | K81: 0 | L81: 0
A82: Average Net Fixed Assets | D82: =SUM(D80:D81)/2 -> 0 | E82: 0 | F82: 0 | G82: 0 | H82: 0 | I82: 0 | J82: 0 | K82: 0 | L82: 0
A84: UCC for PILs Calculation
D85: =D68 -> 2014 | E85: =E68 -> 2015 | F85: 2016 | G85: 2017 | H85: 2018 | I85: 2019 | J85: 2020 | K85: 2021 | L85: 2022
A87: Opening UCC | E87: =D95 -> 0 | F87: 0 | G87: 0 | H87: 0 | I87: 0 | J87: 0 | K87: 0 | L87: 0
A88: Capital Additions (from Appendix 2-FA) | D88: =D72 -> 0 | E88: 0 | F88: 0 | G88: 0 | H88: 0 | I88: 0 | J88: 0 | K88: 0 | L88: 0
A89: UCC Before Half Year Rule | D89: =SUM(D87:D88) -> 0 | E89: 0 | F89: 0 | G89: 0 | H89: 0 | I89: 0 | J89: 0 | K89: 0 | L89: 0
A90: Half Year Rule (1/2 Additions - Disposals) | D90: =D88/2 -> 0 | E90: 0 | F90: 0 | G90: 0 | H90: 0 | I90: 0 | J90: 0 | K90: 0 | L90: 0
A91: Reduced UCC | D91: =D89-D90 -> 0 | E91: 0 | F91: 0 | G91: 0 | H91: 0 | I91: 0 | J91: 0 | K91: 0 | L91: 0
A92: CCA Rate Class (to be entered) | C92: 47 | D92: =C92 -> 47 | E92: =D92 -> 47 | F92: 47 | G92: 47 | H92: 47 | I92: 47 | J92: 47 | K92: 47 | L92: 47
A93: CCA Rate (to be entered) | C93: 0.08 | D93: =C93 -> 0.08 | E93: 0.08 | F93: 0.08 | G93: 0.08 | H93: 0.08 | I93: 0.08 | J93: 0.08 | K93: 0.08 | L93: 0.08
A94: CCA | D94: =D91*D93 -> 0 | E94: 0 | F94: 0 | G94: 0 | H94: 0 | I94: 0 | J94: 0 | K94: 0 | L94: 0
A95: Closing UCC | D95: =D89-D94 -> 0 | E95: 0 | F95: 0 | G95: 0 | H95: 0 | I95: 0 | J95: 0 | K95: 0 | L95: 0

Sheet App.2-FC Calc of REG Expansion
N1: File Number: | O1: =EBNUMBER -> EB-2017-0073
N2: Exhibit:
N3: Tab:
N4: Schedule:
N5: Page:
N7: Date:
A9: Appendix 2-FC
A10: Calculation of Renewable Generation Connection Direct Benefits/Provincial Amount: Renewable Expansion Investments
A12: This table will calculate the distributor/provincial shares of the investments entered in Part B of Appendix 2-FA.
A13: Enter values in green shaded cells: WCA percentage, debt percentages, interest rates, kWh, tax rates, amortization period, CCA Class and percentage.
A14: For historical investments, enter these variables for your last cost of service test year. For 2016 and beyond, enter variables as in the application.
A15: Rate Riders are not calculated for the Test Year as these assets and costs are already in the distributor's rate base.
D18: =G18-1 -> 2014 | G18: =J18-1 -> 2015 | J18: =M18-1 -> 2016 | M18: =BridgeYear -> 2017 | P18: =CONCATENATE(TestYear," Test Year") -> 2018 Test Year | S18: =TestYear+1 -> 2019 | T18: 2016 | V18: =S18+1 -> 2020 | Y18: =V18+1 -> 2021 | AB18: =Y18+1 -> 2022
E19: Direct Benefit | F19: Provincial | H19: Direct Benefit | I19: Provincial | K19: Direct Benefit | L19: Provincial | N19: Direct Benefit | O19: Provincial | Q19: Direct Benefit | R19: Provincial | T19: Direct Benefit | U19: Provincial | W19: Direct Benefit | X19: Provincial | Z19: Direct Benefit | AA19: Provincial | AC19: Direct Benefit | AD19: Provincial
D20: Total | E20: 0.17 | F20: 0.83 | G20: Total | H20: 0.17 | I20: 0.83 | J20: Total | K20: 0.17 | L20: 0.83 | M20: Total | N20: 0.17 | O20: 0.83 | P20: Total | Q20: 0.17 | R20: 0.83 | S20: Total | T20: 0.17 | U20: 0.83 | V20: Total | W20: 0.17 | X20: 0.83 | Y20: Total | Z20: 0.17 | AA20: 0.83 | AB20: Total | AC20: 0.17 | AD20: 0.83
A21: Net Fixed Assets (average) | D21: =D82 -> 0 | E21: =D21*E20 -> 0 | F21: =D21*F20 -> 0 | G21: =E82 -> 0 | H21: =G21*H20 -> 0 | I21: =G21*I20 -> 0 | J21: =F82 -> 0 | K21: =J21*K20 -> 0 | L21: =J21*L20 -> 0 | M21: =G82 -> 0 | N21: =M21*N20 -> 0 | O21: =M21*O20 -> 0 | P21: =H82 -> 0 | Q21: =P21*Q20 -> 0 | R21: =P21*R20 -> 0 | S21: =I82 -> 0 | T21: =S21*T20 -> 0 | U21: =S21*U20 -> 0 | V21: =J82 -> 0 | W21: =V21*W20 -> 0 | X21: =V21*X20 -> 0 | Y21: =K82 -> 0 | Z21: =Y21*Z20 -> 0 | AA21: =Y21*AA20 -> 0 | AB21: =L82 -> 0 | AC21: =AB21*AC20 -> 0 | AD21: =AB21*AD20 -> 0
A22: Incremental OM&A (on-going, N/A for Provincial Recovery) | D22: ='App.2-FA Proposed REG Invest.'!C101 -> 0 | E22: =D22 -> 0 | G22: ='App.2-FA Proposed REG Invest.'!D$101 -> 0 | H22: =G22 -> 0 | J22: ='App.2-FA Proposed REG Invest.'!E$101 -> 0 | K22: =J22 -> 0 | M22: ='App.2-FA Proposed REG Invest.'!F$101 -> 0 | N22: =M22 -> 0 | P22: ='App.2-FA Proposed REG Invest.'!G$101 -> 0 | Q22: =P22 -> 0 | S22: ='App.2-FA Proposed REG Invest.'!H$101 -> 0 | T22: =S22 -> 0 | V22: ='App.2-FA Proposed REG Invest.'!I$101 -> 0 | W22: =V22 -> 0 | Y22: ='App.2-FA Proposed REG Invest.'!J$101 -> 0 | Z22: =Y22 -> 0 | AB22: ='App.2-FA Proposed REG Invest.'!K$101 -> 0 | AC22: =AB22 -> 0
A23: Incremental OM&A (start-up, applicable for Provincial Recovery) | D23: ='App.2-FA Proposed REG Invest.'!C100 -> 0 | E23: =D23*E20 -> 0 | F23: =D23*F20 -> 0 | G23: ='App.2-FA Proposed REG Invest.'!D$100 -> 0 | H23: =G23*H20 -> 0 | I23: =G23*I20 -> 0 | J23: ='App.2-FA Proposed REG Invest.'!E$100 -> 0 | K23: =J23*K20 -> 0 | L23: =J23*L20 -> 0 | M23: ='App.2-FA Proposed REG Invest.'!F$100 -> 0 | N23: =M23*N20 -> 0 | O23: =M23*O20 -> 0 | P23: ='App.2-FA Proposed REG Invest.'!G$100 -> 0 | Q23: =P23*Q20 -> 0 | R23: =P23*R20 -> 0 | S23: ='App.2-FA Proposed REG Invest.'!H$100 -> 0 | T23: =S23*T20 -> 0 | U23: =S23*U20 -> 0 | V23: ='App.2-FA Proposed REG Invest.'!I$100 -> 0 | W23: =V23*W20 -> 0 | X23: =V23*X20 -> 0 | Y23: ='App.2-FA Proposed REG Invest.'!J$100 -> 0 | Z23: =Y23*Z20 -> 0 | AA23: =Y23*AA20 -> 0 | AB23: ='App.2-FA Proposed REG Invest.'!K$100 -> 0 | AC23: =AB23*AC20 -> 0 | AD23: =AB23*AD20 -> 0
A24: WCA | E24: =(E22+E23)*$B$24 -> 0 | F24: =F23*$B$24 -> 0 | H24: =(H22+H23)*$B$24 -> 0 | I24: =I23*$B$24 -> 0 | K24: =(K22+K23)*$B$24 -> 0 | L24: =L23*$B$24 -> 0 | N24: =(N22+N23)*$B$24 -> 0 | O24: =O23*$B$24 -> 0 | Q24: =(Q22+Q23)*$B$24 -> 0 | R24: =R23*$B$24 -> 0 | T24: =(T22+T23)*$B$24 -> 0 | U24: =U23*$B$24 -> 0 | W24: =(W22+W23)*$B$24 -> 0 | X24: =X23*$B$24 -> 0 | Z24: =(Z22+Z23)*$B$24 -> 0 | AA24: =AA23*$B$24 -> 0 | AC24: =(AC22+AC23)*$B$24 -> 0 | AD24: =AD23*$B$24 -> 0
A25: Rate Base | E25: =SUM(E21+E24) -> 0 | F25: =SUM(F21+F24) -> 0 | H25: =SUM(H21+H24) -> 0 | I25: =SUM(I21+I24) -> 0 | K25: =SUM(K21+K24) -> 0 | L25: =SUM(L21+L24) -> 0 | N25: =SUM(N21+N24) -> 0 | O25: =SUM(O21+O24) -> 0 | Q25: =SUM(Q21+Q24) -> 0 | R25: =SUM(R21+R24) -> 0 | T25: =SUM(T21+T24) -> 0 | U25: =SUM(U21+U24) -> 0 | W25: =SUM(W21+W24) -> 0 | X25: =SUM(X21+X24) -> 0 | Z25: =SUM(Z21+Z24) -> 0 | AA25: =SUM(AA21+AA24) -> 0 | AC25: =SUM(AC21+AC24) -> 0 | AD25: =SUM(AD21+AD24) -> 0
A28: Deemed ST Debt | E28: =E25*$B$28 -> 0 | F28: =F25*$B$28 -> 0 | H28: =H25*$B$28 -> 0 | I28: =I25*$B$28 -> 0 | K28: =K25*$B$28 -> 0 | L28: =L25*$B$28 -> 0 | N28: =N25*$B$28 -> 0 | O28: =O25*$B$28 -> 0 | Q28: =Q25*$B$28 -> 0 | R28: =R25*$B$28 -> 0 | T28: =T25*$B$28 -> 0 | U28: =U25*$B$28 -> 0 | W28: =W25*$B$28 -> 0 | X28: =X25*$B$28 -> 0 | Z28: =Z25*$B$28 -> 0 | AA28: =AA25*$B$28 -> 0 | AC28: =AC25*$B$28 -> 0 | AD28: =AD25*$B$28 -> 0
A29: Deemed LT Debt | E29: =E25*$B$29 -> 0 | F29: =F25*$B$29 -> 0 | H29: =H25*$B$29 -> 0 | I29: =I25*$B$29 -> 0 | K29: =K25*$B$29 -> 0 | L29: =L25*$B$29 -> 0 | N29: =N25*$B$29 -> 0 | O29: =O25*$B$29 -> 0 | Q29: =Q25*$B$29 -> 0 | R29: =R25*$B$29 -> 0 | T29: =T25*$B$29 -> 0 | U29: =U25*$B$29 -> 0 | W29: =W25*$B$29 -> 0 | X29: =X25*$B$29 -> 0 | Z29: =Z25*$B$29 -> 0 | AA29: =AA25*$B$29 -> 0 | AC29: =AC25*$B$29 -> 0 | AD29: =AD25*$B$29 -> 0
A30: Deemed Equity | E30: =E25*$B$30 -> 0 | F30: =F25*$B$30 -> 0 | H30: =H25*$B$30 -> 0 | I30: =I25*$B$30 -> 0 | K30: =K25*$B$30 -> 0 | L30: =L25*$B$30 -> 0 | N30: =N25*$B$30 -> 0 | O30: =O25*$B$30 -> 0 | Q30: =Q25*$B$30 -> 0 | R30: =R25*$B$30 -> 0 | T30: =T25*$B$30 -> 0 | U30: =U25*$B$30 -> 0 | W30: =W25*$B$30 -> 0 | X30: =X25*$B$30 -> 0 | Z30: =Z25*$B$30 -> 0 | AA30: =AA25*$B$30 -> 0 | AC30: =AC25*$B$30 -> 0 | AD30: =AD25*$B$30 -> 0
A32: ST Interest | E32: =E28*$B$32 -> 0 | F32: =F28*$B$32 -> 0 | H32: =H28*$B$32 -> 0 | I32: =I28*$B$32 -> 0 | K32: =K28*$B$32 -> 0 | L32: =L28*$B$32 -> 0 | N32: =N28*$B$32 -> 0 | O32: =O28*$B$32 -> 0 | Q32: =Q28*$B$32 -> 0 | R32: =R28*$B$32 -> 0 | T32: =T28*$B$32 -> 0 | U32: =U28*$B$32 -> 0 | W32: =W28*$B$32 -> 0 | X32: =X28*$B$32 -> 0 | Z32: =Z28*$B$32 -> 0 | AA32: =AA28*$B$32 -> 0 | AC32: =AC28*$B$32 -> 0 | AD32: =AD28*$B$32 -> 0
A33: LT Interest | E33: =E29*$B$33 -> 0 | F33: =F29*$B$33 -> 0 | H33: =H29*$B$33 -> 0 | I33: =I29*$B$33 -> 0 | K33: =K29*$B$33 -> 0 | L33: =L29*$B$33 -> 0 | N33: =N29*$B$33 -> 0 | O33: =O29*$B$33 -> 0 | Q33: =Q29*$B$33 -> 0 | R33: =R29*$B$33 -> 0 | T33: =T29*$B$33 -> 0 | U33: =U29*$B$33 -> 0 | W33: =W29*$B$33 -> 0 | X33: =X29*$B$33 -> 0 | Z33: =Z29*$B$33 -> 0 | AA33: =AA29*$B$33 -> 0 | AC33: =AC29*$B$33 -> 0 | AD33: =AD29*$B$33 -> 0
A34: ROE | E34: =E30*$B$34 -> 0 | F34: =F30*$B$34 -> 0 | H34: =H30*$B$34 -> 0 | I34: =I30*$B$34 -> 0 | K34: =K30*$B$34 -> 0 | L34: =L30*$B$34 -> 0 | N34: =N30*$B$34 -> 0 | O34: =O30*$B$34 -> 0 | Q34: =Q30*$B$34 -> 0 | R34: =R30*$B$34 -> 0 | T34: =T30*$B$34 -> 0 | U34: =U30*$B$34 -> 0 | W34: =W30*$B$34 -> 0 | X34: =X30*$B$34 -> 0 | Z34: =Z30*$B$34 -> 0 | AA34: =AA30*$B$34 -> 0 | AC34: =AC30*$B$34 -> 0 | AD34: =AD30*$B$34 -> 0
A35: Cost of Capital Total | E35: =SUM(E32:E34) -> 0 | F35: =SUM(F32:F34) -> 0 | H35: =SUM(H32:H34) -> 0 | I35: =SUM(I32:I34) -> 0 | K35: =SUM(K32:K34) -> 0 | L35: =SUM(L32:L34) -> 0 | N35: =SUM(N32:N34) -> 0 | O35: =SUM(O32:O34) -> 0 | Q35: =SUM(Q32:Q34) -> 0 | R35: =SUM(R32:R34) -> 0 | T35: =SUM(T32:T34) -> 0 | U35: =SUM(U32:U34) -> 0 | W35: =SUM(W32:W34) -> 0 | X35: =SUM(X32:X34) -> 0 | Z35: =SUM(Z32:Z34) -> 0 | AA35: =SUM(AA32:AA34) -> 0 | AC35: =SUM(AC32:AC34) -> 0 | AD35: =SUM(AD32:AD34) -> 0
A37: OM&A | E37: =E22+E23 -> 0 | F37: =F23 -> 0 | H37: =H22+H23 -> 0 | I37: =I23 -> 0 | K37: =K22+K23 -> 0 | L37: =L23 -> 0 | N37: =N22+N23 -> 0 | O37: =O23 -> 0 | Q37: =Q22+Q23 -> 0 | R37: =R23 -> 0 | T37: =T22+T23 -> 0 | U37: =U23 -> 0 | W37: =W22+W23 -> 0 | X37: =X23 -> 0 | Z37: =Z22+Z23 -> 0 | AA37: =AA23 -> 0 | AC37: =AC22+AC23 -> 0 | AD37: =AD23 -> 0
A38: Amortization | D38: =D78 -> 0 | E38: =D38*E$20 -> 0 | F38: =D38*F$20 -> 0 | G38: =E78 -> 0 | H38: =G38*H$20 -> 0 | I38: =G38*I$20 -> 0 | J38: =F78 -> 0 | K38: =J38*K$20 -> 0 | L38: =J38*L$20 -> 0 | M38: =G78 -> 0 | N38: =M38*N$20 -> 0 | O38: =M38*O$20 -> 0 | P38: =H76+H77 -> 0 | Q38: =P38*Q$20 -> 0 | R38: =P38*R$20 -> 0 | S38: =I76+I77 -> 0 | T38: =S38*T$20 -> 0 | U38: =S38*U$20 -> 0 | V38: =J76+J77 -> 0 | W38: =V38*W$20 -> 0 | X38: =V38*X$20 -> 0 | Y38: =K76+K77 -> 0 | Z38: =Y38*Z$20 -> 0 | AA38: =Y38*AA$20 -> 0 | AB38: =L76+L77 -> 0 | AC38: =AB38*AC$20 -> 0 | AD38: =AB38*AD$20 -> 0
A39: Grossed-up PILs | E39: =E66 -> 0 | F39: =F66 -> 0 | H39: =H66 -> 0 | I39: =I66 -> 0 | K39: =K66 -> 0 | L39: =L66 -> 0 | N39: =N66 -> 0 | O39: =O66 -> 0 | Q39: =Q66 -> 0 | R39: =R66 -> 0 | T39: =T66 -> 0 | U39: =U66 -> 0 | W39: =W66 -> 0 | X39: =X66 -> 0 | Z39: =Z66 -> 0 | AA39: =AA66 -> 0 | AC39: =AC66 -> 0 | AD39: =AD66 -> 0
A41: Revenue Requirement | E41: =SUM(E35:E39) -> 0 | F41: =SUM(F35:F39) -> 0 | H41: =SUM(H35:H39) -> 0 | I41: =SUM(I35:I39) -> 0 | K41: =SUM(K35:K39) -> 0 | L41: =SUM(L35:L39) -> 0 | N41: =SUM(N35:N39) -> 0 | O41: =SUM(O35:O39) -> 0 | Q41: =SUM(Q35:Q39) -> 0 | R41: =SUM(R35:R39) -> 0 | T41: =SUM(T35:T39) -> 0 | U41: =SUM(U35:U39) -> 0 | W41: =SUM(W35:W39) -> 0 | X41: =SUM(X35:X39) -> 0 | Z41: =SUM(Z35:Z39) -> 0 | AA41: =SUM(AA35:AA39) -> 0 | AC41: =SUM(AC35:AC39) -> 0 | AD41: =SUM(AD35:AD39) -> 0
A44: Provincial Rate Protection | F44: =F41 -> 0 | I44: =I41 -> 0 | L44: =L41 -> 0 | O44: =O41 -> 0 | R44: =R41 -> 0 | U44: =U41 -> 0 | X44: =X41 -> 0 | AA44: =AA41 -> 0 | AD44: =AD41 -> 0
A46: Monthly Amount Paid by IESO | F46: =F44/12 -> 0 | I46: =I44/12 -> 0 | L46: =L44/12 -> 0 | O46: =O44/12 -> 0 | R46: =R44/12 -> 0 | U46: =U44/12 -> 0 | X46: =X44/12 -> 0 | AA46: =AA44/12 -> 0 | AD46: =AD44/12 -> 0
A48: Note 1: The difference between the actual costs of approved eligible investments and revenue received from the IESO should be recorded in a variance account. The Board may provide
A49: regulatory accounting guidance regarding a variance account either in an individual proceeding or on a generic basis.
A50: Note 2: For the 2016 Test Year, Costs and Revenues of the Direct Benefit are to be included in the test year applicant Rate Base and Revenues.
A52: PILs Calculation
E53: =D18 -> 2014 | H53: =G18 -> 2015 | K53: =J18 -> 2016 | N53: =M18 -> 2017 | Q53: =P18 -> 2018 Test Year | T53: =S18 -> 2019 | W53: =V18 -> 2020 | Z53: =Y18 -> 2021 | AC53: =AB18 -> 2022
A54: Income Tax | E54: Direct Benefit | F54: Provincial | H54: Direct Benefit | I54: Provincial | K54: Direct Benefit | L54: Provincial | N54: Direct Benefit | O54: Provincial | Q54: Direct Benefit | R54: Provincial | T54: Direct Benefit | U54: Provincial | W54: Direct Benefit | X54: Provincial | Z54: Direct Benefit | AA54: Provincial | AC54: Direct Benefit | AD54: Provincial
V55: Total | Y55: Total | AB55: Total
A56: Net Income - ROE on Rate Base | E56: =E34 -> 0 | F56: =F34 -> 0 | H56: =H34 -> 0 | I56: =I34 -> 0 | K56: =K34 -> 0 | L56: =L34 -> 0 | N56: =N34 -> 0 | O56: =O34 -> 0 | Q56: =Q34 -> 0 | R56: =R34 -> 0 | T56: =T34 -> 0 | U56: =U34 -> 0 | W56: =W34 -> 0 | X56: =X34 -> 0 | Z56: =Z34 -> 0 | AA56: =AA34 -> 0 | AC56: =AC34 -> 0 | AD56: =AD34 -> 0
A57: Amortization (17% DB and 83% P) | E57: =E38 -> 0 | F57: =F38 -> 0 | H57: =H38 -> 0 | I57: =I38 -> 0 | K57: =K38 -> 0 | L57: =L38 -> 0 | N57: =N38 -> 0 | O57: =O38 -> 0 | Q57: =Q38 -> 0 | R57: =R38 -> 0 | T57: =T38 -> 0 | U57: =U38 -> 0 | W57: =W38 -> 0 | X57: =X38 -> 0 | Z57: =Z38 -> 0 | AA57: =AA38 -> 0 | AC57: =AC38 -> 0 | AD57: =AD38 -> 0
A58: CCA (17% DB and 83% P) | E58: =-D94*E$20 -> 0 | F58: =-D94*F$20 -> 0 | H58: =-E94*H$20 -> 0 | I58: =-E94*I$20 -> 0 | K58: =-F94*K$20 -> 0 | L58: =-F94*L$20 -> 0 | N58: =-G94*N$20 -> 0 | O58: =-G94*O$20 -> 0 | Q58: =-H94*Q$20 -> 0 | R58: =-H94*R$20 -> 0 | T58: =-I94*T$20 -> 0 | U58: =-I94*U$20 -> 0 | W58: =-J94*W$20 -> 0 | X58: =-J94*X$20 -> 0 | Z58: =-K94*Z$20 -> 0 | AA58: =-K94*AA$20 -> 0 | AC58: =-L94*AC$20 -> 0 | AD58: =-L94*AD$20 -> 0
A59: Taxable income | E59: =SUM(E56:E58) -> 0 | F59: =SUM(F56:F58) -> 0 | H59: =SUM(H56:H58) -> 0 | I59: =SUM(I56:I58) -> 0 | K59: =SUM(K56:K58) -> 0 | L59: =SUM(L56:L58) -> 0 | N59: =SUM(N56:N58) -> 0 | O59: =SUM(O56:O58) -> 0 | Q59: =SUM(Q56:Q58) -> 0 | R59: =SUM(R56:R58) -> 0 | T59: =SUM(T56:T58) -> 0 | U59: =SUM(U56:U58) -> 0 | W59: =SUM(W56:W58) -> 0 | X59: =SUM(X56:X58) -> 0 | Z59: =SUM(Z56:Z58) -> 0 | AA59: =SUM(AA56:AA58) -> 0 | AC59: =SUM(AC56:AC58) -> 0 | AD59: =SUM(AD56:AD58) -> 0
A61: Tax Rate (to be entered)
A63: Income Taxes Payable | E63: =E59*E61 -> 0 | F63: =F59*F61 -> 0 | H63: =H59*H61 -> 0 | I63: =I59*I61 -> 0 | K63: =K59*K61 -> 0 | L63: =L59*L61 -> 0 | N63: =N59*N61 -> 0 | O63: =O59*O61 -> 0 | Q63: =Q59*Q61 -> 0 | R63: =R59*R61 -> 0 | T63: =T59*T61 -> 0 | U63: =U59*U61 -> 0 | W63: =W59*W61 -> 0 | X63: =X59*X61 -> 0 | Z63: =Z59*Z61 -> 0 | AA63: =AA59*AA61 -> 0 | AC63: =AC59*AC61 -> 0 | AD63: =AD59*AD61 -> 0
A64: Gross Up
A65: Income Taxes Payable | E65: =E63/(1-E61) -> 0 | F65: =F63/(1-F61) -> 0 | H65: =H63/(1-H61) -> 0 | I65: =I63/(1-I61) -> 0 | K65: =K63/(1-K61) -> 0 | L65: =L63/(1-L61) -> 0 | N65: =N63/(1-N61) -> 0 | O65: =O63/(1-O61) -> 0 | Q65: =Q63/(1-Q61) -> 0 | R65: =R63/(1-R61) -> 0 | T65: =T63/(1-T61) -> 0 | U65: =U63/(1-U61) -> 0 | W65: =W63/(1-W61) -> 0 | X65: =X63/(1-X61) -> 0 | Z65: =Z63/(1-Z61) -> 0 | AA65: =AA63/(1-AA61) -> 0 | AC65: =AC63/(1-AC61) -> 0 | AD65: =AD63/(1-AD61) -> 0
A66: Grossed Up PILs | E66: =SUM(E65:E65) -> 0 | F66: =SUM(F65:F65) -> 0 | H66: =SUM(H65:H65) -> 0 | I66: =SUM(I65:I65) -> 0 | K66: =SUM(K65:K65) -> 0 | L66: =SUM(L65:L65) -> 0 | N66: =SUM(N65:N65) -> 0 | O66: =SUM(O65:O65) -> 0 | Q66: =SUM(Q65:Q65) -> 0 | R66: =SUM(R65:R65) -> 0 | T66: =SUM(T65:T65) -> 0 | U66: =SUM(U65:U65) -> 0 | W66: =SUM(W65:W65) -> 0 | X66: =SUM(X65:X65) -> 0 | Z66: =SUM(Z65:Z65) -> 0 | AA66: =SUM(AA65:AA65) -> 0 | AC66: =SUM(AC65:AC65) -> 0 | AD66: =SUM(AD65:AD65) -> 0
A69: Net Fixed Assets | D69: 2011 | E69: 2012 | F69: 2013 | G69: 2014 | H69: 2015 | I69: 2016 | J69: 2017 | K69: 2018 | L69: 2019
B70: Enter applicable amortization in years: | C70: 25
A71: Opening Gross Fixed Assets | E71: =D73 -> 0 | F71: 0 | G71: 0 | H71: 0 | I71: 0 | J71: 0 | K71: 0 | L71: 0
A72: Gross Capital Additions | D72: ='App.2-FA Proposed REG Invest.'!C99 -> 0 | E72: ='App.2-FA Proposed REG Invest.'!D99 -> 0 | F72: ='App.2-FA Proposed REG Invest.'!E99 -> 0 | G72: ='App.2-FA Proposed REG Invest.'!F99 -> 0 | H72: ='App.2-FA Proposed REG Invest.'!G99 -> 0 | I72: ='App.2-FA Proposed REG Invest.'!H99 -> 0 | J72: ='App.2-FA Proposed REG Invest.'!I99 -> 0 | K72: ='App.2-FA Proposed REG Invest.'!J99 -> 0 | L72: ='App.2-FA Proposed REG Invest.'!K99 -> 0
A73: Closing Gross Fixed Assets | D73: =SUM(D71:D72) -> 0 | E73: 0 | F73: 0 | G73: 0 | H73: 0 | I73: 0 | J73: 0 | K73: 0 | L73: 0
A75: Opening Accumulated Amortization | E75: =+D78 -> 0 | F75: =E78 -> 0 | G75: 0 | H75: 0 | I75: 0 | J75: 0 | K75: 0 | L75: 0
A76: Current Year Amortization (before additions) | E76: =IF(ISERROR(E71/$C$70), 0, E71/$C$70) -> 0 | F76: =IF(ISERROR(F71/$C$70), 0, F71/$C$70) -> 0 | G76: =IF(ISERROR(G71/$C$70), 0, G71/$C$70) -> 0 | H76: =H71/$C$70 -> 0 | I76: =I71/$C$70 -> 0 | J76: =J71/$C$70 -> 0 | K76: =K71/$C$70 -> 0 | L76: =L71/$C$70 -> 0
A77: Additions (half year) | D77: =D72/C70/2 -> 0 | E77: =E72/C70/2 -> 0 | F77: =F72/C70/2 -> 0 | G77: =G72/C70/2 -> 0 | H77: =H72/C70/2 -> 0 | I77: =I72/C70/2 -> 0 | J77: =J72/C70/2 -> 0 | K77: =K72/C70/2 -> 0 | L77: =L72/C70/2 -> 0
A78: Closing Accumulated Amortization | D78: =SUM(D75+D77) -> 0 | E78: =SUM(E75:E77) -> 0 | F78: 0 | G78: 0 | H78: 0 | I78: 0 | J78: 0 | K78: 0 | L78: 0
A80: Opening Net Fixed Assets | D80: =D71-D75 -> 0 | E80: =E71-E75 -> 0 | F80: =F71-F75 -> 0 | G80: =G71-G75 -> 0 | H80: =G81 -> 0 | I80: =H81 -> 0 | J80: =I81 -> 0 | K80: =J81 -> 0 | L80: =K81 -> 0
A81: Closing Net Fixed Assets | D81: =D73-D78 -> 0 | E81: 0 | F81: 0 | G81: 0 | H81: 0 | I81: 0 | J81: 0 | K81: 0 | L81: 0
A82: Average Net Fixed Assets | D82: =SUM(D80:D81)/2 -> 0 | E82: 0 | F82: 0 | G82: 0 | H82: 0 | I82: 0 | J82: 0 | K82: 0 | L82: 0
A84: UCC for PILs Calculation
D85: 2014 | E85: 2014 | F85: 2014 | G85: 2014 | H85: 2015 | I85: 2016 | J85: 2017 | K85: 2018 | L85: 2019
A87: Opening UCC | E87: =D95 -> 0 | F87: 0 | G87: 0 | H87: 0 | I87: 0 | J87: 0 | K87: 0 | L87: 0
A88: Capital Additions (from Appendix 2-FA) | D88: =D72 -> 0 | E88: 0 | F88: 0 | G88: 0 | H88: 0 | I88: 0 | J88: 0 | K88: 0 | L88: 0
A89: UCC Before Half Year Rule | D89: =SUM(D87:D88) -> 0 | E89: 0 | F89: 0 | G89: 0 | H89: 0 | I89: 0 | J89: 0 | K89: 0 | L89: 0
A90: Half Year Rule (1/2 Additions - Disposals) | D90: =D88/2 -> 0 | E90: 0 | F90: 0 | G90: 0 | H90: 0 | I90: 0 | J90: 0 | K90: 0 | L90: 0
A91: Reduced UCC | D91: =D89-D90 -> 0 | E91: 0 | F91: 0 | G91: 0 | H91: 0 | I91: 0 | J91: 0 | K91: 0 | L91: 0
A92: CCA Rate Class (to be entered) | C92: 47 | D92: =$C$92 -> 47 | E92: =$C$92 -> 47 | F92: 47 | G92: 47 | H92: 47 | I92: 47 | J92: 47 | K92: 47 | L92: 47
A93: CCA Rate (to be entered) | C93: 0.08 | D93: =$C$93 -> 0.08 | E93: =$C$93 -> 0.08 | F93: 0.08 | G93: 0.08 | H93: 0.08 | I93: 0.08 | J93: 0.08 | K93: 0.08 | L93: 0.08
A94: CCA | D94: =D91*D$93 -> 0 | E94: 0 | F94: 0 | G94: 0 | H94: 0 | I94: 0 | J94: 0 | K94: 0 | L94: 0
A95: Closing UCC | D95: =D89-D94 -> 0 | E95: 0 | F95: 0 | G95: 0 | H95: 0 | I95: 0 | J95: 0 | K95: 0 | L95: 0

Sheet App.2-G SQI
M1: File Number: | O1: =EBNUMBER -> EB-2017-0073
M2: Exhibit: | O2: 2
M3: Tab:
M4: Schedule:
M5: Page:
M7: Date: | O7: 2017-08-28
A9: Appendix 2-G
A10: Service Reliability and Quality Indicators
A11: 2012 - 2016
A13: Service Reliability
A15: Index | B15: Including outages caused by loss of supply | G15: Excluding outages caused by loss of supply | L15: Excluding Major Event Days
B16: =TestYear-6 -> 2012 | C16: =TestYear-5 -> 2013 | D16: =TestYear-4 -> 2014 | E16: =TestYear-3 -> 2015 | F16: =TestYear-2 -> 2016 | G16: =B16 -> 2012 | H16: 2013 | I16: 2014 | J16: 2015 | K16: 2016 | L16: 2012 | M16: 2013 | N16: 2014 | O16: 2015 | P16: 2016
A17: SAIDI | B17: 0.53 | C17: 4.73 | D17: 6.18 | E17: 11.22 | F17: 25.28 | G17: 0.47 | H17: 0.23 | I17: 1.28 | J17: 0.68 | K17: 1.74 | L17: 0.47 | M17: 0.23 | N17: 1.28 | O17: 0.68 | P17: 0.67
A18: SAIFI | B18: 1.18 | C18: 1.28 | D18: 3.69 | E18: 2.36 | F18: 5.18 | G18: 0.17 | H18: 0.28 | I18: 0.74 | J18: 0.36 | K18: 1.18 | L18: 0.17 | M18: 0.28 | N18: 0.74 | O18: 0.36 | P18: 0.57
A20: 5 Year Historical Average
A21: SAIDI | F21: =IF(ISERROR(AVERAGE(B17:F17)), "", AVERAGE(B17:F17)) -> 9.588 | K21: =IF(ISERROR(AVERAGE(G17:K17)), "", AVERAGE(G17:K17)) -> 0.88 | P21: =IF(ISERROR(AVERAGE(L17:P17)), "", AVERAGE(L17:P17)) -> 0.666
A22: SAIFI | F22: =IF(ISERROR(AVERAGE(B18:F18)), "", AVERAGE(B18:F18)) -> 2.738 | K22: =IF(ISERROR(AVERAGE(G18:K18)), "", AVERAGE(G18:K18)) -> 0.546 | P22: =IF(ISERROR(AVERAGE(L18:P18)), "", AVERAGE(L18:P18)) -> 0.424
A24: SAIDI = System Average Interruption Duration Index
A25: SAIFI = System Average Interruption Frequency Index
A27: Service Quality
A29: Indicator | E29: OEB Minimum Standard | G29: =B16 -> 2012 | H29: =C16 -> 2013 | I29: =D16 -> 2014 | J29: =E16 -> 2015 | K29: =F16 -> 2016
A30: Low Voltage Connections | E30: 0.9 | G30: 0.964 | H30: 0.95 | I30: 1 | J30: 1 | K30: 1
A31: High Voltage Connections | E31: 0.9 | G31: n/a | H31: n/a | I31: n/a | J31: n/a | K31: n/a
A32: Telephone Accessibility | E32: 0.65 | G32: 0.981 | H32: 0.99 | I32: 1 | J32: 0.96 | K32: 0.94
A33: Appointments Met | E33: 0.9 | G33: 0.929 | H33: 0.985 | I33: 0.982 | J33: 0.962 | K33: 0.917
A34: Written Response to Enquires | E34: 0.8 | G34: 1 | H34: 0.97 | I34: 1 | J34: 0.98 | K34: 1
A35: Emergency Urban Response | E35: 0.8 | G35: 1 | H35: 1 | I35: 1 | J35: 1 | K35: 1
A36: Emergency Rural Response | E36: 0.8 | G36: 1 | H36: 1 | I36: 1 | J36: 1 | K36: n/a
A37: Telephone Call Abandon Rate | E37: 0.1 | G37: 0.006 | H37: 0 | I37: 0 | J37: 0.02 | K37: 0.028
A38: Appointment Scheduling | E38: 0.9 | G38: 1 | H38: 1 | I38: 0.98 | J38: 1 | K38: 0.933
A39: Rescheduling a Missed Appointment | E39: 1 | G39: 1 | H39: 1 | I39: 1 | J39: 1 | K39: 1
A40: Reconnection Performance Standard | E40: 0.85 | G40: 1 | H40: 1 | I40: 1 | J40: 1 | K40: 1

Sheet App.2-H_Other_Oper_Rev
H1: File Number: | I1: =EBNUMBER -> EB-2017-0073
H2: Exhibit: | I2: 3
H3: Tab:
H4: Schedule:
H5: Page:
H7: Date: | I7: 2017-08-28
A9: Appendix 2-H
A10: Other Operating Revenue
A12: USoA # | B12: USoA Description | C12: =F13-2 & " Actual" & CHAR(178) -> 2013 Actual² | D12: =D13&" Actual"&CHAR(178) -> 2014 Actual² | E12: =E13 & " Actual" & CHAR(178) -> 2014 Actual² | F12: =F13 & " Actual" & CHAR(178) -> 2015 Actual² | G12: =G13 & " Actual" & CHAR(178) -> 2016 Actual² | H12: ="Bridge Year" -> Bridge Year | I12: Test Year
C13: =D13-1 -> 2013 | D13: =F13-1 -> 2014 | E13: =F13-1 -> 2014 | F13: =I13-3 -> 2015 | G13: =I13-2 -> 2016 | H13: =BridgeYear -> 2017 | I13: =TestYear -> 2018
B14: Reporting Basis | C14: CGAAP | D14: CGAAP | E14: MIFRS | F14: MIFRS | G14: MIFRS | H14: MIFRS | I14: MIFRS
A15: 4235 | B15: Specific Service Charges | C15: 17685 | D15: 18275 | E15: 18275 | F15: 17770 | G15: 17965 | H15: 18000 | I15: 18000
A16: 4225 | B16: Late Payment Charges | C16: 38446.79 | D16: 52423.55 | E16: 52423.55 | F16: 46090.73 | G16: 48896.78 | H16: =AVERAGE(C16:G16) -> 47656.28 | I16: 49498
A17: 4086 | B17: SS Revenue | C17: 8139.5 | D17: 8048.77 | E17: 8048.77 | F17: 7900.52 | G17: 8135.27 | H17: 8463 | I17: 8484
A18: 4210 | B18: Rent from Electric Property | C18: 42858.83 | D18: 42949.01 | E18: 42949.01 | F18: 47261 | G18: 45333.14 | H18: =G18*1.09 -> 49413.1226 | I18: 50247
A19: 4215 | B19: Other Utility Operating Income | C19: 0 | D19: 1000 | E19: 1000
A20: 4245 | B20: Gov't Assist Directly Credit to Income | C20: 0 | D20: 0 | E20: 1292.55 | F20: 2496.52 | G20: 2477 | H20: 4955 | I20: 7468
A21: 4360 | B21: Loss on Disposition of Utility & Other Property | C21: -1167 | D21: -6074 | E21: -6074
A22: 4362 | B22: Loss on Retirement of Utility & Other Property | F22: -2042 | G22: -1337 | H22: =AVERAGE(C22:G22) -> -1689.5 | I22: -2000
A23: 4375 | B23: Revenue from Non-Utility Operations | C23: 85375 | D23: 145790 | E23: 145790 | F23: 219152 | G23: 87633
A24: 4380 | B24: Expense from Non-Utility Operations | C24: -85375 | D24: -145790 | E24: -145790 | F24: -174458 | G24: -87366
A25: 4385 | B25: Non-Utility Rental Income | C25: 10951.17 | D25: 10951.99 | E25: 10951.99 | F25: 10724 | G25: 11365 | H25: =AVERAGE(C25:G25) -> 10988.83 | I25: 11500
A26: 4405 | B26: Interest and Dividend Income | C26: 4762 | D26: 3055 | E26: 3055 | F26: 2138 | G26: 2578 | H26: =AVERAGE(C26,E26,F26,G26) -> 3133.25 | I26: 3500
A29: Specific Service Charges | C29: =C15 -> 17685 | D29: 18275 | E29: 18275 | F29: 17770 | G29: 17965 | H29: 18000 | I29: 18000
A30: Late Payment Charges | C30: 38446.79 | D30: 52423.55 | E30: 52423.55 | F30: 46090.73 | G30: 48896.78 | H30: 47656.28 | I30: 49498
A31: Other Operating Revenues | C31: =SUM(C17:C20) -> 50998.33 | D31: 51997.78 | E31: 53290.33 | F31: 57658.04 | G31: 55945.41 | H31: 62831.1226 | I31: 66199
A32: Other Income or Deductions | C32: =SUM(C21:C27)-C25 -> 3595 | D32: -3019 | E32: -3019 | F32: 44790 | G32: 1508 | H32: 1443.75 | I32: 1500
A33: Total | C33: =SUM(C29:C32) -> 110725.12 | D33: 119677.33 | E33: 120969.88 | F33: 166308.77 | G33: 124315.19 | H33: 129931.1526 | I33: 135197
A35: Description | C35: Account(s)
A36: Specific Service Charges: | C36: 4235
A37: Late Payment Charges: | C37: 4225 | G37: 8
A38: Other Distribution Revenues: | C38: 4080, 4082, 4084, 4090, 4205, 4210, 4215, 4220, 4240, 4245
A39: Other Income and Expenses: | C39: 4305, 4310, 4315, 4320, 4325, 4330, 4335, 4340, 4345, 4350, 4355, 4360, 4365, 4370, 4375, 4380, 4385, 4390, 4395, 4398, 4405, 4415
A42: Note: Add all applicable accounts listed above to the table and include all relevant information.
A44: Account Breakdown Details
A46: For each "Other Operating Revenue" and "Other Income or Deductions" Account, a detailed breakdown of the account components is required. See the example below for Account 4405, Interest and Dividend Income.
A49: Account 4405 - Interest and Dividend Income
C50: =$C$12 -> 2013 Actual² | D50: =$D$12 -> 2014 Actual² | E50: =$E$12 -> 2014 Actual² | F50: =$F$12 -> 2015 Actual² | G50: =$G$12 -> 2016 Actual² | H50: =$H$12 -> Bridge Year | I50: =$I$12 -> Test Year
C51: =$C$13 -> 2013 | D51: =$D$13 -> 2014 | E51: =$E$13 -> 2014 | F51: =$F$13 -> 2015 | G51: =$G$13 -> 2016 | H51: =$H$13 -> 2017 | I51: =$I$13 -> 2018
A52: Reporting Basis | C52: =IF($C$14=0, "", $C$14) -> CGAAP | D52: =IF($D$14=0, "", $D$14) -> CGAAP | E52: =IF($E$14=0, "", $E$14) -> MIFRS | F52: =IF($F$14=0, "", $F$14) -> MIFRS | G52: =IF($G$14=0, "", $G$14) -> MIFRS | H52: =IF($H$14=0, "", $H$14) -> MIFRS | I52: =IF($I$14=0, "", $I$14) -> MIFRS
A53: Short-term Investment Interest
A54: Bank Deposit Interest | C54: 4521.42 | D54: 3051.31 | E54: 3051.31 | F54: 1934.81 | G54: 2423.92 | H54: 3113 | I54: 3500
A55: Miscellaneous Interest Revenue | C55: 240.2 | D55: 3.2 | E55: 3.2 | F55: 203 | G55: 153.96
A56: etc.1
A58: Total | C58: =SUM(C53:C57) -> 4761.62 | D58: 3054.51 | E58: 3054.51 | F58: 2137.81 | G58: 2577.88 | H58: 3113 | I58: 3500
A61: Account 4210- Rent from Electric Property
C62: =$C$12 -> 2013 Actual² | D62: =$D$12 -> 2014 Actual² | E62: =$E$12 -> 2014 Actual² | F62: =$F$12 -> 2015 Actual² | G62: =$G$12 -> 2016 Actual² | H62: =$H$12 -> Bridge Year | I62: =$I$12 -> Test Year
C63: =$C$13 -> 2013 | D63: =$D$13 -> 2014 | E63: =$E$13 -> 2014 | F63: =$F$13 -> 2015 | G63: =$G$13 -> 2016 | H63: =$H$13 -> 2017 | I63: =$I$13 -> 2018
A64: Reporting Basis | C64: =IF($C$14=0, "", $C$14) -> CGAAP | D64: =IF($D$14=0, "", $D$14) -> CGAAP | E64: =IF($E$14=0, "", $E$14) -> MIFRS | F64: =IF($F$14=0, "", $F$14) -> MIFRS | G64: =IF($G$14=0, "", $G$14) -> MIFRS | H64: =IF($H$14=0, "", $H$14) -> MIFRS | I64: =IF($I$14=0, "", $I$14) -> MIFRS
A65: Pole rental fees on Third Party Attachments | C65: 42859.25 | D65: 42948.65 | E65: 42948.65 | F65: 43980.59 | G65: 45333.14 | H65: 49413.1226 | I65: 50247
A66: Sentinel Light rental revenue | C66: 10951.17 | D66: 10951.99 | E66: 10951.99
A67: Other rental revenue | F67: 3280.5
A68: etc.1
A70: Total | C70: =SUM(C65:C69) -> 53810.42 | D70: 53900.64 | E70: 53900.64 | F70: 47261.09 | G70: 45333.14 | H70: 49413.1226 | I70: 50247
A73: Account 4215- Other Utility Operating Income
C74: =$C$12 -> 2013 Actual² | D74: =$D$12 -> 2014 Actual² | E74: =$E$12 -> 2014 Actual² | F74: =$F$12 -> 2015 Actual² | G74: =$G$12 -> 2016 Actual² | H74: =$H$12 -> Bridge Year | I74: =$I$12 -> Test Year
C75: =$C$13 -> 2013 | D75: =$D$13 -> 2014 | E75: =$E$13 -> 2014 | F75: =$F$13 -> 2015 | G75: =$G$13 -> 2016 | H75: =$H$13 -> 2017 | I75: =$I$13 -> 2018
A76: Reporting Basis | C76: =IF($C$14=0, "", $C$14) -> CGAAP | D76: =IF($D$14=0, "", $D$14) -> CGAAP | E76: =IF($E$14=0, "", $E$14) -> MIFRS | F76: =IF($F$14=0, "", $F$14) -> MIFRS | G76: =IF($G$14=0, "", $G$14) -> MIFRS | H76: =IF($H$14=0, "", $H$14) -> MIFRS | I76: =IF($I$14=0, "", $I$14) -> MIFRS
A77: Small Business Hiring Credit | D77: 999.83 | E77: 999.83
A82: Total | C82: =SUM(C77:C81) -> 0 | D82: 999.83 | E82: 999.83 | F82: 0 | G82: 0 | H82: 0 | I82: 0
A84: Account 4245- Gov't Assist Directly Credit to Income
C85: =$C$12 -> 2013 Actual² | D85: =$D$12 -> 2014 Actual² | E85: =$E$12 -> 2014 Actual² | F85: =$F$12 -> 2015 Actual² | G85: =$G$12 -> 2016 Actual² | H85: =$H$12 -> Bridge Year | I85: =$I$12 -> Test Year
C86: =$C$13 -> 2013 | D86: =$D$13 -> 2014 | E86: =$E$13 -> 2014 | F86: =$F$13 -> 2015 | G86: =$G$13 -> 2016 | H86: =$H$13 -> 2017 | I86: =$I$13 -> 2018
A87: Reporting Basis | C87: =IF($C$14=0, "", $C$14) -> CGAAP | D87: =IF($D$14=0, "", $D$14) -> CGAAP | E87: =IF($E$14=0, "", $E$14) -> MIFRS | F87: =IF($F$14=0, "", $F$14) -> MIFRS | G87: =IF($G$14=0, "", $G$14) -> MIFRS | H87: =IF($H$14=0, "", $H$14) -> MIFRS | I87: =IF($I$14=0, "", $I$14) -> MIFRS
A88: Revenues arising from customer contributions | E88: 1292.55 | F88: 2496.52 | G88: 2477 | H88: 4955 | I88: 7468
A93: Total | C93: =SUM(C88:C92) -> 0 | D93: 0 | E93: 1292.55 | F93: 2496.52 | G93: 2477 | H93: 4955 | I93: 7468
A95: Account 4375 -Revenue from Non-Utility Operations
C96: =$C$12 -> 2013 Actual² | D96: =$D$12 -> 2014 Actual² | E96: =$E$12 -> 2014 Actual² | F96: =$F$12 -> 2015 Actual² | G96: =$G$12 -> 2016 Actual² | H96: =$H$12 -> Bridge Year | I96: =$I$12 -> Test Year
C97: =$C$13 -> 2013 | D97: =$D$13 -> 2014 | E97: =$E$13 -> 2014 | F97: =$F$13 -> 2015 | G97: =$G$13 -> 2016 | H97: =$H$13 -> 2017 | I97: =$I$13 -> 2018
A98: Reporting Basis | C98: =IF($C$14=0, "", $C$14) -> CGAAP | D98: =IF($D$14=0, "", $D$14) -> CGAAP | E98: =IF($E$14=0, "", $E$14) -> MIFRS | F98: =IF($F$14=0, "", $F$14) -> MIFRS | G98: =IF($G$14=0, "", $G$14) -> MIFRS | H98: =IF($H$14=0, "", $H$14) -> MIFRS | I98: =IF($I$14=0, "", $I$14) -> MIFRS
A99: Municipality Street light conversion project | F99: 111143.79
A100: Revenue from IESO for Conservation Programs | C100: 85375 | D100: 145790 | E100: 145790 | F100: 105069.97 | G100: 87365.74
A101: Miscellaneous Revenue | F101: 2938.7 | G101: 266.98
A104: Total | C104: =SUM(C99:C103) -> 85375 | D104: 145790 | E104: 145790 | F104: 219152.46 | G104: 87632.72 | H104: 0 | I104: 0
A107: Account 4380 -Expense from Non-Utility Operations
C108: =$C$12 -> 2013 Actual² | D108: =$D$12 -> 2014 Actual² | E108: =$E$12 -> 2014 Actual² | F108: =$F$12 -> 2015 Actual² | G108: =$G$12 -> 2016 Actual² | H108: =$H$12 -> Bridge Year | I108: =$I$12 -> Test Year
C109: =$C$13 -> 2013 | D109: =$D$13 -> 2014 | E109: =$E$13 -> 2014 | F109: =$F$13 -> 2015 | G109: =$G$13 -> 2016 | H109: =$H$13 -> 2017 | I109: =$I$13 -> 2018
A110: Reporting Basis | C110: =IF($C$14=0, "", $C$14) -> CGAAP | D110: =IF($D$14=0, "", $D$14) -> CGAAP | E110: =IF($E$14=0, "", $E$14) -> MIFRS | F110: =IF($F$14=0, "", $F$14) -> MIFRS | G110: =IF($G$14=0, "", $G$14) -> MIFRS | H110: =IF($H$14=0, "", $H$14) -> MIFRS | I110: =IF($I$14=0, "", $I$14) -> MIFRS
A111: Municipality Street light conversion project | F111: -73278.27
A112: Expenses for IESO Conservation Programs | C112: -85375 | D112: -145790 | E112: -145790 | F112: -101179.42 | G112: -87366
A116: Total | C116: =SUM(C111:C115) -> -85375 | D116: -145790 | E116: -145790 | F116: -174457.69 | G116: -87366 | H116: 0 | I116: 0
A119: Account 4385 -Non-Utility Rental Income
C120: =$C$12 -> 2013 Actual² | D120: =$D$12 -> 2014 Actual² | E120: =$E$12 -> 2014 Actual² | F120: =$F$12 -> 2015 Actual² | G120: =$G$12 -> 2016 Actual² | H120: =$H$12 -> Bridge Year | I120: =$I$12 -> Test Year
C121: =$C$13 -> 2013 | D121: =$D$13 -> 2014 | E121: =$E$13 -> 2014 | F121: =$F$13 -> 2015 | G121: =$G$13 -> 2016 | H121: =$H$13 -> 2017 | I121: =$I$13 -> 2018
A122: Reporting Basis | C122: =IF($C$14=0, "", $C$14) -> CGAAP | D122: =IF($D$14=0, "", $D$14) -> CGAAP | E122: =IF($E$14=0, "", $E$14) -> MIFRS | F122: =IF($F$14=0, "", $F$14) -> MIFRS | G122: =IF($G$14=0, "", $G$14) -> MIFRS | H122: =IF($H$14=0, "", $H$14) -> MIFRS | I122: =IF($I$14=0, "", $I$14) -> MIFRS
A123: Sentinel Light rental revenue | F123: 10724.44 | G123: 11364.86 | H123: 10988.83 | I123: 11500
A128: Total | C128: =SUM(C123:C127) -> 0 | D128: 0 | E128: 0 | F128: 10724.44 | G128: 11364.86 | H128: 10988.83 | I128: 11500
A135: Notes:
A136: 1 | B136: List and specify any other interest revenue.
A137: 2 | B137: In the transition year to IFRS, the applicant is to present information in both MIFRS and CGAAP. For the typical applicant that adopted IFRS on January 1, 2015, 2014 must be presented in both a CGAAP and MIFRS basis.

Sheet App_2-I LF_CDM
A1: =+G71+1 -> 2021 | G1: File Number: | H1: =EBNUMBER -> EB-2017-0073
G2: Exhibit: | H2: 3
G3: Tab:
G4: Schedule:
G5: Page:
G7: Date: | H7: 2017-08-22
A9: Appendix 2-I
A10: Load Forecast CDM Adjustment Work Form (2018)
A12: Appendix 2-I was initially developed to help determine what would be the amount of CDM savings needed in each year to cumulatively achieve the four year 2011-2014 CDM target. This then determined the amount of kWh (and with translation, kW of demand) savings that were converted into dollar balances for the LRAMVA, and also to determine the related adjustment to the load forecast to account for OPA-reported savings. Beginning in the 2015 year, it has been adjusted because the persistence of 2011-2014 CDM programs will be an adjustment to the load forecast in addition to the estimated savings for the first year (2015) for the new 2015-2020 CDM plan.
A14: 2018 is the fourth year of the six-year (2015-2020) Conservation First program. Final results for the 2011-14 program were issued in the fall of 2015, and the program is completed, although in some instances disposition of the amounts has been deferred. For the purposes of the 2015-2020 LRAMVA, and the impact of CDM on the load forecast, CDM programs in 2014 and earlier are implicit in the historical data on which the base load forecast is developed. Only actual and forecasted impacts of 2015 to 2018 CDM programs need to be reflected in the manual load forecast adjustment and for the LRAMVA threshold amount in 2018 and carrying forward, although the full year impact of 2015 CDM programs and half-year impact of 2016 CDM programs on 2016 historical data is also assumed to be reflected in the base load forecast.
A16: The new six year (2015-2020) CDM program works in a slightly different manner to the previous 2011-2014 CDM program. Distributors will offer programs each year that, over the six years (from January 1, 2015 to December 31, 2020) will strive to achieve savings equal to the new six year CDM target with the full target in place (i.e., persisting) on December 31, 2020. In other words, distributors will be able to offer and execute programs on a basis so that, as long as savings equal to the full target are in place at the end the period, the distributor's 2015-2020 CDM target will have been met.
A18: 2015-2020 CDM Program - 2018 fourth year of the current CDM plan
A20: For the first year of the new 2015-2020 CDM plan, it is assumed that each year's program will achieve an equal amount of new CDM savings. This results in each year's program being about 1/6 (16.67%) of the cumulative 2015-2020 CDM target for kWh savings. A distributor may propose an alternative approach but would be expected to document in its application why it believes that its proposal is more reasonable. In its proposal, the distributor should ensure that the sum of the results for each year's CDM program from 2015 to 2020 add up to its 2015-2020 CDM target as established by the IESO.
A22: 6 Year (2015-2020) kWh Target:
A23: 3700000
B24: 2015 | C24: 2016 | D24: 2017 | E24: 2018 | F24: 2019 | G24: 2020 | H24: Total
A25: %
A26: 2015 CDM Programs | G26: =G34/G40 -> 0.06567567568 | H26: =H34/H40 -> 0.06567567568
A27: 2016 CDM Programs | G27: =G35/G40 -> 0.1810810811 | H27: =H35/H40 -> 0.1810810811
A28: 2017 CDM Programs | G28: =G36/$H$40 -> 0.1910810811 | H28: =H36/H40 -> 0.1910810811
A29: 2018 CDM Programs | G29: =G37/$H$40 -> 0.1875675676 | H29: =H37/H40 -> 0.1875675676
A30: 2019 CDM Programs | G30: =G38/$H$40 -> 0.1875675676 | H30: =H38/H40 -> 0.1875675676
A31: 2020 CDM Programs | G31: =G39/$H$40 -> 0.187027027 | H31: =H39/H40 -> 0.187027027
A32: Total in Year | B32: =SUM(B26:B31) -> 0 | C32: =SUM(C26:C31) -> 0 | D32: =SUM(D26:D31) -> 0 | E32: =SUM(E26:E29) -> 0 | F32: =SUM(F26:F30) -> 0 | G32: =SUM(G26:G31) -> 1 | H32: =SUM(H26:H31) -> 1
A33: kWh
A34: =A26 -> 2015 CDM Programs | B34: 243000 | C34: =B34 -> 243000 | D34: =C34 -> 243000 | E34: =D34 -> 243000 | F34: =E34 -> 243000 | G34: =F34 -> 243000 | H34: =G34 -> 243000
A35: 2016 CDM Programs | C35: 670000 | D35: =C35 -> 670000 | E35: =D35 -> 670000 | F35: =E35 -> 670000 | G35: =F35 -> 670000 | H35: 670000 | K35: 2011 | L35: 2012 | M35: 2013 | N35: 2014
A36: 2017 CDM Programs | D36: 707000 | E36: =D36 -> 707000 | F36: =E36 -> 707000 | G36: =F36 -> 707000 | H36: 707000 | J36: 2011 CDM Programs | K36: =50% -> 0.5 | L36: 1 | M36: 1 | N36: 1
A37: 2018 CDM Programs | E37: 694000 | F37: =E37 -> 694000 | G37: =F37 -> 694000 | H37: 694000 | J37: 2012 CDM Programs | L37: 0.5 | M37: 1 | N37: 1
A38: 2019 CDM Programs | F38: 694000 | G38: 694000 | H38: 694000 | J38: 2013 CDM Programs | M38: 0.5 | N38: 1
A39: 2020 CDM Programs | G39: =A23-SUM(H34:H38) -> 692000 | H39: 692000 | J39: 2014 CDM Programs | N39: 0.5
A40: Total in Year | B40: =SUM(B34:B39) -> 243000 | C40: =SUM(C34:C39) -> 913000 | D40: =SUM(D34:D39) -> 1620000 | E40: =SUM(E34:E37) -> 2314000 | F40: =SUM(F34:F38) -> 3008000 | G40: =SUM(G34:G39) -> 3700000 | H40: =A23 -> 3700000
G41: =IF(G40-H40<>0,"Inputs do no match 2015-20 CDM target","") -> 
A43: Note: The default formulae in the above table assume that the 2015-2020 kWh CDM target is achieved through persistence of CDM savings to the end of 2020. The distributor should enter measured CDM savings for 2015, and persistence of 2015 programs for 2016-2020 in row 34. When available, (preliminary/final) CDM savings for 2016 can be entered into row 35. The distributor can also input estimates or forecasts of the 2017 CDM programs if it believes that these are more realistic and can be supported; such information would typically be derived from the CDM plans that the distributor has filed with the IESO. Similarly, CDM savings and persistence into future years can be estimated for 2018, 2019 and 2020 CDM programs. However, the distributor will have to support its proposals for estimated or forecasted savings, particularly beyond the 2017 bridge year. The sum of persistent savings to the end of 2020, should equal the target entered into cell A23.
A45: Determination of 2018 Load Forecast Adjustment
A47: The Board determined that the "net" number should be used in its Decision and Order with respect to Centre Wellington Hydro Ltd.'s 2013 Cost of Service rates (EB-2012-0113). This approach has also been used in Settlement Agreements accepted by the Board in other 2013 and 2014 applications. The distributor should select whether the adjustment is done on a "net" or "gross" basis, but must support a proposal for the adjustment being done on a "gross" basis. Sheet 2-I defaults to the adjustment being done on a "net" basis consistent with Board policy and practice.
A49: From each of the 2006-2010 CDM Final Report, and the 2011 to 2016 CDM Final Reports, issued by the OPA/IESO for the distributor, the distributor should input the "gross" and "net" results of the cumulative CDM savings for 2018 into cells C57 to C63 and D57 to D63. The model will calculate the cumulative savings for all programs from 2006 to 2016 and determine the "net" to "gross" factor "g".
A51: Net-to-Gross Conversion
A53: Is CDM adjustment being done on a "net" or "gross" basis? | F53: net
C55: "Gross" | D55: "Net" | E55: Difference | F55: "Net-to-Gross" Conversion Factor
A56: Persistence of Historical CDM programs to 2015 | C56: kWh | D56: kWh | E56: kWh | F56: ('g')
A57: 2006-2010 CDM programs | E57: =IF(ISBLANK(D57),"",C57-D57) -> 
A58: 2011 CDM program | E58: =IF(ISBLANK(D58),"",C58-D58) -> 
A59: 2012 CDM program
A60: 2013 CDM program
A61: 2014 CDM program
A62: 2015 CDM program
A63: 2016 CDM program
A64: 2006 to 2016 OPA CDM programs: Persistence to 2018. | C64: =SUM(C57:C63) -> 0 | D64: =SUM(D57:D63) -> 0 | E64: =C64-D64 -> 0 | F64: =IF(D64=0,0,IF(F53="net",0,E64/D64)) -> 0
A66: The default values below represent the factor used for how each year's CDM program is factored into the manual CDM adjustment. Distributors can choose alternative weights of "0", "0.5" or "1" from the drop-down menu for each cell, but must support its alternatives.
A68: These factors do not mean that CDM programs are excluded, but the assumption that impacts of previous year CDM programs are already implicitly reflected in the actual data for historical years that are used to derive the load forecast prior to any manual CDM adjustment for the 2018 test year.
A70: Weight Factor for Inclusion in CDM Adjustment to 2018 Load Forecast
B71: 2015 | C71: 2016 | D71: 2017 | E71: 2018 | F71: 2019 | G71: 2020
A72: Weight Factor for each year's CDM program impact on 2018 load forecast | B72: 0 | C72: 0 | D72: 1 | E72: 0.5 | F72: 0 | G72: 0 | H72: Distributor can select "0", "0.5", or "1" from drop-down list
A73: Default Value selection rationale. | B73: Full year impact of 2015 CDM is assumed to be reflected in the base forecast, as the full year persistence of 2015 CDM programs is in the 2016 historical actual data. No further impact is necessary for the manual adjustment to the load forecast. | C73: Default is 0.5, but one option is for full year impact of persistence of 2016 CDM programs on 2018 load forecast, but 50% impact in base forecast (first year impact of 2016 CDM programs on 2016 actuals, which is part of the data underlying the base load forecast). | D73: Full year impact of persistence of 2017 programs on 2018 load forecast. 2017 CDM program impacts are not in the base forecast. | E73: Only 50% of 2017 CDM programs are assumed to impact the 2018 load forecast based on the "half-year" rule. | F73: 2019 and 2020 are future years beyond the 2018 test year. No impacts of CDM programs beyond the 2018 test year are factored into the test year load forecast.
A75: 2015-2020 LRAMVA and 2018 CDM adjustment to Load Forecast
A77: One manual adjustment for CDM impacts to the 2018 load forecast is made. There is a different but related threshold amount that is used for the 2018 LRAMVA amount for Account 1568.
A79: The amount used for the CDM threshold of the LRAMVA is the kWh that will be used to determine the base amount for the LRAMVA balance for 2018, for assessing performance against the six-year target.
A81: If used to determine the manual CDM adjustment for the system purchased kWh, the proposed loss factor should correspond with the proposed total loss factor calculated in Appendix 2-R .
A83: The Manual Adjustment for the 2018 Load Forecast is the amount manually subtracted from the system-wide load forecast (either based on a purchased or billed basis) derived from the base forecast from historical data. If the distributor has developed their load forecast on a system purchased basis, then the manual adjustment should be on a system purchased basis, including the adjustment for losses. If the load forecast has been developed on a billed basis, either on a system basis or on a class-specific basis, the manual adjustment should be on a billed basis, excluding losses.
A85: The distributor should determine the allocation of the savings to all customer classes in a reasonable manner (e.g. taking into account what programs and what IESO-measured impacts were directed at specific customer classes), for both the LRAMVA and for the load forecast adjustment.
B87: 2015 | C87: 2016 | D87: 2017 | E87: 2018 | F87: 2019 | G87: 2020 | H87: Total for 2018
A89: Amount used for CDM threshold for LRAMVA (2018) | B89: 0 | C89: 0 | D89: =E36 -> 707000 | E89: =E37 -> 694000 | H89: =SUM(B89:G89) -> 1401000
A91: Manual Adjustment for 2018 Load Forecast (billed basis) | B91: =B89*(1+F64)*B72 -> 0 | C91: =C89*(1+F64)*C72 -> 0 | D91: =D89*(1+F64)*D72 -> 707000 | E91: =E89*(1+G64)*E72 -> 347000 | H91: =SUM(B91:G91) -> 1054000
A92: Manual Adjustment for 2018 LDC-only CDM programs (billed basis)
A93: Total Manual Forecast to Load Forecast | B93: =B91+B92 -> 0 | C93: =C91+C92 -> 0 | D93: =D91+D92 -> 707000 | E93: =E91+E92 -> 347000 | H93: =SUM(B93:G93) -> 1054000
A95: Proposed Loss Factor (TLF) | B95: 0.0895 | C95: Format: X.XX%
A96: Manual Adjustment for 2018 Load Forecast (system purchased basis) | B96: =B93*(1+$B95) -> 0 | C96: =C93*(1+$B95) -> 0 | D96: =D93*(1+$B95) -> 770276.5 | E96: =E93*(1+$B95) -> 378056.5 | H96: =SUM(B96:G96) -> 1148333
A98: Manual adjustment uses "gross" versus "net" (i.e. numbers multiplied by (1 + g). The Weight factor is also used to calculate the impact of each year's program on the CDM adjustment to the 2018 load forecast.

Sheet App.2-IA_Load_Forecast_Instrct
Q1: File Number: | R1: =EBNUMBER -> EB-2017-0073
Q2: Exhibit: | R2: 3
Q3: Tab:
Q4: Schedule:
Q5: Page:
Q7: Date:
B9: Appendix 2-IA
B10: Instructions on Customer, Connections, Load Forecast and Revenues Data and Analysis
B12: This sheet requires no inputs, but serves as a summary of the hiostorical and forecasted data to be provided with respect to:
B14: 1) | C14: Customers and connections
B15: 2) | C15: Consumption (kWh)
B16: 3) | C16: Demand (kW or kCA) for applicable demand-billed customer classes
B17: 4) | C17: Revenues
B19: The spreadsheet summarizes the data provided and the analyses (variance or year-over-year) that are required. Data are required to be provided on a customer class level. Consumption (kWh) must also be provided on a total distribution system level.
B21: Appendix 2-IB (formerly 2-IA) is the appendix spreadsheet that the distributor populates, and the spreadsheet is laid out for inputting the necessary data. The spreadsheet also calculates necessary statistics such as average consumption per customer/connection per year, and variances and % annual changes, as necessary.
B23: The distributor is required to provide suitable documentation in Exhibit 3 of its Application, in accordance with section 2.3.2 of Chaoter 2 of the Filing Requirements. This would include explanations for material variations or of trends in the data.
B25: The distributor is also required to input its test year customer/connection and load forecast in Sheet 10 - Load Forecast of the Revenue Requirement Work Form. This sheet should also be updated to reflect changes in the load forecast made through the stages of processing of the rates application.
B27: The applicant must demonstrate the historical accuracy of its load forecast approach for at least the past 5 years. Such analysis will cover both customer/connections and consumption (kWh) and demand (kW or kVA) by providing the following, as shown in the following table:
D29: Calendar Year | F29: Customers / Connections | I29: Consumption (kWh) (3) | M29: Demand (kW or kVA) | Q29: Revenues
D30: ="(for "&TestYear&" Cost of Service)" -> (for 2018 Cost of Service) | I30: Weather-actual | J30: Weather-normalized | M30: Weather-actual | N30: Weather-normalized | Q30: Weather-actual | R30: Weather-normalized
C31: Historical | D31: =D32-1 -> 2012 | F31: Actual | I31: Actual | J31: Actual (1) | M31: Actual | N31: Actual (1) | Q31: Actual
C32: Historical | D32: 2013 | F32: Actual | I32: Actual | J32: Actual (1) | M32: Actual | N32: Actual (1) | Q32: Actual
C33: Historical | D33: 2014 | F33: Actual | G33: Board-approved (2) | I33: Actual | J33: Actual (1) | K33: Board-approved (2) | M33: Actual | N33: Actual (1) | O33: Board-approved (2) | Q33: Actual
C34: Historical | D34: 2015 | F34: Actual | I34: Actual | J34: Actual (1) | M34: Actual | N34: Actual (1) | Q34: Actual
C35: Historical | D35: 2016 | F35: Actual | I35: Actual | J35: Actual (1) | M35: Actual | N35: Actual (1) | Q35: Actual
C36: Bridge Year (Forecast) | D36: 2017 | F36: Forecast | J36: Forecast | N36: Forecast | R36: Forecast
C37: Test Year (Forecast) | D37: =TestYear -> 2018 | F37: Forecast | J37: Forecast | N37: Forecast | R37: Forecast
B40: Notes:
B42: (1) | C42: “Weather-normalized actuals” are estimated by replacing the actual weather-related values (typically Heating Degree Days (HDD) and Cooling Degree Days (CDD)) by the “typical” or “weather-normalized” values. These “weather-normalized HDD and CDD values would be the same as used to estimate the Bridge Year and Test Year forecasts.
B43: (2) | C43: For 2017 Cost of Service rebasers, the typical situation is that 2013 would have been the most recent cost of service rebasing application. If the most recent rebasing application was for a rate year other than 2013, that year should be used. An applicant must provide historical information back to the greater of: a) at least five (5) historical actual years; or b) to its last cost of service application.
B44: (3) | C44: Consumption must be provided on a total distribution system basis as well as at a customer class level.
B45: (4) | C45: Revenues exclude commodity charges.

Sheet App.2-IB_Load_Forecast_Analysis
T1: File Number: | U1: =EBNUMBER -> EB-2017-0073
T2: Exhibit: | U2: 3
T3: Tab:
T4: Schedule:
T5: Page:
T7: Date: | U7: 2017-08-28
B9: Appendix 2-IB
B10: Customer, Connections, Load Forecast and Revenues Data and Analysis
B12: This sheet requires no inputs, but serves as a summary of the hiostorical and forecasted data to be provided with respect to:
B14: 1) | C14: Customers and connections
B15: 2) | C15: Consumption (kWh)
B16: 3) | C16: Demand (kW or kCA) for applicable demand-billed customer classes
B17: 4) | C17: Revenues
B19: The spreadsheet summarizes the data provided and the analyses (variance or year-over-year) that are required. Data are required to be provided on a customer class level. Consumption (kWh) must also be provided on a total distribution system level.
B21: Appendix 2-IB (formerly 2-IA) is the appendix spreadsheet that the distributor populates, and the spreadsheet is laid out for inputting the necessary data. The spreadsheet also calculates necessary statistics such as average consumption per customer/connection per year, and variances and % annual changes, as necessary.
B23: The distributor is required to provide suitable documentation in Exhibit 3 of its Application, in accordance with section 2.3.2 of Chaoter 2 of the Filing Requirements. This would include explanations for material variations or of trends in the data.
B25: The distributor is also required to input its test year customer/connection and load forecast in Sheet 10 - Load Forecast of the Revenue Requirement Work Form. This sheet should also be updated to reflect changes in the load forecast made through the stages of processing of the rates application.
B27: The applicant must demonstrate the historical accuracy of its load forecast approach for at least the past 5 years. Such analysis will cover both customer/connections and consumption (kWh) and demand (kW or kVA) by providing the following, as shown in the following table:
B29: This sheet is to be filled in accordance with the instructions documented in section 2.3.2 of Chapter 2 of the Filing Requirements for Distribution Rate Applications, in terms of one set of tables per customer class.
B31: Color coding for Cells: | F31: Data input | K31: Drop-down List
F33: No data entry required | K33: Blank or calculated value
B35: Distribution System (Total)
D37: Calendar Year | K37: Consumption (kWh) (3)
D38: =CONCATENATE("(for ",TestYear," Cost of Service") -> (for 2018 Cost of Service | L38: Actual (Weather actual) | M38: Weather-normalized | O38: Weather-normalized
C39: Historical | D39: =D40-1 -> 2012 | K39: Actual | L39: 71922866 | N39: =IF(D39=RebaseYear,"Board-approved","") -> 
C40: Historical | D40: 2013 | K40: Actual | L40: 83168941 | N40: Board-approved | O40: 72077403.85
C41: Historical | D41: 2014 | K41: Actual | L41: 85548133
C42: Historical | D42: 2015 | K42: Actual | L42: 79338527
C43: Historical | D43: 2016 | K43: Actual | L43: 70815698
C44: Bridge Year | D44: 2017 | K44: Forecast | M44: 72764601
C45: Test Year | D45: =TestYear -> 2018 | K45: Forecast | M45: 72064101
O46: =SUM(O39:O44) -> 72077403.85
C47: Variance Analysis | K47: Year | L47: Year-over-year | O47: Versus Board-approved
D48: =D39 -> 2012 | K48: =D48 -> 2012
D49: 2013 | K49: =D49 -> 2013 | L49: =IF(L39=0,"",L40/L39-1) -> 0.1563629987
D50: 2014 | K50: 2014 | L50: 0.02860673674
D51: 2015 | K51: 2015 | L51: -0.07258610775
D52: 2016 | K52: 2016 | L52: -0.107423585
D53: 2017 | K53: 2017 | L53: =IF(K44="Forecast","",IF(L43=0,"",L44/L43-1)) ->  | M53: =IF(M43=0,"",M44/M43-1) -> 
D54: 2018 | K54: 2018 | L54: =IF(K45="Forecast","",IF(L44=0,"",L45/L44-1)) ->  | M54: =IF(M44=0,"",M45/M44-1) -> -0.009626933844 | O54: =IF(O46=0,"",M45/O46-1) -> -0.000184563364
D55: Geometric Mean | K55: Geometric Mean | L55: =IF(L39=0,"",(L43/L39)^(1/($D43-$D39-1))-1) -> -0.005157832438 | M55: =IF(M39=0,"",(M45/M39)^(1/($D45-$D39-1))-1) ->  | O55: =IF(O46=0,"",(M45/O46)^(1/(TestYear-RebaseYear-1))-1) -> -4.614403481e-05
B57: Customer Class Analysis (one for each Customer Class, excluding MicroFIT and Standby)
B59: 1 | C59: Customer Class: | D59: Residential | H59: Is the customer class billed on consumption (kWh) or demand (kW or kVA)? | N59: kWh
D61: Calendar Year | F61: Customers | K61: Consumption (kWh) (3) | Q61: =CONCATENATE("Consumption (kWh) per ",LEFT(F61,LEN(F61)-1)) -> Consumption (kWh) per Customer
D62: =CONCATENATE("(for ",TestYear," Cost of Service") -> (for 2018 Cost of Service | L62: Actual (Weather actual) | M62: Weather-normalized | O62: Weather-normalized | R62: =L62 -> Actual (Weather actual) | S62: =M62 -> Weather-normalized | U62: =O62 -> Weather-normalized
C63: Historical | D63: =D64-1 -> 2012 | F63: =K39 -> Actual | G63: 2344 | H63: =IF(D63=RebaseYear,"Board-approved","") ->  | K63: =F63 -> Actual | L63: 32285778 | N63: =H63 ->  | Q63: =K63 -> Actual | R63: =IF(G63=0,"",L63/G63) -> 13773.79608 | S63: =IF(G63=0,"",M63/G63) -> 0 | T63: =N63 ->  | U63: =IF(T63="","",IF(I63=0,"",O63/I63)) -> 
C64: Historical | D64: 2013 | F64: =K40 -> Actual | G64: 2346 | H64: Board-approved | I64: 2323 | K64: =F64 -> Actual | L64: 36371059 | N64: =H64 -> Board-approved | O64: 35413349 | Q64: =K64 -> Actual | R64: =IF(G64=0,"",L64/G64) -> 15503.43521 | S64: =IF(G64=0,"",M64/G64) -> 0 | T64: =N64 -> Board-approved | U64: =IF(T64="","",IF(I64=0,"",O64/I64)) -> 15244.66164
C65: Historical | D65: 2014 | F65: Actual | G65: 2356 | K65: Actual | L65: 37207390 | Q65: Actual | R65: 15792.61036 | S65: 0
C66: Historical | D66: 2015 | F66: Actual | G66: 2357 | K66: Actual | L66: 33751334 | Q66: Actual | R66: 14319.61561 | S66: 0
C67: Historical | D67: 2016 | F67: Actual | G67: 2374 | K67: Actual | L67: 32668225 | Q67: Actual | R67: 13760.83614 | S67: 0
C68: Bridge Year | D68: 2017 | F68: Forecast | G68: 2380 | K68: Forecast | M68: 33524773 | Q68: Forecast | R68: 0 | S68: 14086.03908
C69: Test Year | D69: =TestYear -> 2018 | F69: Forecast | G69: 2386 | K69: Forecast | M69: 32918746 | Q69: Forecast | R69: 0 | S69: 13796.62448
I70: =SUM(I63:I68) -> 2323 | O70: =SUM(O63:O68) -> 35413349 | U70: =SUM(U63:U68) -> 15244.66164
C71: Variance Analysis | D71: Year | G71: Year-over-year | I71: Test Year Versus Board-approved | K71: Year | L71: Year-over-year | O71: =I71 -> Test Year Versus Board-approved | Q71: Year | R71: Year-over-year | U71: =O71 -> Test Year Versus Board-approved
D72: =D63 -> 2012 | K72: =D72 -> 2012 | Q72: =K72 -> 2012
D73: 2013 | G73: =IF(G63=0,"",G64/G63-1) -> 0.0008532423208 | K73: =D73 -> 2013 | L73: =IF(L63=0,"",L64/L63-1) -> 0.1265350025 | Q73: =K73 -> 2013 | R73: =IF(R63="","",IF(R63=0,"",R64/R63-1)) -> 0.1255746146 | S73: =IF(S63="","",IF(S63=0,"",S64/S63-1)) -> 
D74: 2014 | G74: 0.004262574595 | K74: 2014 | L74: 0.02299440882 | Q74: 2014 | R74: =IF(R64="","",IF(R64=0,"",R65/R64-1)) -> 0.01865232729
D75: 2015 | G75: 0.0004244482173 | K75: 2015 | L75: -0.09288627877 | Q75: 2015 | R75: -0.09327113822
D76: 2016 | G76: 0.007212558337 | K76: 2016 | L76: -0.0320908501 | Q76: 2016 | R76: -0.03902196027
D77: 2017 | G77: 0.002527379949 | K77: 2017 | L77: =IF(K68="Forecast","",IF(L67=0,"",L68/L67-1)) ->  | M77: =IF(M67=0,"",M68/M67-1) ->  | Q77: 2017 | R77: =IF(Q68="Forecast","",IF(R67=0,"",R68/R67-1)) ->  | S77: =IF(S67="","",IF(S67=0,"",S68/S67-1)) -> 
D78: 2018 | G78: 0.002521008403 | I78: =IF(I70=0,"",G69/I70-1) -> 0.02712010331 | K78: 2018 | L78: =IF(K69="Forecast","",IF(L68=0,"",L69/L68-1)) ->  | M78: =IF(M68=0,"",M69/M68-1) -> -0.01807699041 | O78: =IF(O70=0,"",M69/O70-1) -> -0.07044244813 | Q78: 2018 | R78: =IF(Q69="Forecast","",IF(R68=0,"",R69/R68-1)) ->  | S78: =IF(S68="","",IF(S68=0,"",S69/S68-1)) -> -0.02054620167 | U78: =IF(U70=0,"",S69/U70-1) -> -0.09498650755
D79: Geometric Mean | G79: =IF(G63=0,"",(G69/G63)^(1/($D69-$D63-1))-1) -> 0.00355820583 | I79: =IF(I70=0,"",(G69/I70)^(1/(TestYear-RebaseYear-1))-1) -> 0.006712143612 | K79: Geometric Mean | L79: =IF(L63=0,"",(L67/L63)^(1/($D67-$D63-1))-1) -> 0.003933070729 | M79: =IF(M63=0,"",(M69/M63)^(1/($D69-$D63-1))-1) ->  | O79: =IF(O70=0,"",(M69/O70)^(1/(TestYear-RebaseYear-1))-1) -> -0.01809590583 | Q79: Geometric Mean | R79: =IF(R63="","",IF(R63=0,"",(R67/R63)^(1/($D67-$D63-1))-1)) -> -0.0003137358389 | S79: =IF(S63="","",IF(S63=0,"",(S69/S63)^(1/($D69-$D63-1))-1)) ->  | U79: =IF(U70=0,"",(S69/U70)^(1/(TestYear-RebaseYear-1))-1) -> -0.02464264448
D82: Calendar Year | F82: Revenues | K82: =IF(ISBLANK(N59),"",CONCATENATE("Demand (",N59,")")) -> Demand (kWh) | Q82: =CONCATENATE("Demand (",N59,") per ",LEFT(F61,LEN(F61)-1)) -> Demand (kWh) per Customer
D83: =CONCATENATE("(for ",TestYear," Cost of Service") -> (for 2018 Cost of Service | L83: Actual (Weather actual) | M83: Weather-normalized | O83: =M83 -> Weather-normalized | R83: =L83 -> Actual (Weather actual) | S83: =M83 -> Weather-normalized | U83: =O83 -> Weather-normalized
C84: Historical | D84: =D85-1 -> 2012 | F84: =F63 -> Actual | G84: 1245709 | H84: =IF(D84=RebaseYear,"Board-approved","") ->  | K84: =K63 -> Actual | N84: =N63 ->  | Q84: =K84 -> Actual | R84: =IF(G84=0,"",L84/G84) -> 0 | S84: =IF(G84=0,"",M84/G84) -> 0 | T84: =N84 ->  | U84: =IF(T84="","",IF(I84=0,"",O84/I84)) -> 
C85: Historical | D85: 2013 | F85: Actual | G85: 1163086 | H85: Board-approved | I85: 1131550 | K85: Actual | N85: Board-approved | Q85: =K85 -> Actual | R85: =IF(G85=0,"",L85/G85) -> 0 | S85: =IF(G85=0,"",M85/G85) -> 0 | T85: =N85 -> Board-approved | U85: =IF(T85="","",IF(I85=0,"",O85/I85)) -> 0
C86: Historical | D86: 2014 | F86: Actual | G86: 1209006 | K86: Actual | Q86: Actual | R86: 0 | S86: 0
C87: Historical | D87: 2015 | F87: Actual | G87: 1138938 | K87: Actual | Q87: Actual | R87: 0 | S87: 0
C88: Historical | D88: 2016 | F88: Actual | G88: 1156021 | K88: Actual | Q88: Actual | R88: 0 | S88: 0
C89: Bridge Year (Forecast) | D89: 2017 | F89: Forecast | G89: 1207928 | K89: Forecast | Q89: Forecast | R89: 0 | S89: 0
C90: Test Year (Forecast) | D90: =TestYear -> 2018 | F90: Forecast | G90: 1346837 | K90: Forecast | Q90: Forecast | R90: 0 | S90: 0
I91: =SUM(I84:I89) -> 1131550 | O91: =SUM(O84:O89) -> 0 | U91: =SUM(U84:U89) -> 0
C92: Variance Analysis | D92: Year | G92: Year-over-year | I92: =I71 -> Test Year Versus Board-approved | K92: Year | L92: Year-over-year | O92: =I92 -> Test Year Versus Board-approved | Q92: Year | R92: Year-over-year | U92: =O92 -> Test Year Versus Board-approved
D93: =D84 -> 2012 | K93: =D93 -> 2012 | Q93: =K93 -> 2012
D94: 2013 | G94: =IF(G84=0,"",G85/G84-1) -> -0.06632608418 | K94: =D94 -> 2013 | L94: =IF(L84=0,"",L85/L84-1) ->  | Q94: =K94 -> 2013 | R94: =IF(R84="","",IF(R84=0,"",R85/R84-1)) ->  | S94: =IF(S84="","",IF(S84=0,"",S85/S84-1)) -> 
D95: 2014 | G95: 0.03948117336 | K95: 2014 | Q95: 2014 | R95: =IF(R85="","",IF(R85=0,"",R86/R85-1)) -> 
D96: 2015 | G96: -0.05795504737 | K96: 2015 | Q96: 2015
D97: 2016 | G97: 0.01499906053 | K97: 2016 | Q97: 2016
D98: 2017 | G98: 0.04490143345 | K98: 2017 | L98: =IF(K89="Forecast","",IF(L88=0,"",L89/L88-1)) ->  | M98: =IF(M88=0,"",M89/M88-1) ->  | Q98: 2017 | R98: =IF(Q89="Forecast","",IF(R88=0,"",R89/R88-1)) ->  | S98: =IF(S88="","",IF(S88=0,"",S89/S88-1)) -> 
D99: 2018 | G99: 0.1149977482 | I99: =IF(I91=0,"",G90/I91-1) -> 0.190258495 | K99: 2018 | L99: =IF(K90="Forecast","",IF(L89=0,"",L90/L89-1)) ->  | M99: =IF(M89=0,"",M90/M89-1) ->  | O99: =IF(O91=0,"",M90/O91-1) ->  | Q99: 2018 | R99: =IF(Q90="Forecast","",IF(R89=0,"",R90/R89-1)) ->  | S99: =IF(S89="","",IF(S89=0,"",S90/S89-1)) ->  | U99: =IF(U91=0,"",S90/U91-1) -> 
D100: Geometric Mean | G100: =IF(G84=0,"",(G90/G84)^(1/($D90-$D84-1))-1) -> 0.01573329212 | I100: =IF(I91=0,"",(G90/I91)^(1/(TestYear-RebaseYear-1))-1) -> 0.04450451699 | K100: Geometric Mean | L100: =IF(L84=0,"",(L88/L84)^(1/($D88-$D84-1))-1) ->  | M100: =IF(M84=0,"",(M90/M84)^(1/($D90-$D84-1))-1) ->  | O100: =IF(O91=0,"",(M90/O91)^(1/(TestYear-RebaseYear-1))-1) ->  | Q100: Geometric Mean | R100: =IF(R84="","",IF(R84=0,"",(R88/R84)^(1/($D88-$D84-1))-1)) ->  | S100: =IF(S84="","",IF(S84=0,"",(S90/S84)^(1/($D90-$D84-1))-1)) ->  | U100: =IF(U91=0,"",(S90/U91)^(1/(TestYear-RebaseYear-1))-1) -> 
B102: 2 | C102: Customer Class: | D102: GS < 50 kW | H102: Is the customer class billed on consumption (kWh) or demand (kW or kVA)? | N102: kWh
D104: Calendar Year | F104: Customers | K104: Consumption (kWh) (3) | Q104: =CONCATENATE("Consumption (kWh) per ",LEFT(F104,LEN(F104)-1)) -> Consumption (kWh) per Customer
D105: =CONCATENATE("(for ",TestYear," Cost of Service") -> (for 2018 Cost of Service | L105: Actual (Weather actual) | M105: Weather-normalized | O105: Weather-normalized | R105: =L105 -> Actual (Weather actual) | S105: =M105 -> Weather-normalized | U105: =O105 -> Weather-normalized
C106: Historical | D106: =D107-1 -> 2012 | F106: =F63 -> Actual | G106: 395 | H106: =IF(D106=RebaseYear,"Board-approved","") ->  | K106: =F106 -> Actual | L106: 11883435 | N106: =H106 ->  | Q106: =K106 -> Actual | R106: =IF(G106=0,"",L106/G106) -> 30084.64557 | S106: =IF(G106=0,"",M106/G106) -> 0 | T106: =N106 ->  | U106: =IF(T106="","",IF(I106=0,"",O106/I106)) -> 
C107: Historical | D107: 2013 | F107: =F64 -> Actual | G107: 400 | H107: Board-approved | I107: 386 | K107: =F107 -> Actual | L107: 12926388 | N107: =H107 -> Board-approved | O107: 13104863 | Q107: =K107 -> Actual | R107: =IF(G107=0,"",L107/G107) -> 32315.97 | S107: =IF(G107=0,"",M107/G107) -> 0 | T107: =N107 -> Board-approved | U107: =IF(T107="","",IF(I107=0,"",O107/I107)) -> 33950.42228
C108: Historical | D108: 2014 | F108: Actual | G108: 404 | K108: Actual | L108: 13500466 | Q108: Actual | R108: 33416.99505 | S108: 0
C109: Historical | D109: 2015 | F109: Actual | G109: 404 | K109: Actual | L109: 12579056 | Q109: Actual | R109: 31136.27723 | S109: 0
C110: Historical | D110: 2016 | F110: Actual | G110: 402 | K110: Actual | L110: 11845271 | Q110: Actual | R110: 29465.84826 | S110: 0
C111: Bridge Year | D111: 2017 | F111: Forecast | G111: 402 | K111: Forecast | M111: 12143659 | Q111: Forecast | R111: 0 | S111: 30208.10697
C112: Test Year | D112: =TestYear -> 2018 | F112: Forecast | G112: 402 | K112: Forecast | M112: 11931508 | Q112: Forecast | R112: 0 | S112: 29680.36816
I113: =SUM(I106:I111) -> 386 | O113: =SUM(O106:O111) -> 13104863 | U113: =SUM(U106:U111) -> 33950.42228
C114: Variance Analysis | D114: Year | G114: Year-over-year | I114: Test Year Versus Board-approved | K114: Year | L114: Year-over-year | O114: =I114 -> Test Year Versus Board-approved | Q114: Year | R114: Year-over-year | U114: =O114 -> Test Year Versus Board-approved
D115: =D106 -> 2012 | K115: =D115 -> 2012 | Q115: =K115 -> 2012
D116: 2013 | G116: =IF(G106=0,"",G107/G106-1) -> 0.01265822785 | K116: =D116 -> 2013 | L116: =IF(L106=0,"",L107/L106-1) -> 0.08776527999 | Q116: =K116 -> 2013 | R116: =IF(R106="","",IF(R106=0,"",R107/R106-1)) -> 0.07416821399
D117: 2014 | G117: 0.01 | K117: 2014 | L117: 0.04441132357 | Q117: 2014 | R117: 0.03407061739
D118: 2015 | G118: 0 | K118: 2015 | L118: -0.0682502367 | Q118: 2015 | R118: -0.0682502367
D119: 2016 | G119: -0.00495049505 | K119: 2016 | L119: -0.05833386861 | Q119: 2016 | R119: =IF(R109="","",IF(R109=0,"",R110/R109-1)) -> -0.05364896249
D120: 2017 | G120: 0 | K120: 2017 | L120: =IF(K111="Forecast","",IF(L110=0,"",L111/L110-1)) ->  | M120: =IF(M110=0,"",M111/M110-1) ->  | Q120: 2017 | R120: =IF(Q111="Forecast","",IF(R110=0,"",R111/R110-1)) -> 
D121: 2018 | G121: 0 | I121: =IF(I113=0,"",G112/I113-1) -> 0.0414507772 | K121: 2018 | L121: =IF(K112="Forecast","",IF(L111=0,"",L112/L111-1)) ->  | M121: =IF(M111=0,"",M112/M111-1) -> -0.01747010518 | O121: =IF(O113=0,"",M112/O113-1) -> -0.08953584635 | Q121: 2018 | R121: =IF(Q112="Forecast","",IF(R111=0,"",R112/R111-1)) ->  | S121: -0.01747010518 | U121: =IF(U113=0,"",S112/U113-1) -> -0.1257732256
D122: Geometric Mean | G122: =IF(G106=0,"",(G112/G106)^(1/($D112-$D106-1))-1) -> 0.003519443492 | I122: =IF(I113=0,"",(G112/I113)^(1/(TestYear-RebaseYear-1))-1) -> 0.01020540331 | K122: Geometric Mean | L122: =IF(L106=0,"",(L110/L106)^(1/($D110-$D106-1))-1) -> -0.001071657816 | M122: =IF(M106=0,"",(M112/M106)^(1/($D112-$D106-1))-1) ->  | O122: =IF(O113=0,"",(M112/O113)^(1/(TestYear-RebaseYear-1))-1) -> -0.0231773687 | Q122: Geometric Mean | R122: =IF(R106="","",IF(R106=0,"",(R110/R106)^(1/($D110-$D106-1))-1)) -> -0.006903732676 | S122: =IF(S106="","",IF(S106=0,"",(S112/S106)^(1/($D112-$D106-1))-1)) ->  | U122: =IF(U113=0,"",(S112/U113)^(1/(TestYear-RebaseYear-1))-1) -> -0.03304552906
D125: Calendar Year | F125: Revenues | K125: =IF(ISBLANK(N102),"",CONCATENATE("Demand (",N102,")")) -> Demand (kWh) | Q125: =CONCATENATE("Demand (",N102,") per ",LEFT(F104,LEN(F104)-1)) -> Demand (kWh) per Customer
D126: =CONCATENATE("(for ",TestYear," Cost of Service") -> (for 2018 Cost of Service | L126: Actual (Weather actual) | M126: Weather-normalized | O126: =M126 -> Weather-normalized | R126: =L126 -> Actual (Weather actual) | S126: =M126 -> Weather-normalized | U126: =O126 -> Weather-normalized
C127: Historical | D127: =D128-1 -> 2012 | F127: =F106 -> Actual | G127: 337495.86 | H127: =IF(D127=RebaseYear,"Board-approved","") ->  | K127: =K106 -> Actual | N127: =N106 ->  | Q127: =K127 -> Actual | R127: =IF(G127=0,"",L127/G127) -> 0 | S127: =IF(G127=0,"",M127/G127) -> 0 | T127: =N127 ->  | U127: =IF(T127="","",IF(I127=0,"",O127/I127)) -> 
C128: Historical | D128: 2013 | F128: Actual | G128: 325333 | H128: Board-approved | I128: 292065 | K128: Actual | N128: Board-approved | Q128: =K128 -> Actual | R128: =IF(G128=0,"",L128/G128) -> 0 | S128: =IF(G128=0,"",M128/G128) -> 0 | T128: =N128 -> Board-approved | U128: =IF(T128="","",IF(I128=0,"",O128/I128)) -> 0
C129: Historical | D129: 2014 | F129: Actual | G129: 311466 | K129: Actual | Q129: Actual | R129: 0 | S129: 0
C130: Historical | D130: 2015 | F130: Actual | G130: 296931 | K130: Actual | Q130: Actual | R130: 0 | S130: 0
C131: Historical | D131: 2016 | F131: Actual | G131: 297450 | K131: Actual | Q131: Actual | R131: 0 | S131: 0
C132: Bridge Year (Forecast) | D132: 2017 | F132: Forecast | G132: 308149 | K132: Forecast | Q132: Forecast | R132: 0 | S132: 0
C133: Test Year (Forecast) | D133: =TestYear -> 2018 | F133: Forecast | G133: 343565 | K133: Forecast | Q133: Forecast | R133: 0 | S133: 0
I134: =SUM(I127:I132) -> 292065 | O134: =SUM(O127:O132) -> 0 | U134: =SUM(U127:U132) -> 0
C135: Variance Analysis | D135: Year | G135: Year-over-year | I135: =I114 -> Test Year Versus Board-approved | K135: Year | L135: Year-over-year | O135: =I135 -> Test Year Versus Board-approved | Q135: Year | R135: Year-over-year | U135: =O135 -> Test Year Versus Board-approved
D136: =D127 -> 2012 | K136: =D136 -> 2012 | Q136: =K136 -> 2012
D137: 2013 | G137: =IF(G127=0,"",G128/G127-1) -> -0.03603854578 | K137: =D137 -> 2013 | L137: =IF(L127=0,"",L128/L127-1) ->  | Q137: =K137 -> 2013 | R137: =IF(R127="","",IF(R127=0,"",R128/R127-1)) -> 
D138: 2014 | G138: -0.04262401908 | K138: 2014 | Q138: 2014
D139: 2015 | G139: -0.04666640982 | K139: 2015 | Q139: 2015
D140: 2016 | G140: 0.001747880821 | K140: 2016 | L140: =IF(L130=0,"",L131/L130-1) ->  | Q140: 2016 | R140: =IF(R130="","",IF(R130=0,"",R131/R130-1)) -> 
D141: 2017 | G141: 0.03596907043 | K141: 2017 | L141: =IF(K132="Forecast","",IF(L131=0,"",L132/L131-1)) ->  | Q141: 2017 | R141: =IF(Q132="Forecast","",IF(R131=0,"",R132/R131-1)) -> 
D142: 2018 | G142: 0.1149314131 | I142: =IF(I134=0,"",G133/I134-1) -> 0.1763306113 | K142: 2018 | L142: =IF(K133="Forecast","",IF(L132=0,"",L133/L132-1)) ->  | O142: =IF(O134=0,"",M133/O134-1) ->  | Q142: 2018 | R142: =IF(Q133="Forecast","",IF(R132=0,"",R133/R132-1)) ->  | U142: =IF(U134=0,"",S133/U134-1) -> 
D143: Geometric Mean | G143: =IF(G127=0,"",(G133/G127)^(1/($D133-$D127-1))-1) -> 0.003570976542 | I143: =IF(I134=0,"",(G133/I134)^(1/(TestYear-RebaseYear-1))-1) -> 0.04143543295 | K143: Geometric Mean | L143: =IF(L127=0,"",(L131/L127)^(1/($D131-$D127-1))-1) ->  | M143: =IF(M127=0,"",(M133/M127)^(1/($D133-$D127-1))-1) ->  | O143: =IF(O134=0,"",(M133/O134)^(1/(TestYear-RebaseYear-1))-1) ->  | Q143: Geometric Mean | R143: =IF(R127="","",IF(R127=0,"",(R131/R127)^(1/($D131-$D127-1))-1)) ->  | S143: =IF(S127="","",IF(S127=0,"",(S133/S127)^(1/($D133-$D127-1))-1)) ->  | U143: =IF(U134=0,"",(S133/U134)^(1/(TestYear-RebaseYear-1))-1) -> 
B145: 3 | C145: Customer Class: | D145: GS > 50 Kw to 4,999 kW | H145: Is the customer class billed on consumption (kWh) or demand (kW or kVA)? | N145: kW
D147: Calendar Year | F147: Customers | K147: Consumption (kWh) (3) | Q147: =CONCATENATE("Consumption (kWh) per ",LEFT(F147,LEN(F147)-1)) -> Consumption (kWh) per Customer
D148: =CONCATENATE("(for ",TestYear," Cost of Service") -> (for 2018 Cost of Service | L148: Actual (Weather actual) | M148: Weather-normalized | O148: Weather-normalized | R148: =L148 -> Actual (Weather actual) | S148: =M148 -> Weather-normalized | U148: =O148 -> Weather-normalized
C149: Historical | D149: =D150-1 -> 2012 | F149: =F106 -> Actual | G149: 52 | H149: =IF(D149=RebaseYear,"Board-approved","") ->  | K149: =F149 -> Actual | L149: 27280733 | N149: =H149 ->  | Q149: =K149 -> Actual | R149: =IF(G149=0,"",L149/G149) -> 524629.4808 | S149: =IF(G149=0,"",M149/G149) -> 0 | T149: =N149 ->  | U149: =IF(T149="","",IF(I149=0,"",O149/I149)) -> 
C150: Historical | D150: 2013 | F150: =F107 -> Actual | G150: 53 | H150: Board-approved | I150: 51 | K150: =F150 -> Actual | L150: 33352062 | N150: =H150 -> Board-approved | O150: 230461812 | Q150: =K150 -> Actual | R150: =IF(G150=0,"",L150/G150) -> 629284.1887 | S150: =IF(G150=0,"",M150/G150) -> 0 | T150: =N150 -> Board-approved | U150: =IF(T150="","",IF(I150=0,"",O150/I150)) -> 4518859.059
C151: Historical | D151: 2014 | F151: Actual | G151: 52 | K151: Actual | L151: 34318921 | Q151: Actual | R151: 659979.25 | S151: 0
C152: Historical | D152: 2015 | F152: Actual | G152: 51 | K152: Actual | L152: 32657665 | Q152: Actual | R152: 640346.3725 | S152: 0
C153: Historical | D153: 2016 | F153: Actual | G153: 51 | K153: Actual | L153: 26151605 | Q153: Actual | R153: 512776.5686 | S153: 0
C154: Bridge Year | D154: 2017 | F154: Forecast | G154: 52 | K154: Forecast | M154: 26945572 | Q154: Forecast | R154: 0 | S154: 518184.0769
C155: Test Year | D155: =TestYear -> 2018 | F155: Forecast | G155: 53 | K155: Forecast | M155: 27063250 | Q155: Forecast | R155: 0 | S155: 510627.3585
I156: =SUM(I149:I154) -> 51 | O156: =SUM(O149:O154) -> 230461812 | U156: =SUM(U149:U154) -> 4518859.059
C157: Variance Analysis | D157: Year | G157: Year-over-year | I157: Test Year Versus Board-approved | K157: Year | L157: Year-over-year | O157: =I157 -> Test Year Versus Board-approved | Q157: Year | R157: Year-over-year | U157: =O157 -> Test Year Versus Board-approved
D158: =D149 -> 2012 | K158: =D158 -> 2012 | Q158: =K158 -> 2012
D159: 2013 | G159: =IF(G149=0,"",G150/G149-1) -> 0.01923076923 | K159: =D159 -> 2013 | L159: =IF(L149=0,"",L150/L149-1) -> 0.2225500686 | Q159: =K159 -> 2013 | R159: =IF(R149="","",IF(R149=0,"",R150/R149-1)) -> 0.1994830862
D160: 2014 | G160: -0.01886792453 | K160: 2014 | L160: 0.02898948197 | Q160: 2014 | R160: 0.04877774124
D161: 2015 | G161: -0.01923076923 | K161: 2015 | L161: -0.04840641697 | Q161: 2015 | R161: -0.02974771927
D162: 2016 | G162: 0 | K162: 2016 | L162: -0.1992199993 | Q162: 2016 | R162: -0.1992199993
D163: 2017 | G163: 0.01960784314 | K163: 2017 | L163: =IF(K154="Forecast","",IF(L153=0,"",L154/L153-1)) ->  | M163: =IF(M153=0,"",M154/M153-1) ->  | Q163: 2017 | R163: =IF(Q154="Forecast","",IF(R153=0,"",R154/R153-1)) ->  | S163: =IF(S153="","",IF(S153=0,"",S154/S153-1)) -> 
D164: 2018 | G164: 0.01923076923 | I164: =IF(I156=0,"",G155/I156-1) -> 0.03921568627 | K164: 2018 | L164: =IF(K155="Forecast","",IF(L154=0,"",L155/L154-1)) ->  | M164: =IF(M154=0,"",M155/M154-1) -> 0.00436724817 | O164: =IF(O156=0,"",M155/O156-1) -> -0.8825694818 | Q164: 2018 | R164: =IF(Q155="Forecast","",IF(R154=0,"",R155/R154-1)) ->  | S164: =IF(S154="","",IF(S154=0,"",S155/S154-1)) -> -0.01458307727 | U164: =IF(U156=0,"",S155/U156-1) -> -0.8870008221
D165: Geometric Mean | G165: =IF(G149=0,"",(G155/G149)^(1/($D155-$D149-1))-1) -> 0.003816904893 | I165: =IF(I156=0,"",(G155/I156)^(1/(TestYear-RebaseYear-1))-1) -> 0.009662957996 | K165: Geometric Mean | L165: =IF(L149=0,"",(L153/L149)^(1/($D153-$D149-1))-1) -> -0.01399124549 | M165: =IF(M149=0,"",(M155/M149)^(1/($D155-$D149-1))-1) ->  | O165: =IF(O156=0,"",(M155/O156)^(1/(TestYear-RebaseYear-1))-1) -> -0.4146100741 | Q165: Geometric Mean | R165: =IF(R149="","",IF(R149=0,"",(R153/R149)^(1/($D153-$D149-1))-1)) -> -0.007588411831 | S165: =IF(S149="","",IF(S149=0,"",(S155/S149)^(1/($D155-$D149-1))-1)) ->  | U165: =IF(U156=0,"",(S155/U156)^(1/(TestYear-RebaseYear-1))-1) -> -0.420212536
D168: Calendar Year | F168: Revenues | K168: =IF(ISBLANK(N145),"",CONCATENATE("Demand (",N145,")")) -> Demand (kW) | Q168: =CONCATENATE("Demand (",N145,") per ",LEFT(F147,LEN(F147)-1)) -> Demand (kW) per Customer
D169: =CONCATENATE("(for ",TestYear," Cost of Service") -> (for 2018 Cost of Service | L169: Actual (Weather actual) | M169: Weather-normalized | O169: =M169 -> Weather-normalized | R169: =L169 -> Actual (Weather actual) | S169: =M169 -> Weather-normalized | U169: =O169 -> Weather-normalized
C170: Historical | D170: =D171-1 -> 2012 | F170: =F149 -> Actual | G170: 324328 | H170: =IF(D170=RebaseYear,"Board-approved","") ->  | K170: =K149 -> Actual | L170: 66215 | N170: =N149 ->  | Q170: =K170 -> Actual | R170: =IF(G170=0,"",L170/G170) -> 0.2041606028 | S170: =IF(G170=0,"",M170/G170) -> 0 | T170: =N170 ->  | U170: =IF(T170="","",IF(I170=0,"",O170/I170)) -> 
C171: Historical | D171: 2013 | F171: Actual | G171: 339849 | H171: Board-approved | I171: 299949 | K171: Actual | L171: 92251 | N171: Board-approved | O171: 58143 | Q171: =K171 -> Actual | R171: =IF(G171=0,"",L171/G171) -> 0.271447025 | S171: =IF(G171=0,"",M171/G171) -> 0 | T171: =N171 -> Board-approved | U171: =IF(T171="","",IF(I171=0,"",O171/I171)) -> 0.1938429533
C172: Historical | D172: 2014 | F172: Actual | G172: 345504 | K172: Actual | L172: 99288 | Q172: Actual | R172: 0.2873714921 | S172: 0
C173: Historical | D173: 2015 | F173: Actual | G173: 338561 | K173: Actual | L173: 94899 | Q173: Actual | R173: 0.2803010388 | S173: 0
C174: Historical | D174: 2016 | F174: Actual | G174: 311730 | K174: Actual | L174: 66975 | Q174: Actual | R174: 0.2148493889 | S174: 0
C175: Bridge Year (Forecast) | D175: 2017 | F175: Forecast | G175: 336581 | K175: Forecast | M175: 71869 | Q175: Forecast | R175: 0 | S175: 0.2135266102
C176: Test Year (Forecast) | D176: =TestYear -> 2018 | F176: Forecast | G176: 335105 | K176: Forecast | M176: 72183 | Q176: Forecast | R176: 0 | S176: 0.2154041271
I177: =SUM(I170:I175) -> 299949 | O177: =SUM(O170:O175) -> 58143 | U177: =SUM(U170:U175) -> 0.1938429533
C178: Variance Analysis | D178: Year | G178: Year-over-year | I178: =I157 -> Test Year Versus Board-approved | K178: Year | L178: Year-over-year | O178: =I178 -> Test Year Versus Board-approved | Q178: Year | R178: Year-over-year | U178: =O178 -> Test Year Versus Board-approved
D179: =D170 -> 2012 | K179: =D179 -> 2012 | Q179: =K179 -> 2012
D180: 2013 | G180: =IF(G170=0,"",G171/G170-1) -> 0.0478558743 | K180: =D180 -> 2013 | L180: =IF(L170=0,"",L171/L170-1) -> 0.3932039568 | Q180: =K180 -> 2013 | R180: =IF(R170="","",IF(R170=0,"",R171/R170-1)) -> 0.3295759379
D181: 2014 | G181: 0.01663974294 | K181: 2014 | L181: 0.07628101592 | Q181: 2014 | R181: 0.05866510078
D182: 2015 | G182: -0.0200952811 | K182: 2015 | L182: -0.04420473773 | Q182: 2015 | R182: -0.02460387849
D183: 2016 | G183: -0.07925012036 | K183: 2016 | L183: -0.294249676 | Q183: 2016 | R183: -0.2335048425
D184: 2017 | G184: 0.07971962917 | K184: 2017 | L184: =IF(K175="Forecast","",IF(L174=0,"",L175/L174-1)) ->  | M184: =IF(M174=0,"",M175/M174-1) ->  | Q184: 2017 | R184: =IF(Q175="Forecast","",IF(R174=0,"",R175/R174-1)) ->  | S184: =IF(S174="","",IF(S174=0,"",S175/S174-1)) -> 
D185: 2018 | G185: -0.004385274273 | I185: =IF(I177=0,"",G176/I177-1) -> 0.1172065918 | K185: 2018 | L185: =IF(K176="Forecast","",IF(L175=0,"",L176/L175-1)) ->  | M185: =IF(M175=0,"",M176/M175-1) -> 0.004369060374 | O185: =IF(O177=0,"",M176/O177-1) -> 0.2414736082 | Q185: 2018 | R185: =IF(Q176="Forecast","",IF(R175=0,"",R176/R175-1)) ->  | S185: =IF(S175="","",IF(S175=0,"",S176/S175-1)) -> 0.008792893898 | U185: =IF(U177=0,"",S176/U177-1) -> 0.1112301138
D186: Geometric Mean | G186: =IF(G170=0,"",(G176/G170)^(1/($D176-$D170-1))-1) -> 0.006559130727 | I186: =IF(I177=0,"",(G176/I177)^(1/(TestYear-RebaseYear-1))-1) -> 0.02809529673 | K186: Geometric Mean | L186: =IF(L170=0,"",(L174/L170)^(1/($D174-$D170-1))-1) -> 0.003811375573 | M186: =IF(M170=0,"",(M176/M170)^(1/($D176-$D170-1))-1) ->  | O186: =IF(O177=0,"",(M176/O177)^(1/(TestYear-RebaseYear-1))-1) -> 0.05556352045 | Q186: Geometric Mean | R186: =IF(R170="","",IF(R170=0,"",(R174/R170)^(1/($D174-$D170-1))-1)) -> 0.01715559992 | S186: =IF(S170="","",IF(S170=0,"",(S176/S170)^(1/($D176-$D170-1))-1)) ->  | U186: =IF(U177=0,"",(S176/U177)^(1/(TestYear-RebaseYear-1))-1) -> 0.02671758523
B188: 4 | C188: Customer Class: | D188: Streetlighting | H188: Is the customer class billed on consumption (kWh) or demand (kW or kVA)? | N188: kW
D190: Calendar Year | F190: Customers | K190: Consumption (kWh) (3) | Q190: =CONCATENATE("Consumption (kWh) per ",LEFT(F190,LEN(F190)-1)) -> Consumption (kWh) per Customer
D191: =CONCATENATE("(for ",TestYear," Cost of Service") -> (for 2018 Cost of Service | L191: Actual (Weather actual) | M191: Weather-normalized | O191: Weather-normalized | R191: =L191 -> Actual (Weather actual) | S191: =M191 -> Weather-normalized | U191: =O191 -> Weather-normalized
C192: Historical | D192: =D193-1 -> 2012 | F192: =F149 -> Actual | G192: 532 | H192: =IF(D192=RebaseYear,"Board-approved","") ->  | K192: =F192 -> Actual | L192: 468216 | N192: =H192 ->  | Q192: =K192 -> Actual | R192: =IF(G192=0,"",L192/G192) -> 880.1052632 | S192: =IF(G192=0,"",M192/G192) -> 0 | T192: =N192 ->  | U192: =IF(T192="","",IF(I192=0,"",O192/I192)) -> 
C193: Historical | D193: 2013 | F193: =F150 -> Actual | G193: 532 | H193: Board-approved | I193: 531 | K193: =F193 -> Actual | L193: 517279 | N193: =H193 -> Board-approved | O193: 501465 | Q193: =K193 -> Actual | R193: =IF(G193=0,"",L193/G193) -> 972.3289474 | S193: =IF(G193=0,"",M193/G193) -> 0 | T193: =N193 -> Board-approved | U193: =IF(T193="","",IF(I193=0,"",O193/I193)) -> 944.3785311
C194: Historical | D194: 2014 | F194: Actual | G194: 534 | K194: Actual | L194: 519121 | Q194: Actual | R194: 972.1367041 | S194: 0
C195: Historical | D195: 2015 | F195: Actual | G195: 532 | K195: Actual | L195: 348985 | Q195: Actual | R195: 655.9868421 | S195: 0
C196: Historical | D196: 2016 | F196: Actual | G196: 531 | K196: Actual | L196: 150597 | Q196: Actual | R196: 283.6101695 | S196: 0
C197: Bridge Year | D197: 2017 | F197: Forecast | G197: 531 | K197: Forecast | M197: 150597 | Q197: Forecast | R197: 0 | S197: 283.6101695
C198: Test Year | D198: =TestYear -> 2018 | F198: Forecast | G198: 531 | K198: Forecast | M198: 150597 | Q198: Forecast | R198: 0 | S198: 283.6101695
I199: =SUM(I192:I197) -> 531 | O199: =SUM(O192:O197) -> 501465 | U199: =SUM(U192:U197) -> 944.3785311
C200: Variance Analysis | D200: Year | G200: Year-over-year | I200: Test Year Versus Board-approved | K200: Year | L200: Year-over-year | O200: =I200 -> Test Year Versus Board-approved | Q200: Year | R200: Year-over-year | U200: =O200 -> Test Year Versus Board-approved
D201: =D192 -> 2012 | K201: =D201 -> 2012 | Q201: =K201 -> 2012
D202: 2013 | G202: =IF(G192=0,"",G193/G192-1) -> 0 | K202: =D202 -> 2013 | L202: =IF(L192=0,"",L193/L192-1) -> 0.1047871068 | Q202: =K202 -> 2013 | R202: =IF(R192="","",IF(R192=0,"",R193/R192-1)) -> 0.1047871068
D203: 2014 | G203: 0.003759398496 | K203: 2014 | L203: 0.003560941001 | Q203: 2014 | R203: -0.0001977142088
D204: 2015 | G204: -0.003745318352 | K204: 2015 | L204: -0.3277386197 | Q204: 2015 | R204: -0.3252113213
D205: 2016 | G205: -0.001879699248 | K205: 2016 | L205: -0.5684714243 | Q205: 2016 | R205: -0.5676587528
D206: 2017 | G206: 0 | K206: 2017 | L206: =IF(K197="Forecast","",IF(L196=0,"",L197/L196-1)) ->  | M206: =IF(M196=0,"",M197/M196-1) ->  | Q206: 2017 | R206: =IF(Q197="Forecast","",IF(R196=0,"",R197/R196-1)) ->  | S206: =IF(S196="","",IF(S196=0,"",S197/S196-1)) -> 
D207: 2018 | G207: 0 | I207: =IF(I199=0,"",G198/I199-1) -> 0 | K207: 2018 | L207: =IF(K198="Forecast","",IF(L197=0,"",L198/L197-1)) ->  | M207: =IF(M197=0,"",M198/M197-1) -> 0 | O207: =IF(O199=0,"",M198/O199-1) -> -0.6996859203 | Q207: 2018 | R207: =IF(Q198="Forecast","",IF(R197=0,"",R198/R197-1)) ->  | S207: =IF(S197="","",IF(S197=0,"",S198/S197-1)) -> 0 | U207: =IF(U199=0,"",S198/U199-1) -> -0.6996859203
D208: Geometric Mean | G208: =IF(G192=0,"",(G198/G192)^(1/($D198-$D192-1))-1) -> -0.0003762228304 | I208: =IF(I199=0,"",(G198/I199)^(1/(TestYear-RebaseYear-1))-1) -> 0 | K208: Geometric Mean | L208: =IF(L192=0,"",(L196/L192)^(1/($D196-$D192-1))-1) -> -0.3148431195 | M208: =IF(M192=0,"",(M198/M192)^(1/($D198-$D192-1))-1) ->  | O208: =IF(O199=0,"",(M198/O199)^(1/(TestYear-RebaseYear-1))-1) -> -0.2597235673 | Q208: Geometric Mean | R208: =IF(R192="","",IF(R192=0,"",(R196/R192)^(1/($D196-$D192-1))-1)) -> -0.3144132845 | S208: =IF(S192="","",IF(S192=0,"",(S198/S192)^(1/($D198-$D192-1))-1)) ->  | U208: =IF(U199=0,"",(S198/U199)^(1/(TestYear-RebaseYear-1))-1) -> -0.2597235673
D211: Calendar Year | F211: Revenues | K211: =IF(ISBLANK(N188),"",CONCATENATE("Demand (",N188,")")) -> Demand (kW) | Q211: =CONCATENATE("Demand (",N188,") per ",LEFT(F190,LEN(F190)-1)) -> Demand (kW) per Customer
D212: =CONCATENATE("(for ",TestYear," Cost of Service") -> (for 2018 Cost of Service | L212: Actual (Weather actual) | M212: Weather-normalized | O212: =M212 -> Weather-normalized | R212: =L212 -> Actual (Weather actual) | S212: =M212 -> Weather-normalized | U212: =O212 -> Weather-normalized
C213: Historical | D213: =D214-1 -> 2012 | F213: =F192 -> Actual | G213: 99516 | H213: =IF(D213=RebaseYear,"Board-approved","") ->  | K213: =K192 -> Actual | L213: 1447 | N213: =N192 ->  | Q213: =K213 -> Actual | R213: =IF(G213=0,"",L213/G213) -> 0.01454037542 | S213: =IF(G213=0,"",M213/G213) -> 0 | T213: =N213 ->  | U213: =IF(T213="","",IF(I213=0,"",O213/I213)) -> 
C214: Historical | D214: 2013 | F214: Actual | G214: 96659 | H214: Board-approved | I214: 95645 | K214: Actual | L214: 1450 | N214: Board-approved | O214: 1512 | Q214: =K214 -> Actual | R214: =IF(G214=0,"",L214/G214) -> 0.01500118975 | S214: =IF(G214=0,"",M214/G214) -> 0 | T214: =N214 -> Board-approved | U214: =IF(T214="","",IF(I214=0,"",O214/I214)) -> 0.01580845836
C215: Historical | D215: 2014 | F215: Actual | G215: 99988 | K215: Actual | L215: 1454 | Q215: Actual | R215: 0.01454174501 | S215: 0
C216: Historical | D216: 2015 | F216: Actual | G216: 96201 | K216: Actual | L216: 1104 | Q216: Actual | R216: 0.01147597218 | S216: 0
C217: Historical | D217: 2016 | F217: Actual | G217: 90824 | K217: Actual | L217: 420 | Q217: Actual | R217: 0.004624328371 | S217: 0
C218: Bridge Year (Forecast) | D218: 2017 | F218: Forecast | G218: 79907 | K218: Forecast | M218: 420 | Q218: Forecast | R218: 0 | S218: 0.005256110228
C219: Test Year (Forecast) | D219: =TestYear -> 2018 | F219: Forecast | G219: 29451 | K219: Forecast | M219: 420 | Q219: Forecast | R219: 0 | S219: 0.01426097586
I220: =SUM(I213:I218) -> 95645 | O220: =SUM(O213:O218) -> 1512 | U220: =SUM(U213:U218) -> 0.01580845836
C221: Variance Analysis | D221: Year | G221: Year-over-year | I221: =I200 -> Test Year Versus Board-approved | K221: Year | L221: Year-over-year | O221: =I221 -> Test Year Versus Board-approved | Q221: Year | R221: Year-over-year | U221: =O221 -> Test Year Versus Board-approved
D222: =D213 -> 2012 | K222: =D222 -> 2012 | Q222: =K222 -> 2012
D223: 2013 | G223: =IF(G213=0,"",G214/G213-1) -> -0.02870895132 | K223: =D223 -> 2013 | L223: =IF(L213=0,"",L214/L213-1) -> 0.00207325501 | Q223: =K223 -> 2013 | R223: =IF(R213="","",IF(R213=0,"",R214/R213-1)) -> 0.03169205191
D224: 2014 | G224: 0.03444066254 | K224: 2014 | L224: 0.00275862069 | Q224: 2014 | R224: -0.03062722009
D225: 2015 | G225: -0.03787454495 | K225: 2015 | L225: -0.2407152682 | Q225: 2015 | R225: -0.2108256488
D226: 2016 | G226: -0.05589338988 | K226: 2016 | L226: -0.6195652174 | Q226: 2016 | R226: -0.5970425601
D227: 2017 | G227: -0.1201995067 | K227: 2017 | L227: =IF(K218="Forecast","",IF(L217=0,"",L218/L217-1)) ->  | M227: =IF(M217=0,"",M218/M217-1) ->  | Q227: 2017 | R227: =IF(Q218="Forecast","",IF(R217=0,"",R218/R217-1)) ->  | S227: =IF(S217="","",IF(S217=0,"",S218/S217-1)) -> 
D228: 2018 | G228: -0.6314340421 | I228: =IF(I220=0,"",G219/I220-1) -> -0.6920800878 | K228: 2018 | L228: =IF(K219="Forecast","",IF(L218=0,"",L219/L218-1)) ->  | M228: =IF(M218=0,"",M219/M218-1) -> 0 | O228: =IF(O220=0,"",M219/O220-1) -> -0.7222222222 | Q228: 2018 | R228: =IF(Q219="Forecast","",IF(R218=0,"",R219/R218-1)) ->  | S228: =IF(S218="","",IF(S218=0,"",S219/S218-1)) -> 1.713218566 | U228: =IF(U220=0,"",S219/U220-1) -> -0.09788952648
D229: Geometric Mean | G229: =IF(G213=0,"",(G219/G213)^(1/($D219-$D213-1))-1) -> -0.216134723 | I229: =IF(I220=0,"",(G219/I220)^(1/(TestYear-RebaseYear-1))-1) -> -0.2550803277 | K229: Geometric Mean | L229: =IF(L213=0,"",(L217/L213)^(1/($D217-$D213-1))-1) -> -0.3378949204 | M229: =IF(M213=0,"",(M219/M213)^(1/($D219-$D213-1))-1) ->  | O229: =IF(O220=0,"",(M219/O220)^(1/(TestYear-RebaseYear-1))-1) -> -0.2740204709 | Q229: Geometric Mean | R229: =IF(R213="","",IF(R213=0,"",(R217/R213)^(1/($D217-$D213-1))-1)) -> -0.31741352 | S229: =IF(S213="","",IF(S213=0,"",(S219/S213)^(1/($D219-$D213-1))-1)) ->  | U229: =IF(U220=0,"",(S219/U220)^(1/(TestYear-RebaseYear-1))-1) -> -0.02542575248
B231: 5 | C231: Customer Class: | D231: Unmetered Scattered Load | H231: Is the customer class billed on consumption (kWh) or demand (kW or kVA)? | N231: kWh
D233: Calendar Year | F233: Customers | K233: Consumption (kWh) (3) | Q233: =CONCATENATE("Consumption (kWh) per ",LEFT(F233,LEN(F233)-1)) -> Consumption (kWh) per Customer
... 233 more rows

Sheet App.2-JA_OM&A_Summary_Analys
L1: File Number: | M1: =EBNUMBER -> EB-2017-0073
L2: Exhibit: | M2: 4
L3: Tab:
L4: Schedule:
L5: Page:
L7: Date: | M7: 2017-08-28
A9: Appendix 2-JA
A10: Summary of Recoverable OM&A Expenses
B13: ="Last Rebasing Year (" & RebaseYear & " Board-Approved)" -> Last Rebasing Year (2013 Board-Approved) | C13: ="Last Rebasing Year (" & RebaseYear & " Actuals)" -> Last Rebasing Year (2013 Actuals) | D13: =BridgeYear -3 & " Actuals" -> 2014 Actuals | E13: =BridgeYear -2 & " Actuals" -> 2015 Actuals | F13: =BridgeYear -1 & " Actuals" -> 2016 Actuals | G13: =BridgeYear & " Bridge Year" -> 2017 Bridge Year | H13: =TestYear & " Test Year" -> 2018 Test Year
A14: Reporting Basis | B14: CGAAP | C14: CGAAP | D14: MIFRS | E14: MIFRS | F14: MIFRS | G14: MIFRS | H14: MIFRS
A15: Operations | B15: 543617 | C15: 535159 | D15: 581576 | E15: 526730 | F15: 574153 | G15: 540346 | H15: 514586
A16: Maintenance | B16: 201605 | C16: 215047 | D16: 190949 | E16: 159501 | F16: 194875 | G16: 236866 | H16: 226447
A17: SubTotal | B17: =SUM(B15:B16) -> 745222 | C17: =SUM(C15:C16) -> 750206 | D17: 772525 | E17: 686231 | F17: 769028 | G17: 777212 | H17: 741033
A18: %Change (year over year) | D18: =IF(ISERROR((D17-B17)/B17), "", (D17-B17)/B17) -> 0.03663740469 | E18: =IF(ISERROR((E17-C17)/C17), "", (E17-C17)/C17) -> -0.08527657737 | F18: =IF(ISERROR((F17-E17)/E17), "", (F17-E17)/E17) -> 0.1206547067 | G18: =IF(ISERROR((G17-F17)/F17), "", (G17-F17)/F17) -> 0.01064200523 | H18: =IF(ISERROR((H17-G17)/G17), "", (H17-G17)/G17) -> -0.04654971874
A19: %Change (Test Year vs Last Rebasing Year - Actual) | H19: =IF(ISERROR((H17-C17)/C17), "", (H17-C17)/C17) -> -0.01222730823
A20: Billing and Collecting | B20: 316965 | C20: 296239 | D20: 310022 | E20: 329917 | F20: 351771 | G20: 350791 | H20: 355718
A21: Community Relations
A22: Administrative and General | B22: 359059 | C22: 374136 | D22: 357354 | E22: 404099 | F22: 410646 | G22: 499606 | H22: 483335
A23: SubTotal | B23: =SUM(B20:B22) -> 676024 | C23: =SUM(C20:C22) -> 670375 | D23: 667376 | E23: 734016 | F23: 762417 | G23: 850397 | H23: 839053
A24: %Change (year over year) | D24: =IF(ISERROR((D23-B23)/B23), "", (D23-B23)/B23) -> -0.01279244524 | E24: =IF(ISERROR((E23-C23)/C23), "", (E23-C23)/C23) -> 0.09493343278 | F24: =IF(ISERROR((F23-E23)/E23), "", (F23-E23)/E23) -> 0.03869261705 | G24: =IF(ISERROR((G23-F23)/F23), "", (G23-F23)/F23) -> 0.1153961677 | H24: =IF(ISERROR((H23-G23)/G23), "", (H23-G23)/G23) -> -0.01333965195
A25: %Change (Test Year vs Last Rebasing Year - Actual) | H25: =IF(ISERROR((H23-C23)/C23), "", (H23-C23)/C23) -> 0.2516173783
A26: Total | B26: =SUM(B23,B17) -> 1421246 | C26: =SUM(C23,C17) -> 1420581 | D26: 1439901 | E26: 1420247 | F26: 1531445 | G26: 1627609 | H26: 1580086
A27: %Change (year over year) | D27: =IF(ISERROR((D26-B26)/B26), "", (D26-B26)/B26) -> 0.01312580651 | E27: =IF(ISERROR((E26-C26)/C26), "", (E26-C26)/C26) -> -0.0002351150691 | F27: =IF(ISERROR((F26-E26)/E26), "", (F26-E26)/E26) -> 0.07829483181 | G27: =IF(ISERROR((G26-F26)/F26), "", (G26-F26)/F26) -> 0.0627929831 | H27: =IF(ISERROR((H26-G26)/G26), "", (H26-G26)/G26) -> -0.02919804449
B30: =B13 -> Last Rebasing Year (2013 Board-Approved) | C30: =C13 -> Last Rebasing Year (2013 Actuals) | D30: 2014 Actuals | E30: 2015 Actuals | F30: 2016 Actuals | G30: 2017 Bridge Year | H30: 2018 Test Year
A31: Operations | B31: =B15 -> 543617 | C31: =C15 -> 535159 | D31: =D15 -> 581576 | E31: 526730 | F31: 574153 | G31: 540346 | H31: 514586
A32: Maintenance | B32: =B16 -> 201605 | C32: =C16 -> 215047 | D32: =D16 -> 190949 | E32: 159501 | F32: 194875 | G32: 236866 | H32: 226447
A33: Billing and Collecting | B33: =B20 -> 316965 | C33: =C20 -> 296239 | D33: =D20 -> 310022 | E33: 329917 | F33: 351771 | G33: 350791 | H33: 355718
A34: Community Relations | B34: =B21 -> 0 | C34: =C21 -> 0 | D34: =D21 -> 0 | E34: 0 | F34: 0 | G34: 0 | H34: 0
A35: Administrative and General | B35: =B22 -> 359059 | C35: =C22 -> 374136 | D35: =D22 -> 357354 | E35: 404099 | F35: 410646 | G35: 499606 | H35: 483335
A36: Total | B36: =SUM(B31:B35) -> 1421246 | C36: =SUM(C31:C35) -> 1420581 | D36: =SUM(D31:D35) -> 1439901 | E36: 1420247 | F36: 1531445 | G36: 1627609 | H36: 1580086
A37: %Change (year over year) | D37: =IF(ISERROR((D36-B36)/B36), "", (D36-B36)/B36) -> 0.01312580651 | E37: =IF(ISERROR((E36-C36)/C36), "", (E36-C36)/C36) -> -0.0002351150691 | F37: =IF(ISERROR((F36-E36)/E36), "", (F36-E36)/E36) -> 0.07829483181 | G37: =IF(ISERROR((G36-F36)/F36), "", (G36-F36)/F36) -> 0.0627929831 | H37: =IF(ISERROR((H36-G36)/G36), "", (H36-G36)/G36) -> -0.02919804449
B40: =B13 -> Last Rebasing Year (2013 Board-Approved) | C40: =C13 -> Last Rebasing Year (2013 Actuals) | D40: ="Variance " & 'LDC Info'!E28 & " Board-approved – " & 'LDC Info'!E28 & " Actuals" -> Variance 2013 Board-approved – 2013 Actuals | E40: =D13 -> 2014 Actuals | F40: ="Variance " & 'LDC Info'!E26 -3 & " Actuals vs. " & 'LDC Info'!E28 & " Actuals" -> Variance 2014 Actuals vs. 2013 Actuals | G40: =E13 -> 2015 Actuals | H40: ="Variance " & 'LDC Info'!E26 -2 & " Actuals vs. " & 'LDC Info'!E28 & " Actuals" -> Variance 2015 Actuals vs. 2013 Actuals | I40: =F13 -> 2016 Actuals | J40: ="Variance " & 'LDC Info'!E26 -1 & " Actuals vs. " & 'LDC Info'!E26-2 & " Actuals" -> Variance 2016 Actuals vs. 2015 Actuals | K40: =G13 -> 2017 Bridge Year | L40: ="Variance " & 'LDC Info'!E26 & " Bridge vs. " & 'LDC Info'!E26 -1 & " Actuals" -> Variance 2017 Bridge vs. 2016 Actuals | M40: =H13 -> 2018 Test Year | N40: ="Variance " & TestYear & " Test vs. " & BridgeYear & " Bridge" -> Variance 2018 Test vs. 2017 Bridge
A41: Operations | B41: =B15 -> 543617 | C41: =C15 -> 535159 | D41: =B41-C41 -> 8458 | E41: =D15 -> 581576 | F41: =E41-C41 -> 46417 | G41: =E15 -> 526730 | H41: =G41-E41 -> -54846 | I41: =F15 -> 574153 | J41: =I41-G41 -> 47423 | K41: =G15 -> 540346 | L41: =K41-I41 -> -33807 | M41: =H15 -> 514586 | N41: =M41-K41 -> -25760
A42: Maintenance | B42: =B16 -> 201605 | C42: =C16 -> 215047 | D42: =B42-C42 -> -13442 | E42: =D16 -> 190949 | F42: =E42-C42 -> -24098 | G42: =E16 -> 159501 | H42: =G42-E42 -> -31448 | I42: =F16 -> 194875 | J42: =I42-G42 -> 35374 | K42: =G16 -> 236866 | L42: 41991 | M42: =H16 -> 226447 | N42: -10419
A43: Billing and Collecting | B43: =B20 -> 316965 | C43: 296239 | D43: =B43-C43 -> 20726 | E43: =D20 -> 310022 | F43: =E43-C43 -> 13783 | G43: =E20 -> 329917 | H43: =G43-E43 -> 19895 | I43: =F20 -> 351771 | J43: 21854 | K43: =G20 -> 350791 | L43: -980 | M43: =H20 -> 355718 | N43: 4927
A44: Community Relations | B44: 0 | C44: 0 | D44: =B44-C44 -> 0 | E44: =C21 -> 0 | F44: =E44-C44 -> 0 | G44: =E21 -> 0 | H44: =G44-E44 -> 0 | I44: =F21 -> 0 | J44: 0 | K44: =G21 -> 0 | L44: 0 | M44: =H21 -> 0 | N44: 0
A45: Administrative and General | B45: 359059 | C45: 374136 | D45: =B45-C45 -> -15077 | E45: =D22 -> 357354 | F45: =E45-C45 -> -16782 | G45: =E22 -> 404099 | H45: =G45-E45 -> 46745 | I45: =F22 -> 410646 | J45: 6547 | K45: =G22 -> 499606 | L45: 88960 | M45: =H22 -> 483335 | N45: -16271
A46: Total OM&A Expenses | B46: =SUM(B41:B45) -> 1421246 | C46: =SUM(C41:C45) -> 1420581 | D46: 665 | E46: =SUM(E41:E45) -> 1439901 | F46: =SUM(F41:F45) -> 19320 | G46: 1420247 | H46: -19654 | I46: 1531445 | J46: 111198 | K46: 1627609 | L46: 96164 | M46: 1580086 | N46: -47523
A47: Adjustments for Total non-recoverable items (from Appendices 2-JA and 2-JB)
A48: Total Recoverable OM&A Expenses | B48: =B46-B47 -> 1421246 | C48: =C46-C47 -> 1420581 | D48: 665 | E48: 1439901 | F48: 19320 | G48: 1420247 | H48: -19654 | I48: 1531445 | J48: 111198 | K48: 1627609 | L48: 96164 | M48: 1580086 | N48: -47523
A49: Variance from previous year | E49: =E48-C48 -> 19320 | G49: =G48-E48 -> -19654 | I49: =I48-G48 -> 111198 | K49: =K48-I48 -> 96164 | M49: =M48-K48 -> -47523
A50: Percent change (year over year) | E50: =IF(ISERROR(E49/C48), "", E49/C48) -> 0.01360006927 | G50: =IF(ISERROR(G49/E48), "", G49/E48) -> -0.01364954952 | I50: =IF(ISERROR(I49/G48), "", I49/G48) -> 0.07829483181 | K50: =IF(ISERROR(K49/I48), "", K49/I48) -> 0.0627929831 | M50: =IF(ISERROR(M49/K48), "", M49/K48) -> -0.02919804449
A51: Percent Change: Test year vs. Most Current Actual | I51: =IF(ISERROR((M48-I48)/I48), "", (M48-I48)/I48) -> 0.03176150629
A52: Simple average of % variance for all years | I52: =IF(ISERROR((M46-C46)/C46), "", (M46-C46)/C46) -> 0.1122815242 | N52: =IF(ISERROR(AVERAGE(E50,G50,I50,K50,M50)), "", AVERAGE(G50,I50,K50,M50)) -> 0.02456005523
A53: Compound Annual Growth Rate for all years | I53: =IF(ISERROR((M49-C49)/C49), "", (M49-C49)/C49) ->  | N53: =IF((M48-C48)=0, "", (M48/C48)^(1/6)-1) -> 0.0178937644
A54: ="Compound Growth Rate (" & F13 & " vs. " & 'LDC Info'!E28 & " Actuals)" -> Compound Growth Rate (2016 Actuals vs. 2013 Actuals) | I54: =IF(ISERROR((I48/C48)^(1/(4)) - 1), "", (I48/C48)^(1/(4)) - 1) -> 0.01896402339
A56: Note:
A58: 1 If it has been more than three years since the applicant last filed a cost of service application, additional years of historical actuals should be incorporated into the table, as necessary, to go back to the last cost of service application. If the applicant last filed a cost of service application less than three years ago, a minimum of three years of actual information is required.
A60: 2 Recoverable OM&A that is included on these tables should be identical to the recoverable OM&A that is shown for the corresponding periods on Appendix 2-JB.

Sheet App.2-JB_OM&A_Cost _Drivers
F1: File Number: | G1: =EBNUMBER -> EB-2017-0073
F2: Exhibit: | G2: 4
F3: Tab:
G4: Schedule:
G5: Page:
G7: Date: | H7: 2017-08-28
A10: Appendix 2-JB
A11: ="Recoverable OM&A Cost Driver Table" & CHAR(185)&CHAR(183)&CHAR(179) -> Recoverable OM&A Cost Driver Table¹·³
A13: OM&A | B13: ="Last Rebasing Year ("&RebaseYear&" Actuals)" -> Last Rebasing Year (2013 Actuals) | C13: =BridgeYear -3 & " Actuals" -> 2014 Actuals | D13: =BridgeYear -3 & " Actuals" -> 2014 Actuals | E13: =BridgeYear -2 & " Actuals" -> 2015 Actuals | F13: =BridgeYear -1 & " Actuals" -> 2016 Actuals | G13: =BridgeYear & " Bridge Year" -> 2017 Bridge Year | H13: =TestYear & " Test Year" -> 2018 Test Year
A14: Reporting Basis | B14: CGAAP | D14: MIFRS | E14: MIFRS | F14: MIFRS | G14: MIFRS | H14: MIFRS
A15: ="Opening Balance" & CHAR(178) -> Opening Balance² | B15: ='[14]App.2-JA_OM&A_Summary_Analys'!B26 -> 1421246 | C15: =B46 -> 1420581 | D15: =B46 -> 1420581 | E15: =D46 -> 1439901 | F15: =E46 -> 1420246.71 | G15: =F46 -> 1531444.71 | H15: =G46 -> 1627608.71
A17: Salaries, Wages(including overhead) | D17: 49732 | E17: -15165 | F17: 37423 | G17: 23305 | H17: -53401
A18: Training | D18: 173 | E18: -25228 | F18: 27153 | G18: -12002 | H18: -8025
A19: Memberships Licences & Fees | D19: -9085 | E19: -3486 | F19: -2158 | G19: 2720 | H19: 628
A21: Billing | D21: -886 | E21: -1878 | F21: 13844 | G21: 1763 | H21: 2165
A22: Collecting | D22: 3433 | E22: 3553 | F22: -4508 | G22: -12768 | H22: 657
A24: Administration | D24: -3562 | E24: 6116 | F24: -6676 | G24: 6048 | H24: 20268
A26: OESP Program Development Costs | E26: 10930.71
A28: Bad Debts | D28: 5117 | E28: -15763 | F28: 1547 | G28: 5442 | H28: -914
A30: Consulting Fees | D30: -2951 | E30: 18399 | F30: 7944 | G30: 67550 | H30: -49532
A32: Professional Fees | D32: 1236 | E32: 5751 | F32: 4054 | G32: -4861 | H32: 14040
A34: Bank and Merchant Fees | D34: 11389 | E34: 6920 | F34: 13640 | G34: 354 | H34: 1485
A36: Tree Trimming | D36: -17567 | E36: -9547 | F36: 15908 | G36: -11854 | H36: 1149
A38: U/G Maintenance | F38: 2212 | G38: 12788 | H38: 0
A40: Operations/Maintenance | D40: -14634 | E40: -29696 | F40: 26512 | G40: 17307 | H40: 25687
A41: Fleet | D41: -2389 | E41: 6222 | F41: 17646 | G41: -1100 | H41: 1384
A42: Meter Reverifications | G42: 11313 | H42: 160
A44: All Other Items | B44: -665 | D44: -686 | E44: 23217 | F44: -43343 | G44: -9841 | H44: -3274
A46: ="Closing Balance"&CHAR(178) -> Closing Balance² | B46: =SUM(B15:B45) -> 1420581 | C46: 1420581 | D46: 1439901 | E46: 1420246.71 | F46: 1531444.71 | G46: 1627608.71 | H46: 1580085.71
A48: Notes:
A50: 1 | B50: For each year, a detailed explanation for each cost driver and associated amount is requied in Exhibit 4.
A51: 2 | B51: Opening Balance for "Last Rebasing Year" (cell B15) should be equal to the Board-Approved amount. For purposes of assessing incremental cost drivers, the closing balance for each year becomes the opening balance for the next year.
A52: 3 | B52: If it has been more than four years since the applicant last filed a cost of service application, additional years of historical actuals should be incorporated into the table, as necessary, to go back to the last cost of service application. If the applicant last filed a cost of service application less than four years ago, a minimum of three years of actual information is required.

Sheet App.2-JC_OMA Programs
H1: File Number: | I1: =EBNUMBER -> EB-2017-0073
H2: Exhibit: | I2: 4
H3: Tab:
H4: Schedule:
H5: Page:
H7: Date: | I7: 2017-08-28
A9: Appendix 2-JC
A10: OM&A Programs Table
A13: Programs | B13: ="Last Rebasing Year (" & RebaseYear & " Board-Approved)" -> Last Rebasing Year (2013 Board-Approved) | C13: ="Last Rebasing Year (" & RebaseYear & " Actuals)" -> Last Rebasing Year (2013 Actuals) | D13: =BridgeYear-3&" Actuals" -> 2014 Actuals | E13: =BridgeYear -2 & " Actuals" -> 2015 Actuals | F13: =BridgeYear -1 & " Actuals" -> 2016 Actuals | G13: =BridgeYear & " Bridge Year" -> 2017 Bridge Year | H13: =TestYear & " Test Year" -> 2018 Test Year | I13: ="Variance (Test Year vs. " & F13 &")" -> Variance (Test Year vs. 2016 Actuals) | J13: ="Variance (Test Year vs. " & B13 -> Variance (Test Year vs. Last Rebasing Year (2013 Board-Approved)
A14: Reporting Basis | B14: CGAAP | C14: CGAAP | D14: MIFRS | E14: MIFRS | F14: MIFRS | G14: MIFRS | H14: MIFRS
A15: Operations
A16: Apprenticeship Training | B16: 21224 | C16: 20864 | D16: 21647 | E16: 7659 | F16: 23627 | G16: 11000 | H16: 0 | I16: =H16-F16 -> -23627 | J16: =H16-B16 -> -21224
A17: Mapping | B17: 0 | C17: 33853.55 | D17: 37607.45 | E17: 34069.3 | F17: 33196.32 | G17: 35561.03 | H17: 36280.77 | I17: =H17-F17 -> 3084.45 | J17: 36280.77
A18: Distribution Lines Operations | B18: 522393 | C18: 480441.45 | D18: 562321.55 | E18: 485001.7 | F18: 517329.68 | G18: 498155 | H18: 478305 | I18: -39024.68 | J18: -44088
I19: 0 | J19: 0
I20: 0 | J20: 0
A21: Sub-Total | B21: =SUM(B16:B20) -> 543617 | C21: =SUM(C16:C20) -> 535159 | D21: 621576 | E21: 526730 | F21: 574153 | G21: 544716.03 | H21: =SUM(H16:H20) -> 514585.77 | I21: -59567.23 | J21: -29031.23
A22: Maintenance
A23: Tree Trimming | B23: 51200 | C23: 86889 | D23: 69322 | E23: 59775 | F23: 75683 | G23: 63829 | H23: 65041 | I23: -10642 | J23: =H23-B23 -> 13841
A24: U/G Cable Maintenance | B24: 0 | F24: 2212 | G24: 15000 | H24: 15000 | I24: 12788 | J24: 15000
A25: Meter Reverification Program | B25: 0 | G25: 11313 | H25: 11473 | I25: 11473 | J25: 11473
A26: Transformer and Lines Maintenance | B26: 150405 | C26: 128158 | D26: 121627 | E26: 99726 | F26: 116980 | G26: 142414 | H26: 134933 | I26: 17953 | J26: -15472
I27: 0 | J27: 0
A28: Sub-Total | B28: =SUM(B23:B27) -> 201605 | C28: 215047 | D28: 190949 | E28: 159501 | F28: 194875 | G28: 232556 | H28: =SUM(H23:H27) -> 226447 | I28: 31572 | J28: 24842
A29: Billing & Collecting
A30: Monthly Billing System Charges | B30: 53100 | C30: 53100 | D30: 53100 | E30: 55755 | F30: 67463.58 | G30: 70379 | H30: 71716 | I30: 4252.42 | J30: =H30-B30 -> 18616
A31: Billing System Program Changes | B31: 2500 | C31: 2537.46 | D31: 8911.04 | E31: 6130.25 | F31: 2583.56 | G31: 10000 | H31: 10000 | I31: 7416.44 | J31: 7500
A32: Smart Meter Administration | B32: 59167 | C32: 55979.6 | D32: 48741.66 | E32: 47360.53 | F32: 54961.42 | G32: 56895 | H32: 57977 | I32: 3015.58 | J32: -1190
A33: Third Party Collection | B33: 22285 | C33: 15892 | D33: 18758 | E33: 22903 | F33: 17722 | G33: 5500 | H33: 5500 | I33: -12222 | J33: -16785
A34: Bad Debt | B34: 20000 | C34: 34740 | D34: 39857 | E34: 24094 | F34: 25641 | G34: 31083 | H34: 30169 | I34: 4528 | J34: 10169
A35: Bank and Merchant fee Charges | B35: 55183 | C35: 50197 | D35: 61586 | E35: 68506 | F35: 82146 | G35: 82500 | H35: 84068 | I35: 1922 | J35: 28885
A36: All Other Billing & Collecting | B36: 104730 | C36: 83793 | D36: 79068 | E36: 105168 | F36: 101253 | G36: 94434 | H36: 96288 | I36: -4965 | J36: -8442
I37: 0 | J37: 0
A38: Sub-Total | B38: =SUM(B30:B37) -> 316965 | C38: 296239.06 | D38: 310021.7 | E38: 329916.78 | F38: 351770.56 | G38: 350791 | H38: =SUM(H30:H37) -> 355718 | I38: 3947.44 | J38: 38753
A39: Administration
A40: Insurance | B40: 18850 | C40: 21584 | D40: 22694 | E40: 21487 | F40: 24229 | G40: 23552 | H40: 24000 | I40: -229 | J40: =H40-B40 -> 5150
A41: Regulatory | B41: 33046 | C41: 23097 | D41: 15590 | E41: 29099 | F41: 17731 | G41: 15223 | H41: 18474 | I41: 743 | J41: -14572
A42: Professional Fees | B42: 36773 | C42: 25320 | D42: 26556 | E42: 32307 | F42: 36361 | G42: 31500 | H42: 35070 | I42: -1291 | J42: -1703
A43: Travel and Meetings | B43: 40563 | C43: 33666 | D43: 27527 | E43: 30082 | F43: 25526 | G43: 36200 | H43: 36889 | I43: 11363 | J43: -3674
A44: All Other Administration and General | B44: 229827 | C44: 269209 | D44: 264987 | E44: 280318 | F44: 287824 | G44: 293822 | H44: 304902 | I44: 17078 | J44: 75075
I45: 0 | J45: 0
A46: Sub-Total | B46: =SUM(B40:B45) -> 359059 | C46: 372876 | D46: 357354 | E46: 393293 | F46: 391671 | G46: 400297 | H46: =SUM(H40:H45) -> 419335 | I46: 27664 | J46: 60276
A47: Special Projects
A48: Asset Management Plan/Distribution System Plan | F48: 15099.75 | G48: 24248.5 | I48: =H48-F48 -> -15099.75 | J48: =H48-B48 -> 0
A49: Asset Condition Assessment | E49: 10806 | F49: 3875.4 | I49: -3875.4 | J49: 0
A50: Cost of Service Application | C50: 1260 | G50: 75000 | H50: 24000 | I50: 24000 | J50: 24000
A51: Anticipated on going consulting fees | H51: 40000 | I51: =H51-F51 -> 40000 | J51: 40000
I52: 0 | J52: =H52-B52 -> 0
A53: Sub-Total | B53: =SUM(B48:B52) -> 0 | C53: 1260 | D53: 0 | E53: 10806 | F53: 18975.15 | G53: 99248.5 | H53: 64000 | I53: 45024.85 | J53: 64000
A54: Miscellaneous | I54: 0 | J54: 0
A55: Total | B55: =SUMPRODUCT(--($A15:$A54="Sub-Total"), B$15:B$54)+B54 -> 1421246 | C55: 1420581.06 | D55: 1479900.7 | E55: 1420246.78 | F55: 1531444.71 | G55: 1627608.53 | H55: 1580085.77 | I55: =H55-F55 -> 48641.06 | J55: 158839.77
A57: Notes:
A59: 1 Please provide a breakdown of the major components of each OM&A Program undertaken in each year. Please ensure that all Programs below the materiality threshold are included in the miscellaneous line. Add more Programs as required.
A60: 2 The applicant should group projects appropriately and avoid presentations that result in classification of significant components of the OM&A budget in the miscellaneous category

Sheet App.2-K_Employee Costs
G1: File Number: | H1: =EBNUMBER -> EB-2017-0073
G2: Exhibit: | H2: 4
G3: Tab:
G4: Schedule:
G5: Page:
G7: Date: | H7: 2017-08-28
A9: Appendix 2-K
A10: Employee Costs
B12: ="Last Rebasing Year - "&RebaseYear&"- Board Approved" -> Last Rebasing Year - 2013- Board Approved | C12: ="Last Rebasing Year - "&RebaseYear&"- Actual" -> Last Rebasing Year - 2013- Actual | D12: =BridgeYear-3 & " Actuals" -> 2014 Actuals | E12: =BridgeYear -2 & " Actuals" -> 2015 Actuals | F12: =BridgeYear -1 & " Actuals" -> 2016 Actuals | G12: =BridgeYear & " Bridge Year" -> 2017 Bridge Year | H12: =TestYear & " Test Year" -> 2018 Test Year
A13: Number of Employees (FTEs including Part-Time)1
A14: Management (including executive) | B14: 2 | C14: 2 | D14: 2 | E14: 2 | F14: 2 | G14: 2 | H14: 1
A15: Non-Management (union and non-union) | B15: 7 | C15: 7 | D15: 7 | E15: 7.35 | F15: 7.35 | G15: 7.35 | H15: 7.35
A16: Total | B16: =SUM(B14:B15) -> 9 | C16: 9 | D16: 9 | E16: 9.35 | F16: 9.35 | G16: 9.35 | H16: 8.35
A17: Total Salary and Wages including ovetime and incentive pay
A18: Management (including executive)
A19: Non-Management (union and non-union) | B19: 641205 | C19: 663688.68 | D19: 690076.69 | E19: 731695.49 | F19: 764396.06 | G19: 727717.695 | H19: 672391.0881
A20: Total | B20: =SUM(B18:B19) -> 641205 | C20: 663688.68 | D20: 690076.69 | E20: 731695.49 | F20: 764396.06 | G20: 727717.695 | H20: 672391.0881
A21: Total Benefits (Current + Accrued) 2
A22: Management (including executive)
A23: Non-Management (union and non-union) | B23: 144240 | C23: 118919 | D23: 119138 | E23: 133851 | F23: 154266 | G23: 156758 | H23: 153324
A24: Total | B24: =SUM(B22:B23) -> 144240 | C24: =SUM(C22:C23) -> 118919 | D24: 119138 | E24: 133851 | F24: 154266 | G24: 156758 | H24: 153324
A25: Total Compensation (Salary, Wages, & Benefits)
A26: Management (including executive) | B26: =B18+B22 -> 0 | C26: 0 | D26: =D18+D22 -> 0 | E26: 0 | F26: 0 | G26: 0 | H26: 0
A27: Non-Management (union and non-union) | B27: 785445 | C27: 782607.68 | D27: =D19+D23 -> 809214.69 | E27: 865546.49 | F27: 918662.06 | G27: 884475.695 | H27: 825715.0881
A28: Total | B28: 785445 | C28: 782607.68 | D28: =D20+D24 -> 809214.69 | E28: 865546.49 | F28: 918662.06 | G28: 884475.695 | H28: 825715.0881
A30: Note:
A31: 1 If an applicant wishes to use headcount, it must also file the same schedule on an FTE basis.
A32: 2 Current employee benefits, plus Pension and Other Post-Employment Benefits costs, as recorded for recovery in distribution rates. Should be consistent with OPEBs costs as documented in Appendix 2-KA.

Sheet App.2-L_OM&A_per_Cust_FTE
I1: File Number: | J1: =EBNUMBER -> EB-2017-0073
I2: Exhibit: | J2: 4
I3: Tab:
I4: Schedule:
I5: Page:
I7: Date: | J7: 2017-08-28
B9: Appendix 2-L
B10: Recoverable OM&A Cost per Customer and per FTE 1
D13: ="Last Rebasing Year - "&RebaseYear&"- Board Approved" -> Last Rebasing Year - 2013- Board Approved | E13: ="Last Rebasing Year - "&RebaseYear&"- Actual" -> Last Rebasing Year - 2013- Actual | F13: =BridgeYear -3 & " Actuals" -> 2014 Actuals | G13: =BridgeYear -2 & " Actuals" -> 2015 Actuals | H13: =BridgeYear -1 & " Actuals" -> 2016 Actuals | I13: =BridgeYear & " Bridge Year" -> 2017 Bridge Year | J13: =TestYear & " Test Year" -> 2018 Test Year
B14: Reporting Basis | D14: CGAAP | E14: CGAAP | F14: MIFRS | G14: MIFRS | H14: MIFRS | I14: MIFRS | J14: MIFRS
B15: OM&A Costs
B16: O&M | D16: 707676 | E16: 750206 | F16: 772525 | G16: 686231 | H16: 769028 | I16: 777212 | J16: 741033
B17: Admin Expenses | D17: 713570 | E17: 670375 | F17: 667376 | G17: 734016 | H17: 762417 | I17: 850397 | J17: 839053
B18: Total Recoverable OM&A from Appendix 2-JB 5 | D18: =SUM(D16:D17) -> 1421246 | E18: =SUM(E16:E17) -> 1420581 | F18: 1439901 | G18: 1420247 | H18: 1531445 | I18: 1627609 | J18: 1580086
B19: Number of Customers 2,4 | D19: 3293 | E19: 3332 | F19: 3347 | G19: 3345 | H19: 3358 | I19: 3365 | J19: 3372
B20: Number of FTEs 3,4 | D20: 9 | E20: 9 | F20: 9 | G20: 9.35 | H20: 9.35 | I20: 9.06 | J20: 8.35
B21: Customers/FTEs | D21: =IF(D20=0,"",D19/D20) -> 365.8888889 | E21: =IF(E20=0,"",E19/E20) -> 370.2222222 | F21: =IF(F20=0,"",F19/F20) -> 371.8888889 | G21: 357.7540107 | H21: 359.144385 | I21: 371.4128035 | J21: 403.8323353
B22: OM&A cost per customer
B23: O&M per customer | D23: =IF(D19=0,"",D16/D19) -> 214.9031278 | E23: =IF(E19=0,"",E16/E19) -> 225.1518607 | F23: =IF(F19=0,"",F16/F19) -> 230.8111742 | G23: 205.1512706 | H23: 229.0136986 | I23: 230.9693908 | J23: 219.7606762
B24: Admin per customer | D24: =IF(D19=0,"",D17/D19) -> 216.6929851 | E24: =IF(E19=0,"",E17/E19) -> 201.1929772 | F24: =IF(F19=0,"",F17/F19) -> 199.3952794 | G24: 219.4367713 | H24: 227.0449672 | I24: 252.7182764 | J24: 248.8294781
B25: Total OM&A per customer | D25: =IF(D19=0,"",D18/D19) -> 431.596113 | E25: =IF(E19=0,"",E18/E19) -> 426.3448379 | F25: =IF(F19=0,"",F18/F19) -> 430.2064535 | G25: 424.5880419 | H25: 456.0586659 | I25: 483.6876672 | J25: 468.5901542
B26: OM&A cost per FTE
B27: O&M per FTE | D27: =IF(D20=0,"",D16/D20) -> 78630.66667 | E27: =IF(E20=0,"",E16/E20) -> 83356.22222 | F27: =IF(F20=0,"",F16/F20) -> 85836.11111 | G27: 73393.68984 | H27: 82248.98396 | I27: 85784.98896 | J27: 88746.46707
B28: Admin per FTE | D28: =IF(D20=0,"",D17/D20) -> 79285.55556 | E28: =IF(E20=0,"",E17/E20) -> 74486.11111 | F28: =IF(F20=0,"",F17/F20) -> 74152.88889 | G28: 78504.38503 | H28: 81541.92513 | I28: 93862.80353 | J28: 100485.3892
B29: Total OM&A per FTE | D29: =IF(D20=0,"",D18/D20) -> 157916.2222 | E29: =IF(E20=0,"",E18/E20) -> 157842.3333 | F29: =IF(F20=0,"",F18/F20) -> 159989 | G29: 151898.0749 | H29: 163790.9091 | I29: 179647.7925 | J29: 189231.8563
B31: Notes:
B33: 1 | C33: If it has been more than four years since the applicant last filed a cost of service application, additional years of historical actuals should be incorporated into the table, as necessary, to go back to the last cost of service application. If the applicant last filed a cost of service application less than four years ago, a minimum of three years of actual information is required.
B35: 2 | C35: The method of calculating the number of customers must be identified. Should correspond with data provided in Appendix 2-IB.
B36: 3 | C36: The method of calculating the number of FTEs must be identified. See also Appendix 2-K.
B37: 4 | C37: The number of customers and the number of FTEs should correspond to mid-year or average of January 1 and December 31 figures.
B38: 5 | C38: For the test year, the applicant should take into account the system O&M (line 22 of Appendix 2-AB) in developing its forecasted OM&A.

Sheet App.2-L_OM&A_per_Cust_FTEE_exp (hidden)
K1: File Number: | L1: =EBNUMBER -> EB-2017-0073
K2: Exhibit:
K3: Tab:
K4: Schedule:
K5: Page:
K7: Date:
A9: Appendix 2-L
A10: Recoverable OM&A Cost per Customer and per FTE 1
H12: 5-year Distribution System Plan Period
C13: ="Last Rebasing Year - "&RebaseYear&"- Board Approved" -> Last Rebasing Year - 2013- Board Approved | D13: ="Last Rebasing Year - "&RebaseYear&"- Actual" -> Last Rebasing Year - 2013- Actual | E13: =BridgeYear -2 & " Actuals" -> 2015 Actuals | F13: =BridgeYear -1 & " Actuals" -> 2016 Actuals | G13: =BridgeYear & " Bridge Year" -> 2017 Bridge Year | H13: =TestYear & " Test Year" -> 2018 Test Year | I13: =TestYear+1 & " Year" -> 2019 Year | J13: =TestYear+2 & " Year" -> 2020 Year | K13: =TestYear+3 & " Year" -> 2021 Year | L13: =TestYear+4 & " Year" -> 2022 Year
A14: Reporting Basis
A15: OM&A Costs
A16: O&M
A17: Admin Expenses
A18: Total Recoverable OM&A from Appendix 2-JB 5 | C18: =SUM(C16:C17) -> 0 | D18: =SUM(D16:D17) -> 0 | E18: 0 | F18: 0 | G18: 0 | H18: 0 | I18: 0 | J18: 0 | K18: 0 | L18: 0
A19: Number of Customers 2,4
A20: Number of FTEs 3,4
A21: Customers/FTEs | C21: =IF(C20=0,"",C19/C20) ->  | D21: =IF(D20=0,"",D19/D20) -> 
A22: OM&A cost per customer
A23: O&M per customer | C23: =IF(C19=0,"",C16/C19) ->  | D23: =IF(D19=0,"",D16/D19) -> 
A24: Admin per customer | C24: =IF(C19=0,"",C17/C19) ->  | D24: =IF(D19=0,"",D17/D19) -> 
A25: Total OM&A per customer | C25: =IF(C19=0,"",C18/C19) ->  | D25: =IF(D19=0,"",D18/D19) -> 
A26: OM&A cost per FTE
A27: O&M per FTE | C27: =IF(C20=0,"",C16/C20) ->  | D27: =IF(D20=0,"",D16/D20) -> 
A28: Admin per FTE | C28: =IF(C20=0,"",C17/C20) ->  | D28: =IF(D20=0,"",D17/D20) -> 
A29: Total OM&A per FTE | C29: =IF(C20=0,"",C18/C20) ->  | D29: =IF(D20=0,"",D18/D20) -> 
A31: Notes:
A33: 1 | B33: If it has been more than three years since the applicant last filed a cost of service application, additional years of historical actuals should be incorporated into the table, as necessary, to go back to the last cost of service application. If the applicant last filed a cost of service application less than three years ago, a minimum of three years of actual information is required.
A35: 2 | B35: The method of calculating the number of customers must be identified. Should be linked back to Appendix 2-IA
A36: 3 | B36: The method of calculating the number of FTEs must be identified. See also Appendix 2-K
A37: 4 | B37: The number of customers and the number of FTEs should correspond to mid-year or average of January 1 and December 31 figures.
A38: 5 | B38: For the test year and in the subsequent four years of the DSP period, the applicant should take into account the system O&M (line X of Appendix 2-AB) in developing its forecasted OM&A. Admin expenses beyond the test year also need to be forecasted (separately).

Sheet App.2-M_Regulatory_Costs
J1: File Number: | K1: =EBNUMBER -> EB-2017-0073
J2: Exhibit: | K2: 4
J3: Tab:
J4: Schedule:
J5: Page:
J7: Date: | K7: 2017-08-28
A9: Appendix 2-M
A10: Regulatory Cost Schedule
A13: Regulatory Cost Category | C13: USoA Account | D13: USoA Account Balance | E13: Ongoing or One-time Cost? 2 | F13: ="Last Rebasing Year (" & RebaseYear & " Board Approved)" -> Last Rebasing Year (2013 Board Approved) | G13: ="Most Current Actuals Year " & TestYear - 2 -> Most Current Actuals Year 2016 | H13: =TestYear -1 & " Bridge Year" -> 2017 Bridge Year | I13: Annual % Change | J13: =TestYear & " Test Year" -> 2018 Test Year | K13: Annual % Change
A14: (A) | C14: (B) | D14: (C ) | E14: (D) | F14: (E) | G14: (F) | H14: (G) | I14: (H) = [(G)-(F)]/(F) | J14: (I) | K14: (J) = [(I)-(G)]/(G)
A15: 1 | B15: OEB Annual Assessment | C15: 5655 | E15: On-Going | F15: 12734 | G15: 14122 | I15: =IF(G15=0,"",(H15-G15)/G15) -> -1 | K15: =IF(H15=0,"",(J15-H15)/H15) -> 
A16: 2 | B16: OEB Section 30 Costs (Applicant-originated) | E16: One-Time | I16: =IF(G16=0,"",(H16-G16)/G16) ->  | K16: =IF(H16=0,"",(J16-H16)/H16) -> 
A17: 3 | B17: OEB Section 30 Costs (OEB-initiated) | C17: 5655 | E17: On-Going | F17: 1000 | G17: 835.13 | I17: -1
A18: 4 | B18: Expert Witness costs for regulatory matters
A19: 5 | B19: Legal costs for regulatory matters | C19: 5630 | E19: On-Going | G19: 710 | I19: -1
A20: 6 | B20: Consultants' costs for regulatory matters | C20: 5665 | E20: One-Time | F20: 30000 | G20: 26850.15 | H20: 95000 | I20: 2.53815528 | J20: 19000 | K20: -0.8
A21: 7 | B21: Operating expenses associated with staff resources allocated to regulatory matters | C21: 5610 | E21: On-Going | F21: 67353
A22: 8 | B22: Operating expenses associated with other resources allocated to regulatory matters 1 | C22: 5665 | E22: On-Going | J22: 40000
A23: 9 | B23: Other regulatory agency fees or assessments | C23: 5680 | E23: On-Going | F23: 2501 | G23: 2614.33 | I23: -1
A24: 10 | B24: Legal Costs for Cost of Service Proceeding | E24: One-Time | J24: 3000
A25: 11 | B25: Intervenor costs | C25: 5655 | E25: One-Time | F25: 5000 | G25: 0 | H25: 10000 | J25: 4097.35 | K25: -0.590265
A26: 12 | B26: Sub-total - Ongoing Costs 3 | D26: =SUMIF($E15:$E25,$E11,D15:D25) -> 0 | F26: =SUMIF($E15:$E25,$E11,F15:F25) -> 0 | G26: =SUMIF($E15:$E25,$E11,G15:G25) -> 0 | H26: =SUMIF($E15:$E25,$E11,H15:H25) -> 0 | J26: =SUMIF($E15:$E25,$E11,J15:J25) -> 0
A27: 13 | B27: Sub-total - One-time Costs 4 | D27: =SUMIF($E15:$E25,$E12,D15:D25) -> 0 | F27: =SUMIF($E15:$E25,$E12,F15:F25) -> 0 | G27: =SUMIF($E15:$E25,$E12,G15:G25) -> 0 | H27: =SUMIF($E15:$E25,$E12,H15:H25) -> 0 | J27: =SUMIF($E15:$E25,$E12,J15:J25) -> 0
A28: 14 | B28: Total | D28: =D26+D27 -> 0 | F28: =F26+F27 -> 0 | G28: =G26+G27 -> 0 | H28: =H26+H27 -> 0 | J28: =J26+J27 -> 0
A31: Please fill out the following table for all one-time costs related to this cost of service application to be amortized over the test year plus the IRM period.
C33: Historical Year(s) | D33: =H13 -> 2017 Bridge Year | E33: =J13 -> 2018 Test Year
A34: 4 | B34: Expert Witness costs
A35: 5 | B35: Legal costs | C35: 5486.73 | E35: 15000
A36: 6 | B36: Consultants' costs | D36: 95000
A37: 7 | B37: Incremental operating expenses associated with staff resources allocated to this application.
A38: 8 | B38: Incremental operating expenses associated with other resources allocated to this application. 1
A39: 11 | B39: Intervenor costs | E39: 10000
A41: Notes:
A43: 1 | B43: Please identify the resources involved.
A44: 2 | B44: Where a category's costs include both one-time and ongoing costs, the applicant should prove a separate breakdown between one-time and ongoing costs.
A45: 3 | B45: Sum of all ongoing costs identified in rows 1 to 11 inclusive.
A46: 4 | B46: Sum of all one-time costs identified in rows 1 to 11 inclusive.

Sheet App.2-N_Corp_Cost_Allocation
G1: File Number: | H1: =EBNUMBER -> EB-2017-0073
G2: Exhibit:
G3: Tab:
G4: Schedule:
G5: Page:
G7: Date:
B9: Appendix 2-N
B10: Shared Services and Corporate Cost Allocation 1
C12: Year:
B14: Shared Services
B16: Name of Company | D16: Service Offered | E16: Pricing Methodology | F16: Price for the Service | G16: Cost for the Service
B17: From | C17: To
F18: $ | G18: $
B28: Corporate Cost Allocation
B30: Name of Company | D30: Service Offered | E30: Pricing Methodology | F30: % of Corporate Costs Allocated | G30: Amount Allocated
B31: From | C31: To
F32: % | G32: $
B33: eg: parent company | C33: eg: regulated entity
B42: Note:
B43: 1 | C43: This appendix must be completed in relation to each service provided or received for the Historical (actuals), Bridge and Test years. The required information includes:
B46: · Type of Service:
B47: Services such as billing, accounting, payroll, etc. The applicant must identify any costs related to the Board of Directors of the parent company that are allocated to the applicant.
B49: · Pricing Methodology:
B50: Pricing Methodology includes approaches such as cost-base, market-base, tendering, etc. The applicant must provide evidence demonstrating the pricing methodology used. The applicant must also provide a description of why that pricing methodology was chosen, whether or not it is in conformity with ARC, and why it is appropriate.
B52: · % Allocation:
B53: The applicant must provide the percentage of the costs allocated to the entity for the service being offered. The Applicant must also provide a description of the allocator and why it is an appropriate allocator.

Sheet App.2-OA Capital Structure
K1: File Number: | O1: =EBNUMBER -> EB-2017-0073
K2: Exhibit: | O2: 5
K3: Tab:
K4: Schedule:
K5: Page:
K7: Date: | O7: 2017-08-28
C10: Appendix 2-OA
C11: Capital Structure and Cost of Capital
A13: This table must be completed for the last Board-approved year and the test year.
G15: Year: | H15: 2013
A17: Line No.
C18: Particulars | E18: Capitalization Ratio | K18: Cost Rate | O18: Return
E20: (%) | I20: ($) | K20: (%) | O20: ($)
C21: Debt
A22: 1 | C22: Long-term Debt | E22: 0.56 | I22: =$I$31*E22 -> 3423960.4 | K22: 0.0344 | O22: =K22*I22 -> 117784.2378
A23: 2 | C23: Short-term Debt | E23: 0.04 | G23: (1) | I23: =$I$31*E23 -> 244568.6 | K23: 0.0207 | O23: =K23*I23 -> 5062.57002
A24: 3 | C24: Total Debt | E24: =SUM(E22:E23) -> 0.6 | I24: =SUM(I22:I23) -> 3668529 | K24: =IF(E24=0,0,SUMPRODUCT(E22:E23,K22:K23)/E24) -> 0.03348666667 | O24: =SUM(O22:O23) -> 122846.8078
C26: Equity
A27: 4 | C27: Common Equity | E27: 0.4 | I27: =$I$31*E27 -> 2445686 | K27: 0.0898 | O27: =K27*I27 -> 219622.6028
A28: 5 | C28: Preferred Shares | I28: =$I$31*E28 -> 0 | O28: =K28*I28 -> 0
A29: 6 | C29: Total Equity | E29: =SUM(E27:E28) -> 0.4 | I29: =SUM(I27:I28) -> 2445686 | K29: =IF(E29=0,0,SUMPRODUCT(E27:E28,K27:K28)/E29) -> 0.0898 | O29: =SUM(O27:O28) -> 219622.6028
A31: 7 | C31: Total | E31: 1 | I31: 6114215 | K31: =(K24*E24)+(K29*E29) -> 0.056012 | O31: =O24+O29 -> 342469.4106
A34: Notes
A35: (1) | C35: 4.0% unless an applicant has proposed or been approved for a different amount.
G42: Year: | H42: 2018
A44: Line No.
C45: Particulars | E45: Capitalization Ratio | K45: Cost Rate | O45: Return
E47: (%) | I47: ($) | K47: (%) | O47: ($)
C48: Debt
A49: 1 | C49: Long-term Debt | E49: 0.56 | I49: =$I$58*E49 -> 3455816 | K49: 0.0386 | O49: =K49*I49 -> 133394.4976
A50: 2 | C50: Short-term Debt | E50: 0.04 | G50: (1) | I50: =$I$58*E50 -> 246844 | K50: 0.0176 | O50: =K50*I50 -> 4344.4544
A51: 3 | C51: Total Debt | E51: =SUM(E49:E50) -> 0.6 | I51: =SUM(I49:I50) -> 3702660 | K51: =IF(E51=0,0,SUMPRODUCT(E49:E50,K49:K50)/E51) -> 0.0372 | O51: =SUM(O49:O50) -> 137738.952
C53: Equity
A54: 4 | C54: Common Equity | E54: 0.4 | I54: =$I$58*E54 -> 2468440 | K54: 0.0878 | O54: =K54*I54 -> 216729.032
A55: 5 | C55: Preferred Shares | I55: =$I$58*E55 -> 0 | O55: =K55*I55 -> 0
A56: 6 | C56: Total Equity | E56: =SUM(E54:E55) -> 0.4 | I56: =SUM(I54:I55) -> 2468440 | K56: =IF(E56=0,0,SUMPRODUCT(E54:E55,K54:K55)/E56) -> 0.0878 | O56: =SUM(O54:O55) -> 216729.032
A58: 7 | C58: Total | E58: 1 | I58: 6171100 | K58: =(K51*E51)+(K56*E56) -> 0.05744 | O58: =O51+O56 -> 354467.984
A61: Notes
A62: (1) | C62: 4.0% unless an applicant has proposed or been approved for a different amount.

Sheet App.2-OB_Debt Instruments
J1: File Number: | K1: =EBNUMBER -> EB-2017-0073
J2: Exhibit: | K2: 5
J3: Tab:
J4: Schedule:
J5: Page:
J7: Date: | K7: 2017-08-28
A10: Appendix 2-OB
A11: Debt Instruments
A13: This table must be completed for all required historical years, the bridge year and the test year.
D14: Year | E14: 2013
A16: Row | B16: Description | C16: Lender | D16: Affiliated or Third-Party Debt? | E16: Fixed or Variable-Rate? | F16: Start Date | G16: Term (years) | H16: Principal ($) | I16: Rate (%) 2 | J16: Interest ($) 1 | K16: Additional Comments, if any
A17: 1 | B17: CIBC Bank Loan (1) | C17: CIBC | D17: Third-Party | E17: Variable Rate | F17: 2007-06-01 | G17: 8.75 | H17: 1758989.32 | I17: 0.03 | J17: =H17*I17/12*10 -> 43974.733 | K17: Non-revolving Demand Installment Loan - Fixed Principle plus interest payments
A18: 2 | B18: CIBC Bank Loan (1) | C18: CIBC | D18: Third-Party | E18: Fixed Rate | F18: 2013-11-01 | G18: 4 | H18: 1588490 | I18: 0.0283 | J18: =H18*I18/12*2 -> 7492.377833 | K18: Converted Loan to Principle and interest blended Monthly payment. Interest rate fixed until Nov 1 2017
A19: 3 | B19: CIBC Smart Meter Loan | C19: CIBC | D19: Third-Party | E19: Fixed Rate | F19: 2009-07-03 | G19: 15 | H19: 622318.55 | I19: 0.047 | J19: =H19*I19 -> 29248.97185 | K19: Principle and interest blended monthly payment. Interest rate fixed until July 3, 2019
A20: 4 | J20: 0
A21: 5 | J21: 0
A22: 6 | J22: 0
A23: 7 | J23: 0
A24: 8 | J24: 0
A25: 9 | J25: 0
A26: 10 | J26: 0
A27: 11 | J27: 0
A28: 12 | J28: 0
A30: Total | H30: =SUM(H17:H28) -> 3969797.87 | I30: =IF(H30=0,"",J30/H30) -> 0.02033254219 | J30: =SUM(J17:J28) -> 80716.08268
A32: Notes
A34: 1 | B34: If financing is in place only part of the year, separately calculate the pro-rated interest in the year and input in the cell.
A35: 2 | B35: Input actual or deemed long-term debt rate in accordance with the guidelines in The Report of the Board on the Cost of Capital for Ontario's Regulated Utilities, issued December 11, 2009, or with any subsequent update issued by the Board.
A36: 3 | B36: Add more lines above row 12 if necessary.
D38: Year | E38: 2014
A40: Row | B40: Description | C40: Lender | D40: Affiliated or Third-Party Debt? | E40: Fixed or Variable-Rate? | F40: Start Date | G40: Term (years) | H40: Principal ($) | I40: Rate (%) 2 | J40: Interest ($) 1 | K40: Additional Comments, if any
A41: 1
A42: 2 | B42: CIBC Bank Loan (1) | C42: CIBC | D42: Third-Party | E42: Fixed Rate | F42: 2013-11-01 | G42: 4 | H42: 1574028.56 | I42: 0.0283 | J42: =H42*I42 -> 44545.00825 | K42: Principle and interest blended monthly payment. Interest rate fixed until Nov 1, 2017
A43: 3 | B43: CIBC Smart Meter Loan | C43: CIBC | D43: Third-Party | E43: Fixed Rate | F43: 2009-07-03 | G43: 15 | H43: 580910.14 | I43: 0.047 | J43: =H43*I43 -> 27302.77658 | K43: Principle and interest blended monthly payment. Interest rate fixed until July 3, 2019
A44: 4 | J44: 0
A45: 5 | J45: 0
A46: 6 | J46: 0
A47: 7 | J47: 0
A48: 8 | J48: 0
A49: 9 | J49: 0
A50: 10 | J50: 0
A51: 11 | J51: 0
A52: 12 | J52: 0
A54: Total | H54: =SUM(H41:H52) -> 2154938.7 | I54: =IF(H54=0,"",J54/H54) -> 0.03334098776 | J54: =SUM(J41:J52) -> 71847.78483
D56: Year | E56: 2015
A58: Row | B58: Description | C58: Lender | D58: Affiliated or Third-Party Debt? | E58: Fixed or Variable-Rate? | F58: Start Date | G58: Term (years) | H58: Principal ($) | I58: Rate (%) 2 | J58: Interest ($) 1 | K58: Additional Comments, if any
A59: 1
A60: 2 | B60: CIBC Bank Loan (1) | C60: CIBC | D60: Third-Party | E60: Fixed Rate | F60: 2013-11-01 | G60: 4 | H60: 1405926.46 | I60: 0.0283 | J60: =H60*I60 -> 39787.71882 | K60: Principle and interest blended monthly payment. Interest rate fixed until Nov 1, 2017
A61: 3 | B61: CIBC Smart Meter Loan | C61: CIBC | D61: Third-Party | E61: Fixed Rate | F61: 2009-07-03 | G61: 15 | H61: 537513.07 | I61: 0.047 | J61: =H61*I61 -> 25263.11429 | K61: Principle and interest blended monthly payment. Interest rate fixed until July 3, 2019
A62: 4 | J62: 0
A63: 5 | J63: 0
A64: 6 | J64: 0
A65: 7 | J65: 0
A66: 8 | J66: 0
A67: 9 | J67: 0
A68: 10 | J68: 0
A69: 11 | J69: 0
A70: 12 | J70: 0
A72: Total | H72: =SUM(H59:H70) -> 1943439.53 | I72: =IF(H72=0,"",J72/H72) -> 0.03347201295 | J72: =SUM(J59:J70) -> 65050.83311
D74: Year | E74: 2016
A76: Row | B76: Description | C76: Lender | D76: Affiliated or Third-Party Debt? | E76: Fixed or Variable-Rate? | F76: Start Date | G76: Term (years) | H76: Principal ($) | I76: Rate (%) 2 | J76: Interest ($) 1 | K76: Additional Comments, if any
A77: 1
A78: 2 | B78: CIBC Bank Loan (1) | C78: CIBC | D78: Third-Party | E78: Fixed Rate | F78: 2013-11-01 | G78: 4 | H78: 1233044.87 | I78: 0.0283 | J78: =H78*I78 -> 34895.16982 | K78: Principle and interest blended monthly payment. Interest rate fixed until Nov 1, 2017
A79: 3 | B79: CIBC Smart Meter Loan | C79: CIBC | D79: Third-Party | E79: Fixed Rate | F79: 2009-07-03 | G79: 15 | H79: 492031.84 | I79: 0.047 | J79: =H79*I79 -> 23125.49648 | K79: Principle and interest blended monthly payment. Interest rate fixed until July 3, 2019
A80: 4 | J80: 0
A81: 5 | J81: 0
A82: 6 | J82: 0
A83: 7 | J83: 0
A84: 8 | J84: 0
A85: 9 | J85: 0
A86: 10 | J86: 0
A87: 11 | J87: 0
A88: 12 | J88: 0
A90: Total | H90: =SUM(H77:H88) -> 1725076.71 | I90: =IF(H90=0,"",J90/H90) -> 0.0336336732 | J90: =SUM(J77:J88) -> 58020.6663
D92: Year | E92: 2017
A94: Row | B94: Description | C94: Lender | D94: Affiliated or Third-Party Debt? | E94: Fixed or Variable-Rate? | F94: Start Date | G94: Term (years) | H94: Principal ($) | I94: Rate (%) 2 | J94: Interest ($) 1 | K94: Additional Comments, if any
A95: 1
A96: 2 | B96: CIBC Bank Loan (1) | C96: CIBC | D96: Third-Party | E96: Fixed Rate | F96: 2013-11-01 | G96: 4 | H96: 1040801.6 | I96: 0.0283 | J96: =H96*I96 -> 29454.68528 | K96: Principle and interest blended monthly payment. Interest rate fixed until Nov 1, 2017
A97: 3 | B97: CIBC Smart Meter Loan | C97: CIBC | D97: Third-Party | E97: Fixed Rate | F97: 2009-07-03 | G97: 15 | H97: 440292.32 | I97: 0.047 | J97: =H97*I97 -> 20693.73904 | K97: Principle and interest blended monthly payment. Interest rate fixed until July 3, 2019
A98: 4 | B98: Long Term Load Transfer Elimination - Purchase of Hydro One Assets | C98: CIBC | D98: Third-Party | E98: Variable Rate | F98: 2017-07-01 | G98: 10 | H98: 147842 | I98: 0.027 | J98: =H98*I98/12*7 -> 2328.5115 | K98: Non-revolving deman loan, set principle plus interest of Prime
A99: 5 | J99: 0
A100: 6 | J100: 0
A101: 7 | J101: 0
A102: 8 | J102: 0
A103: 9 | J103: 0
A104: 10 | J104: 0
A105: 11 | J105: 0
A106: 12 | J106: 0
A108: Total | H108: =SUM(H95:H106) -> 1628935.92 | I108: =IF(H108=0,"",J108/H108) -> 0.03221546973 | J108: =SUM(J95:J106) -> 52476.93582
D110: Year | E110: 2018
A112: Row | B112: Description | C112: Lender | D112: Affiliated or Third-Party Debt? | E112: Fixed or Variable-Rate? | F112: Start Date | G112: Term (years) | H112: Principal ($) | I112: Rate (%) 2 | J112: Interest ($) 1 | K112: Additional Comments, if any
A113: 1
A114: 2 | B114: CIBC Bank Loan (1) | C114: CIBC | D114: Third-Party | E114: Fixed Rate | F114: 2013-11-01 | G114: 4 | H114: 857412 | I114: 0.0283 | J114: =H114*I114 -> 24264.7596 | K114: Principle and interest blended monthly payment. Interest rate fixed until Nov 1, 2017
A115: 3 | B115: CIBC Smart Meter Loan | C115: CIBC | D115: Third-Party | E115: Fixed Rate | F115: 2009-07-03 | G115: 15 | H115: 390142 | I115: 0.047 | J115: =H115*I115 -> 18336.674 | K115: Principle and interest blended monthly payment. Interest rate fixed until July 3, 2019
A116: 4 | B116: Long Term Load Transfer Elimination - Purchase of Hydro One Assets | C116: CIBC | D116: Third-Party | E116: Variable Rate | F116: 2017-07-01 | G116: 10 | H116: 136754 | I116: 0.027 | J116: =H116*I116 -> 3692.358 | K116: Non-revolving deman loan, set principle plus interest of Prime
A117: 5 | B117: Line Truck Financing | C117: Key Equipment Financing | D117: Third-Party | E117: Fixed Rate | F117: 2018-01-01 | G117: 6 | H117: 345788 | I117: 0.059 | J117: =H117*I117 -> 20401.492 | K117: Financing required for the purchase of line truck
A118: 6 | J118: 0
A119: 7 | J119: 0
A120: 8 | J120: 0
A121: 9 | J121: 0
A122: 10 | J122: 0
A123: 11 | J123: 0
A124: 12 | J124: 0
A126: Total | H126: =SUM(H113:H124) -> 1730096 | I126: =IF(H126=0,"",J126/H126) -> 0.03855004786 | J126: =SUM(J113:J124) -> 66695.2836

Sheet App.2-Q_Cost of Serv. Emb. Dx
F1: File Number: | G1: =EBNUMBER -> EB-2017-0073
F2: Exhibit:
F3: Tab:
F4: Schedule:
F5: Page:
F7: Date: | G7: 2017-08-28
A9: Appendix 2-Q
A10: Cost of Serving Embedded Distributor(s)
A12: To be completed by Host Distributors ONLY
A13: (Not required if Host Distributor has an Embedded Distributor rate class, i.e. a separate row on Sheet 11 of the RRWF.)
A16: Proposed Rate Class for Billing Embedded Distributor(s)
A18: Host's Distribution Facilities used by Embedded Distributor(s)
A20: (1) | B20: (2) | C20: (3) | D20: (4) | E20: (5) | F20: (6) = '(3) + (4)
A21: Asset Class | B21: Total OM&A costs asociated with asset class | C21: Original cost of asset class | D21: Accumulated amortization of asset class | E21: Annual amortization of asset class | F21: Net Book Value of asset class
A22: Totals for Host Distributor: | B22: ($) | C22: ($) | D22: ($) | E22: ($)
A23: Distribution Stations | F23: =C23+D23 -> 0
A24: Low Voltage Line | F24: 0
A25: LV Line category # 2 (if applcable) | F25: 0
A26: TS (owned by host) | F26: 0
A27: add rows if necessary... | F27: 0
F28: 0
F29: 0
A31: (1) | B31: (7) | C31: (8) | D31: (9) | E31: (10) | F31: (11)
A32: =A21 -> Asset Class | B32: Total line length or station capacity in asset class | C32: Line length or capacity required to provide LV service to Embedded Distributor(s) | D32: Annual total demand on station/line providing LV services (sum of 12 monthly peaks) | E32: Annual billed Embedded Distributor demand on station/line providing LV services | F32: Embedded Distributor(s)' Responsibility Share
A33: Embedded Distributor's share: | B33: kW or kVa; km | C33: kW or kVA; km | D33: kW or kVA | E33: kW or kVA | F33: percent
A34: Distribution Stations | F34: =IF(D34=0,0,(C34/B34)*(E34/D34)) -> 0
A35: Low Voltage Line | F35: =IF(D35=0,0,(C35/B35)*(E35/D35)) -> 0
A36: LV Line # 2 (if applicable) | F36: =IF(D36=0,0,(C36/B36)*(E36/D36)) -> 0
A37: TS (owned by host) | F37: =IF(D37=0,0,(C37/B37)*(E37/D37)) -> 0
A38: add rows if necessary | F38: =IF(D38=0,0,(C38/B38)*(E38/D38)) -> 0
A40: (1) | B40: (12) | C40: (12a) | D40: (13) | E40: (14) | F40: (15) | G40: (16)
A41: =A32 -> Asset Class | B41: Return on Assets used to Provide LV services | C41: Taxes/PILs | D41: Annual amortization on assets used to provide LV services | E41: OM&A costs with burden associated with assets used to provide LV services | F41: Total annual cost associated with assets used to provide LV services | G41: Monthly cost associated with the delivery of LV services
B42: ($) | C42: ($) | D42: ($) | E42: ($) | F42: ($) | G42: $/kW or $/kVA
A43: Distribution Stations | B43: =E$54*(F23+B23*E$59)*F34 -> 0 | C43: =(B43-(B$54*C$54*F34*(F23+B23*E57)+B$55*C$55*F34*(F23+B23*E$57)))*E$57/(1-E$57) -> 0 | D43: =E23*F34 -> 0 | E43: =B23*F34 -> 0 | F43: =SUM(B43:E43) -> 0 | G43: =IF(E34=0,0,(D43/E34)) -> 0
A44: Low Voltage Line | B44: =E$54*(F24+B24*E$59)*F35 -> 0 | C44: =(B44-(B$54*C$54*F35*(F24+B24*E58)+B$55*C$55*F35*(F24+B24*E58)))*E$57/(1-E$57) -> 0 | D44: =E24*F35 -> 0 | E44: =B24*F35 -> 0 | F44: =SUM(B44:E44) -> 0 | G44: =IF(E35=0,0,(D44/E35)) -> 0
A45: LV Line # 2 (if applicable) | B45: =E$54*(F25+B25*E$59)*F36 -> 0 | C45: =(B45-(B$54*C$54*F36*(F25+B25*E59)+B$55*C$55*F36*(F25+B25*E$59)))*E$57/(1-E$57) -> 0 | D45: =E25*F36 -> 0 | E45: =B25*F36 -> 0 | F45: =SUM(B45:E45) -> 0 | G45: =IF(E36=0,0,(D45/E36)) -> 0
A46: TS (owned by host) | B46: =E$54*(F26+B26*E$59)*F37 -> 0 | C46: =(B46-(B$54*C$54*F37*(F26+B26*E60)+B$55*C$55*F37*(F26+B26*E60)))*E$57/(1-E$57) -> 0 | D46: =E26*F37 -> 0 | E46: =B26*F37 -> 0 | F46: =SUM(B46:E46) -> 0 | G46: =IF(E37=0,0,(D46/E37)) -> 0
A47: add rows if necessary | B47: =E$54*(F27+B27*E$59)*F38 -> 0 | C47: =(B47-(B$54*C$54*F38*(F27+B27*I61)+B$55*C$55*F38*(F27+B27*I61)))*E$57/(1-E$57) -> 0 | D47: =E27*F38 -> 0 | E47: =B27*F38 -> 0 | F47: =SUM(B47:E47) -> 0 | G47: =IF(E38=0,0,(D47/E38)) -> 0
A49: Total | F49: =SUM(F43:F47) -> 0 | G49: =SUM(G43:G47) -> 0
A51: (17) | B51: (18) | C51: (19) | D51: (20) | E51: (21)
B52: Capital Structure | C52: Cost Rate
B53: (%) | C53: (%) | E53: (%)
A54: Long-Term Debt | D54: Weighted Average Cost of Capital | E54: =IF(B60=0%,0,SUMPRODUCT(B54:B58,C54:C58)/B60) -> 0
A55: Short-term Debt
A57: Common Equity | D57: Tax/PILs Rate
A58: Preferred Shares
D59: Working Capital Allowance Factor
A60: Total | B60: =SUM(B54:B58) -> 0

Sheet App.2-R_Loss Factors
H1: File Number: | I1: =EBNUMBER -> EB-2017-0073
H2: Exhibit: | I2: 8
H3: Tab:
H4: Schedule:
H5: Page:
H7: Date: | I7: 2017-08-28
B9: Appendix 2-R
B10: Loss Factors
D13: Historical Years | I13: 5-Year Average
D14: =IF(ISBLANK('LDC Info'!E26-5), "Year 5", 'LDC Info'!E26-5) -> 2012 | E14: =IF(ISBLANK('LDC Info'!E26-4), "Year 5", 'LDC Info'!E26-4) -> 2013 | F14: =IF(ISBLANK('LDC Info'!E26-3), "Year 5", 'LDC Info'!E26-3) -> 2014 | G14: =IF(ISBLANK('LDC Info'!E26-2), "Year 5", 'LDC Info'!E26-2) -> 2015 | H14: =IF(ISBLANK('LDC Info'!E26-1), "Year 5", 'LDC Info'!E26-1) -> 2016
C15: Losses Within Distributor's System
B16: A(1) | C16: "Wholesale" kWh delivered to distributor (higher value) | D16: 75859029 | E16: 87948723 | F16: 89786000 | G16: 83643508 | H16: 75653709 | I16: =IF(SUM(D16:H16)=0,0,AVERAGE(D16:H16)) -> 82578193.8
B17: A(2) | C17: "Wholesale" kWh delivered to distributor (lower value) | D17: 75601634 | E17: 87692323 | F17: 89519317 | G17: 83393450 | H17: 75446075 | I17: =IF(SUM(D17:H17)=0,0,AVERAGE(D17:H17)) -> 82330559.8
B18: B | C18: Portion of "Wholesale" kWh delivered to distributor for its Large Use Customer(s) | I18: =IF(SUM(D18:H18)=0,0,AVERAGE(D18:H18)) -> 0
B19: C | C19: Net "Wholesale" kWh delivered to distributor = A(2) - B | D19: =D17-D18 -> 75601634 | E19: 87692323 | F19: 89519317 | G19: 83393450 | H19: 75446075 | I19: 82330559.8
B20: D | C20: "Retail" kWh delivered by distributor | D20: 71922866 | E20: 83168941 | F20: 85548133 | G20: 79338527 | H20: 70815698 | I20: =IF(SUM(D20:H20)=0,0,AVERAGE(D20:H20)) -> 78158833
B21: E | C21: Portion of "Retail" kWh delivered by distributor to its Large Use Customer(s) | I21: =IF(SUM(D21:H21)=0,0,AVERAGE(D21:H21)) -> 0
B22: F | C22: Net "Retail" kWh delivered by distributor = D - E | D22: =D20-D21 -> 71922866 | E22: 83168941 | F22: 85548133 | G22: 79338527 | H22: 70815698 | I22: 78158833
B23: G | C23: Loss Factor in Distributor's system = C / F | D23: =IF(D22=0,"",D19/D22) -> 1.051148796 | E23: 1.054387875 | F23: 1.046420464 | G23: 1.051109129 | H23: 1.065386307 | I23: 1.053374988
C24: Losses Upstream of Distributor's System
B25: H | C25: Supply Facilities Loss Factor | D25: 1.034 | E25: 1.034 | F25: 1.034 | G25: 1.034 | H25: 1.034 | I25: =IF(SUM(D25:H25)=0,0,AVERAGE(D25:H25)) -> 1.034
C26: Total Losses
B27: I | C27: Total Loss Factor = G x H | D27: =IF(D23="","",D23*D25) -> 1.086887855 | E27: 1.090237063 | F27: 1.081998759 | G27: 1.086846839 | H27: 1.101609442 | I27: 1.089189738
B29: Notes:
B31: A(1) | C31: If directly connected to the IESO-controlled grid, kWh pertains to the virtual meter on the primary or high voltage side of the transformer at the interface with the transmission grid. This corresponds to the "With Losses" kWh value provided by the IESO's MV-WEB. It is the higher of the two values provided by MV-WEB.
C35: If fully embedded within a host distributor, kWh pertains to the virtual meter on the primary or high voltage side of the transformer, at the interface between the host distributor and the transmission grid. For example, if the host distributor is Hydro One Networks Inc., kWh from the Hydro One Networks' invoice corresponding to "Total kWh w Losses" should be reported. This corresponds to the higher of the two kWh values provided in Hydro One Networks' invoice.
C40: If partially embedded, kWh pertains to the sum of the above.
B42: A(2) | C42: If directly connected to the IESO-controlled grid, kWh pertains to a metering installation on the secondary or low voltage side of the transformer at the interface with the transmission grid. This corresponds to the "Without Losses" kWh value provided by the IESO's MV-WEB. It is the lower of the two kWh values provided by MV-WEB.
